Publisher Label,Publisher URI,"Directorate code","Directorate","Service code","Service","Revenue or capital code","Revenue capital","Cost centre","Cost centre description","Bvsub Category","Bvsub description","Bvsum code","Bvsum description","Account code","Account description","Transaction No","Period","Transaction Date","Amount","Classification code","Classification description","Supplier ID","Supplier description","Company registration number","Company registration number Uri","VAT registration number"
"London Borough of Redbridge","http://opendatacommunities.org/doc/london-borough-council/redbridge","9BNONBVO","Outside the BVACOP Objective Structure","9CNONBVO","Outside the BVACOP Objective Structure","BAL","Balance Sheet","B2001","Insurance Fund","99-NONBV","Capital, Balance Sheet and Control","50K","Current Assets","9314","Advance To MMI","70027992","201203",01/06/2011 00:00:00,34379.76,"45415","Insurance - Other","REDACTED DATA","ZURICH MUNICIPAL","",,""
"London Borough of Redbridge","http://opendatacommunities.org/doc/london-borough-council/redbridge","9BNONBVO","Outside the BVACOP Objective Structure","9CNONBVO","Outside the BVACOP Objective Structure","REV","Revenue","R0056","Loans Fund - Revenue Exp","09-INCOME","Income","09D","Interest","8703","Interest On Temporary Investments","70027992","201203",01/06/2011 00:00:00,-101.23,"45415","Insurance - Other","REDACTED DATA","ZURICH MUNICIPAL","",,""
"London Borough of Redbridge","http://opendatacommunities.org/doc/london-borough-council/redbridge","3BNONSCHFUND","Non-School Funding","3CNONSCH","Non Schools","REV","Revenue","R3962","Early Years - 3 and 4 Year Olds","05-THIRD","Third Party Payments","05A","Independent units within the council","6517","Non-Maintained Schools","3188873","201203",21/05/2011 00:00:00,7082,"59760","Playgroups, Nurseries and Creches","REDACTED DATA","ZIG ZAGS DAY NURSERY","",,""
"London Borough of Redbridge","http://opendatacommunities.org/doc/london-borough-council/redbridge","6BADULTSOCIA","Adult Social Care","6CSERVSTRAT","Service Strategy","REV","Revenue","R4008","Director of Adult Social Services","01-EMPLOYEES","Employees","01A","Direct employee expenses","4","Agency Staff - Pay","60149197","201203",01/06/2011 00:00:00,3932.5,"12100","Business and Management Consultants","REDACTED DATA","ZEIT CONSULTANCY LTD","7089647","http://opencorporates.com/companies/gb/7089647",""
"London Borough of Redbridge","http://opendatacommunities.org/doc/london-borough-council/redbridge","3BLEACENTFND","LEA Centrally Held School Funds","3CASSURACCES","Assuring Access to Schools","REV","Revenue","R3290","Mus Sch - Delegated","04-SUPPLIES","Supplies And Services","04F","Communications and computing","5857","Maint Controls","70028753","201203",28/04/2011 00:00:00,842.13,"52437","Music Teachers","REDACTED DATA","ZEAG (UK) LTD","907240","http://opencorporates.com/companies/gb/907240","704038764"
"London Borough of Redbridge","http://opendatacommunities.org/doc/london-borough-council/redbridge","5BGFHOUSING","General Fund Housing","5CHOUSADVICE","Housing Advice","REV","Revenue","R5530","HAC Temporary Accomodation","05-THIRD","Third Party Payments","05H","Private contractors","6916","Leasing Payments To Landlords","70028460","201203",07/06/2011 00:00:00,801.67,"1266","Accommodation Agencies - Residential","REDACTED DATA","ZAHOOR AHMED","",,""
"London Borough of Redbridge","http://opendatacommunities.org/doc/london-borough-council/redbridge","3BOPTIONHLDG","Optional Holding Accounts","3CYOUTH","Youth Service","REV","Revenue","R3371","LBR Costs","05-THIRD","Third Party Payments","05H","Private contractors","6901","Secure Accommodation","60151206","201203",31/05/2011 00:00:00,3663.66,"86250","Youth Organisations & Centres","REDACTED DATA","YOUTH JUSTICE BOARD FOR ENGLAND AND WALES","",,""
"London Borough of Redbridge","http://opendatacommunities.org/doc/london-borough-council/redbridge","4BTRANSPORT","Transport Planning, Policy & Strategy","4CTRANSPP&S","Transport Planning, Policy & Strategy","REV","Revenue","R7009","Highways Asset Management","04-SUPPLIES","Supplies And Services","04E","Services","5754","Consultancy","60149282","201203",31/05/2011 00:00:00,9950,"20703","Computer Systems and Software","REDACTED DATA","YOTTA LTD","5844012","http://opencorporates.com/companies/gb/5844012","768351891"
"London Borough of Redbridge","http://opendatacommunities.org/doc/london-borough-council/redbridge","6BADULTSOCIA","Adult Social Care","6CADLEARNDIS","Adults Under 65 with Learning Disabilities","REV","Revenue","R4218","Individualised Budgets","06-TRANSFER","Transfer Payments","06B","Social Services Clients","7053","Direct Payments","3186540","201203",10/07/2011 00:00:00,1078.68,"43419","Home Care Services","REDACTED DATA","YASMIN EHSSINA","",,""
"London Borough of Redbridge","http://opendatacommunities.org/doc/london-borough-council/redbridge","6BADULTSOCIA","Adult Social Care","6CADLEARNDIS","Adults Under 65 with Learning Disabilities","REV","Revenue","R4218","Individualised Budgets","09-INCOME","Income","09C","Customer & Client Receipts","8553","Care Package Charges","3186540","201203",10/07/2011 00:00:00,-59.8,"43419","Home Care Services","REDACTED DATA","YASMIN EHSSINA","",,""
"London Borough of Redbridge","http://opendatacommunities.org/doc/london-borough-council/redbridge","6BADULTSOCIA","Adult Social Care","6CADPHYSDIS","Adults Under 65 with Phys Disab or Sensory Impair","REV","Revenue","R4276","Link Place","04-SUPPLIES","Supplies And Services","04A","Equipment, furniture and materials","5502","Equipment Purchase","60149898","201203",07/06/2011 00:00:00,608.68,"61820","Printers' Services & Supplies","REDACTED DATA","XPRES (DIV OF CHARTERHOUSE HOLDINGS PLC","981987","http://opencorporates.com/companies/gb/981987","114412322"
"London Borough of Redbridge","http://opendatacommunities.org/doc/london-borough-council/redbridge","3BLEACENTFND","LEA Centrally Held School Funds","3CSCHSTRATMG","Schools Strategic Management","REV","Revenue","R3279","IT Unit - Trading Acc","04-SUPPLIES","Supplies And Services","04A","Equipment, furniture and materials","5502","Equipment Purchase","60151367","201203",24/06/2011 00:00:00,7120,"20623","Computer Consumables & Stationery","REDACTED DATA","XMA LIMITED","2051703","http://opencorporates.com/companies/gb/2051703",""
"London Borough of Redbridge","http://opendatacommunities.org/doc/london-borough-council/redbridge","9BNONBVO","Outside the BVACOP Objective Structure","9CNONBVO","Outside the BVACOP Objective Structure","CAP","Capital","C1638","Building Schools for the Future","99-NONBV","Capital, Balance Sheet and Control","50F","Capital - Equipment, Furniture & Fittings","9171","Furniture & Fittings","60151271","201203",16/03/2011 00:00:00,3917,"20623","Computer Consumables & Stationery","REDACTED DATA","XMA LIMITED","2051703","http://opencorporates.com/companies/gb/2051703",""
"London Borough of Redbridge","http://opendatacommunities.org/doc/london-borough-council/redbridge","6BADULTSOCIA","Adult Social Care","6CCHILLOOKED","Children Looked After","REV","Revenue","R2119","CLAFH - Supportive Accommodation","05-THIRD","Third Party Payments","05H","Private contractors","6910","Care Packages","3190078","201203",17/06/2011 00:00:00,1542.86,"47846","Letting Agents","REDACTED DATA","XCHANGE PROPERTY SERVICES LTD","4331388","http://opencorporates.com/companies/gb/4331388",""
"London Borough of Redbridge","http://opendatacommunities.org/doc/london-borough-council/redbridge","6BADULTSOCIA","Adult Social Care","6CCHILLOOKED","Children Looked After","REV","Revenue","R2119","CLAFH - Supportive Accommodation","05-THIRD","Third Party Payments","05H","Private contractors","6910","Care Packages","3190087","201203",16/05/2011 00:00:00,1328.57,"47846","Letting Agents","REDACTED DATA","XCHANGE PROPERTY SERVICES LTD","4331388","http://opencorporates.com/companies/gb/4331388",""
"London Borough of Redbridge","http://opendatacommunities.org/doc/london-borough-council/redbridge","6BADULTSOCIA","Adult Social Care","6CCHILLOOKED","Children Looked After","REV","Revenue","R2119","CLAFH - Supportive Accommodation","05-THIRD","Third Party Payments","05H","Private contractors","6910","Care Packages","3190088","201203",16/05/2011 00:00:00,1328.57,"47846","Letting Agents","REDACTED DATA","XCHANGE PROPERTY SERVICES LTD","4331388","http://opencorporates.com/companies/gb/4331388",""
"London Borough of Redbridge","http://opendatacommunities.org/doc/london-borough-council/redbridge","6BSOCIALSERV","Social Services","6CASYLUMSEEK","Asylum Seekers","REV","Revenue","R2128","CLAFH - Leaving Care Asylum Seekers","06-TRANSFER","Transfer Payments","06B","Social Services Clients","7051","Asylum Seekers","3190053","201203",16/05/2011 00:00:00,1328.57,"47846","Letting Agents","REDACTED DATA","XCHANGE PROPERTY SERVICES LTD","4331388","http://opencorporates.com/companies/gb/4331388",""
"London Borough of Redbridge","http://opendatacommunities.org/doc/london-borough-council/redbridge","6BADULTSOCIA","Adult Social Care","6CCHILLOOKED","Children Looked After","REV","Revenue","R2119","CLAFH - Supportive Accommodation","05-THIRD","Third Party Payments","05H","Private contractors","6910","Care Packages","3190086","201203",17/06/2011 00:00:00,1285.71,"47846","Letting Agents","REDACTED DATA","XCHANGE PROPERTY SERVICES LTD","4331388","http://opencorporates.com/companies/gb/4331388",""
"London Borough of Redbridge","http://opendatacommunities.org/doc/london-borough-council/redbridge","6BADULTSOCIA","Adult Social Care","6CCHILLOOKED","Children Looked After","REV","Revenue","R2119","CLAFH - Supportive Accommodation","05-THIRD","Third Party Payments","05H","Private contractors","6910","Care Packages","3190077","201203",17/06/2011 00:00:00,1285.71,"47846","Letting Agents","REDACTED DATA","XCHANGE PROPERTY SERVICES LTD","4331388","http://opencorporates.com/companies/gb/4331388",""
"London Borough of Redbridge","http://opendatacommunities.org/doc/london-borough-council/redbridge","6BADULTSOCIA","Adult Social Care","6CCHILLOOKED","Children Looked After","REV","Revenue","R2119","CLAFH - Supportive Accommodation","05-THIRD","Third Party Payments","05H","Private contractors","6910","Care Packages","3190070","201203",17/06/2011 00:00:00,1285.71,"47846","Letting Agents","REDACTED DATA","XCHANGE PROPERTY SERVICES LTD","4331388","http://opencorporates.com/companies/gb/4331388",""
"London Borough of Redbridge","http://opendatacommunities.org/doc/london-borough-council/redbridge","6BADULTSOCIA","Adult Social Care","6CCHILLOOKED","Children Looked After","REV","Revenue","R2119","CLAFH - Supportive Accommodation","05-THIRD","Third Party Payments","05H","Private contractors","6910","Care Packages","3190071","201203",17/06/2011 00:00:00,1285.71,"47846","Letting Agents","REDACTED DATA","XCHANGE PROPERTY SERVICES LTD","4331388","http://opencorporates.com/companies/gb/4331388",""
"London Borough of Redbridge","http://opendatacommunities.org/doc/london-borough-council/redbridge","6BADULTSOCIA","Adult Social Care","6CCHILLOOKED","Children Looked After","REV","Revenue","R2119","CLAFH - Supportive Accommodation","05-THIRD","Third Party Payments","05H","Private contractors","6910","Care Packages","3190084","201203",17/06/2011 00:00:00,1285.71,"47846","Letting Agents","REDACTED DATA","XCHANGE PROPERTY SERVICES LTD","4331388","http://opencorporates.com/companies/gb/4331388",""
"London Borough of Redbridge","http://opendatacommunities.org/doc/london-borough-council/redbridge","6BADULTSOCIA","Adult Social Care","6CCHILLOOKED","Children Looked After","REV","Revenue","R2119","CLAFH - Supportive Accommodation","05-THIRD","Third Party Payments","05H","Private contractors","6910","Care Packages","3190085","201203",17/06/2011 00:00:00,1285.71,"47846","Letting Agents","REDACTED DATA","XCHANGE PROPERTY SERVICES LTD","4331388","http://opencorporates.com/companies/gb/4331388",""
"London Borough of Redbridge","http://opendatacommunities.org/doc/london-borough-council/redbridge","6BADULTSOCIA","Adult Social Care","6CCHILLOOKED","Children Looked After","REV","Revenue","R2119","CLAFH - Supportive Accommodation","05-THIRD","Third Party Payments","05H","Private contractors","6910","Care Packages","3190075","201203",17/06/2011 00:00:00,1285.71,"47846","Letting Agents","REDACTED DATA","XCHANGE PROPERTY SERVICES LTD","4331388","http://opencorporates.com/companies/gb/4331388",""
"London Borough of Redbridge","http://opendatacommunities.org/doc/london-borough-council/redbridge","6BADULTSOCIA","Adult Social Care","6CCHILLOOKED","Children Looked After","REV","Revenue","R2119","CLAFH - Supportive Accommodation","05-THIRD","Third Party Payments","05H","Private contractors","6910","Care Packages","3190082","201203",17/06/2011 00:00:00,1285.71,"47846","Letting Agents","REDACTED DATA","XCHANGE PROPERTY SERVICES LTD","4331388","http://opencorporates.com/companies/gb/4331388",""
"London Borough of Redbridge","http://opendatacommunities.org/doc/london-borough-council/redbridge","6BADULTSOCIA","Adult Social Care","6CCHILLOOKED","Children Looked After","REV","Revenue","R2119","CLAFH - Supportive Accommodation","05-THIRD","Third Party Payments","05H","Private contractors","6910","Care Packages","3190083","201203",17/06/2011 00:00:00,1285.71,"47846","Letting Agents","REDACTED DATA","XCHANGE PROPERTY SERVICES LTD","4331388","http://opencorporates.com/companies/gb/4331388",""
"London Borough of Redbridge","http://opendatacommunities.org/doc/london-borough-council/redbridge","6BADULTSOCIA","Adult Social Care","6CCHILLOOKED","Children Looked After","REV","Revenue","R2119","CLAFH - Supportive Accommodation","05-THIRD","Third Party Payments","05H","Private contractors","6910","Care Packages","3190072","201203",17/06/2011 00:00:00,1285.71,"47846","Letting Agents","REDACTED DATA","XCHANGE PROPERTY SERVICES LTD","4331388","http://opencorporates.com/companies/gb/4331388",""
"London Borough of Redbridge","http://opendatacommunities.org/doc/london-borough-council/redbridge","6BADULTSOCIA","Adult Social Care","6CCHILLOOKED","Children Looked After","REV","Revenue","R2119","CLAFH - Supportive Accommodation","05-THIRD","Third Party Payments","05H","Private contractors","6910","Care Packages","3190073","201203",17/06/2011 00:00:00,1285.71,"47846","Letting Agents","REDACTED DATA","XCHANGE PROPERTY SERVICES LTD","4331388","http://opencorporates.com/companies/gb/4331388",""
"London Borough of Redbridge","http://opendatacommunities.org/doc/london-borough-council/redbridge","6BADULTSOCIA","Adult Social Care","6CCHILLOOKED","Children Looked After","REV","Revenue","R2119","CLAFH - Supportive Accommodation","05-THIRD","Third Party Payments","05H","Private contractors","6910","Care Packages","3190076","201203",17/06/2011 00:00:00,1285.71,"47846","Letting Agents","REDACTED DATA","XCHANGE PROPERTY SERVICES LTD","4331388","http://opencorporates.com/companies/gb/4331388",""
"London Borough of Redbridge","http://opendatacommunities.org/doc/london-borough-council/redbridge","6BADULTSOCIA","Adult Social Care","6CCHILLOOKED","Children Looked After","REV","Revenue","R2119","CLAFH - Supportive Accommodation","05-THIRD","Third Party Payments","05H","Private contractors","6910","Care Packages","3190079","201203",17/06/2011 00:00:00,1285.71,"47846","Letting Agents","REDACTED DATA","XCHANGE PROPERTY SERVICES LTD","4331388","http://opencorporates.com/companies/gb/4331388",""
"London Borough of Redbridge","http://opendatacommunities.org/doc/london-borough-council/redbridge","6BADULTSOCIA","Adult Social Care","6CCHILLOOKED","Children Looked After","REV","Revenue","R2119","CLAFH - Supportive Accommodation","05-THIRD","Third Party Payments","05H","Private contractors","6910","Care Packages","3190080","201203",17/06/2011 00:00:00,1285.71,"47846","Letting Agents","REDACTED DATA","XCHANGE PROPERTY SERVICES LTD","4331388","http://opencorporates.com/companies/gb/4331388",""
"London Borough of Redbridge","http://opendatacommunities.org/doc/london-borough-council/redbridge","6BSOCIALSERV","Social Services","6CASYLUMSEEK","Asylum Seekers","REV","Revenue","R2128","CLAFH - Leaving Care Asylum Seekers","06-TRANSFER","Transfer Payments","06B","Social Services Clients","7051","Asylum Seekers","3190048","201203",17/06/2011 00:00:00,1285.71,"47846","Letting Agents","REDACTED DATA","XCHANGE PROPERTY SERVICES LTD","4331388","http://opencorporates.com/companies/gb/4331388",""
"London Borough of Redbridge","http://opendatacommunities.org/doc/london-borough-council/redbridge","6BSOCIALSERV","Social Services","6CASYLUMSEEK","Asylum Seekers","REV","Revenue","R2128","CLAFH - Leaving Care Asylum Seekers","06-TRANSFER","Transfer Payments","06B","Social Services Clients","7051","Asylum Seekers","3190060","201203",17/06/2011 00:00:00,1285.71,"47846","Letting Agents","REDACTED DATA","XCHANGE PROPERTY SERVICES LTD","4331388","http://opencorporates.com/companies/gb/4331388",""
"London Borough of Redbridge","http://opendatacommunities.org/doc/london-borough-council/redbridge","6BSOCIALSERV","Social Services","6CASYLUMSEEK","Asylum Seekers","REV","Revenue","R2128","CLAFH - Leaving Care Asylum Seekers","06-TRANSFER","Transfer Payments","06B","Social Services Clients","7051","Asylum Seekers","3190039","201203",17/06/2011 00:00:00,1285.71,"47846","Letting Agents","REDACTED DATA","XCHANGE PROPERTY SERVICES LTD","4331388","http://opencorporates.com/companies/gb/4331388",""
"London Borough of Redbridge","http://opendatacommunities.org/doc/london-borough-council/redbridge","6BSOCIALSERV","Social Services","6CASYLUMSEEK","Asylum Seekers","REV","Revenue","R2128","CLAFH - Leaving Care Asylum Seekers","06-TRANSFER","Transfer Payments","06B","Social Services Clients","7051","Asylum Seekers","3190042","201203",17/06/2011 00:00:00,1285.71,"47846","Letting Agents","REDACTED DATA","XCHANGE PROPERTY SERVICES LTD","4331388","http://opencorporates.com/companies/gb/4331388",""
"London Borough of Redbridge","http://opendatacommunities.org/doc/london-borough-council/redbridge","6BSOCIALSERV","Social Services","6CASYLUMSEEK","Asylum Seekers","REV","Revenue","R2128","CLAFH - Leaving Care Asylum Seekers","06-TRANSFER","Transfer Payments","06B","Social Services Clients","7051","Asylum Seekers","3190056","201203",17/06/2011 00:00:00,1285.71,"47846","Letting Agents","REDACTED DATA","XCHANGE PROPERTY SERVICES LTD","4331388","http://opencorporates.com/companies/gb/4331388",""
"London Borough of Redbridge","http://opendatacommunities.org/doc/london-borough-council/redbridge","6BSOCIALSERV","Social Services","6CCHILLOOKED","Children Looked After","REV","Revenue","R2132","CLAFH - Asylum Seekers Non Grant Funded","06-TRANSFER","Transfer Payments","06B","Social Services Clients","7055","Habitual Residents","3190029","201203",17/06/2011 00:00:00,1285.71,"47846","Letting Agents","REDACTED DATA","XCHANGE PROPERTY SERVICES LTD","4331388","http://opencorporates.com/companies/gb/4331388",""
"London Borough of Redbridge","http://opendatacommunities.org/doc/london-borough-council/redbridge","6BSOCIALSERV","Social Services","6CCHILLOOKED","Children Looked After","REV","Revenue","R2132","CLAFH - Asylum Seekers Non Grant Funded","06-TRANSFER","Transfer Payments","06B","Social Services Clients","7055","Habitual Residents","3190033","201203",17/06/2011 00:00:00,1285.71,"47846","Letting Agents","REDACTED DATA","XCHANGE PROPERTY SERVICES LTD","4331388","http://opencorporates.com/companies/gb/4331388",""
"London Borough of Redbridge","http://opendatacommunities.org/doc/london-borough-council/redbridge","6BSOCIALSERV","Social Services","6CCHILLOOKED","Children Looked After","REV","Revenue","R2132","CLAFH - Asylum Seekers Non Grant Funded","06-TRANSFER","Transfer Payments","06B","Social Services Clients","7061","Support Package","3190061","201203",17/06/2011 00:00:00,1285.71,"47846","Letting Agents","REDACTED DATA","XCHANGE PROPERTY SERVICES LTD","4331388","http://opencorporates.com/companies/gb/4331388",""
"London Borough of Redbridge","http://opendatacommunities.org/doc/london-borough-council/redbridge","6BSOCIALSERV","Social Services","6CCHILLOOKED","Children Looked After","REV","Revenue","R2132","CLAFH - Asylum Seekers Non Grant Funded","06-TRANSFER","Transfer Payments","06B","Social Services Clients","7061","Support Package","3190062","201203",17/06/2011 00:00:00,1285.71,"47846","Letting Agents","REDACTED DATA","XCHANGE PROPERTY SERVICES LTD","4331388","http://opencorporates.com/companies/gb/4331388",""
"London Borough of Redbridge","http://opendatacommunities.org/doc/london-borough-council/redbridge","6BSOCIALSERV","Social Services","6CCHILLOOKED","Children Looked After","REV","Revenue","R2132","CLAFH - Asylum Seekers Non Grant Funded","06-TRANSFER","Transfer Payments","06B","Social Services Clients","7061","Support Package","3190063","201203",17/06/2011 00:00:00,1285.71,"47846","Letting Agents","REDACTED DATA","XCHANGE PROPERTY SERVICES LTD","4331388","http://opencorporates.com/companies/gb/4331388",""
"London Borough of Redbridge","http://opendatacommunities.org/doc/london-borough-council/redbridge","6BSOCIALSERV","Social Services","6CCHILLOOKED","Children Looked After","REV","Revenue","R2132","CLAFH - Asylum Seekers Non Grant Funded","06-TRANSFER","Transfer Payments","06B","Social Services Clients","7061","Support Package","3190064","201203",17/06/2011 00:00:00,1285.71,"47846","Letting Agents","REDACTED DATA","XCHANGE PROPERTY SERVICES LTD","4331388","http://opencorporates.com/companies/gb/4331388",""
"London Borough of Redbridge","http://opendatacommunities.org/doc/london-borough-council/redbridge","6BSOCIALSERV","Social Services","6CASYLUMSEEK","Asylum Seekers","REV","Revenue","R2128","CLAFH - Leaving Care Asylum Seekers","06-TRANSFER","Transfer Payments","06B","Social Services Clients","7051","Asylum Seekers","3190046","201203",17/06/2011 00:00:00,1157.14,"47846","Letting Agents","REDACTED DATA","XCHANGE PROPERTY SERVICES LTD","4331388","http://opencorporates.com/companies/gb/4331388",""
"London Borough of Redbridge","http://opendatacommunities.org/doc/london-borough-council/redbridge","6BSOCIALSERV","Social Services","6CCHILLOOKED","Children Looked After","REV","Revenue","R2132","CLAFH - Asylum Seekers Non Grant Funded","06-TRANSFER","Transfer Payments","06B","Social Services Clients","7055","Habitual Residents","3190032","201203",17/06/2011 00:00:00,1157.14,"47846","Letting Agents","REDACTED DATA","XCHANGE PROPERTY SERVICES LTD","4331388","http://opencorporates.com/companies/gb/4331388",""
"London Borough of Redbridge","http://opendatacommunities.org/doc/london-borough-council/redbridge","6BSOCIALSERV","Social Services","6CCHILLOOKED","Children Looked After","REV","Revenue","R2132","CLAFH - Asylum Seekers Non Grant Funded","06-TRANSFER","Transfer Payments","06B","Social Services Clients","7055","Habitual Residents","3190034","201203",16/05/2011 00:00:00,797.14,"47846","Letting Agents","REDACTED DATA","XCHANGE PROPERTY SERVICES LTD","4331388","http://opencorporates.com/companies/gb/4331388",""
"London Borough of Redbridge","http://opendatacommunities.org/doc/london-borough-council/redbridge","6BSOCIALSERV","Social Services","6CASYLUMSEEK","Asylum Seekers","REV","Revenue","R2128","CLAFH - Leaving Care Asylum Seekers","06-TRANSFER","Transfer Payments","06B","Social Services Clients","7051","Asylum Seekers","3190040","201203",17/06/2011 00:00:00,771.43,"47846","Letting Agents","REDACTED DATA","XCHANGE PROPERTY SERVICES LTD","4331388","http://opencorporates.com/companies/gb/4331388",""
"London Borough of Redbridge","http://opendatacommunities.org/doc/london-borough-council/redbridge","6BSOCIALSERV","Social Services","6CASYLUMSEEK","Asylum Seekers","REV","Revenue","R2128","CLAFH - Leaving Care Asylum Seekers","06-TRANSFER","Transfer Payments","06B","Social Services Clients","7051","Asylum Seekers","3190041","201203",17/06/2011 00:00:00,771.43,"47846","Letting Agents","REDACTED DATA","XCHANGE PROPERTY SERVICES LTD","4331388","http://opencorporates.com/companies/gb/4331388",""
"London Borough of Redbridge","http://opendatacommunities.org/doc/london-borough-council/redbridge","6BSOCIALSERV","Social Services","6CASYLUMSEEK","Asylum Seekers","REV","Revenue","R2128","CLAFH - Leaving Care Asylum Seekers","06-TRANSFER","Transfer Payments","06B","Social Services Clients","7051","Asylum Seekers","3190059","201203",17/06/2011 00:00:00,771.43,"47846","Letting Agents","REDACTED DATA","XCHANGE PROPERTY SERVICES LTD","4331388","http://opencorporates.com/companies/gb/4331388",""
"London Borough of Redbridge","http://opendatacommunities.org/doc/london-borough-council/redbridge","6BSOCIALSERV","Social Services","6CASYLUMSEEK","Asylum Seekers","REV","Revenue","R2128","CLAFH - Leaving Care Asylum Seekers","06-TRANSFER","Transfer Payments","06B","Social Services Clients","7051","Asylum Seekers","3190049","201203",17/06/2011 00:00:00,771.43,"47846","Letting Agents","REDACTED DATA","XCHANGE PROPERTY SERVICES LTD","4331388","http://opencorporates.com/companies/gb/4331388",""
"London Borough of Redbridge","http://opendatacommunities.org/doc/london-borough-council/redbridge","6BSOCIALSERV","Social Services","6CASYLUMSEEK","Asylum Seekers","REV","Revenue","R2129","CLAFH - Unaccompanied Asylum Seekers","06-TRANSFER","Transfer Payments","06B","Social Services Clients","7051","Asylum Seekers","3190027","201203",17/06/2011 00:00:00,771.43,"47846","Letting Agents","REDACTED DATA","XCHANGE PROPERTY SERVICES LTD","4331388","http://opencorporates.com/companies/gb/4331388",""
"London Borough of Redbridge","http://opendatacommunities.org/doc/london-borough-council/redbridge","6BSOCIALSERV","Social Services","6CCHILLOOKED","Children Looked After","REV","Revenue","R2132","CLAFH - Asylum Seekers Non Grant Funded","06-TRANSFER","Transfer Payments","06B","Social Services Clients","7055","Habitual Residents","3190030","201203",17/06/2011 00:00:00,771.43,"47846","Letting Agents","REDACTED DATA","XCHANGE PROPERTY SERVICES LTD","4331388","http://opencorporates.com/companies/gb/4331388",""
"London Borough of Redbridge","http://opendatacommunities.org/doc/london-borough-council/redbridge","6BSOCIALSERV","Social Services","6CCHILLOOKED","Children Looked After","REV","Revenue","R2132","CLAFH - Asylum Seekers Non Grant Funded","06-TRANSFER","Transfer Payments","06B","Social Services Clients","7055","Habitual Residents","3190031","201203",17/06/2011 00:00:00,771.43,"47846","Letting Agents","REDACTED DATA","XCHANGE PROPERTY SERVICES LTD","4331388","http://opencorporates.com/companies/gb/4331388",""
"London Borough of Redbridge","http://opendatacommunities.org/doc/london-borough-council/redbridge","6BSOCIALSERV","Social Services","6CCHILLOOKED","Children Looked After","REV","Revenue","R2132","CLAFH - Asylum Seekers Non Grant Funded","06-TRANSFER","Transfer Payments","06B","Social Services Clients","7055","Habitual Residents","3190036","201203",17/06/2011 00:00:00,771.43,"47846","Letting Agents","REDACTED DATA","XCHANGE PROPERTY SERVICES LTD","4331388","http://opencorporates.com/companies/gb/4331388",""
"London Borough of Redbridge","http://opendatacommunities.org/doc/london-borough-council/redbridge","6BSOCIALSERV","Social Services","6CCHILLOOKED","Children Looked After","REV","Revenue","R2132","CLAFH - Asylum Seekers Non Grant Funded","06-TRANSFER","Transfer Payments","06B","Social Services Clients","7055","Habitual Residents","3190038","201203",17/06/2011 00:00:00,771.43,"47846","Letting Agents","REDACTED DATA","XCHANGE PROPERTY SERVICES LTD","4331388","http://opencorporates.com/companies/gb/4331388",""
"London Borough of Redbridge","http://opendatacommunities.org/doc/london-borough-council/redbridge","6BSOCIALSERV","Social Services","6CCHILLOOKED","Children Looked After","REV","Revenue","R2132","CLAFH - Asylum Seekers Non Grant Funded","06-TRANSFER","Transfer Payments","06B","Social Services Clients","7055","Habitual Residents","3190028","201203",17/06/2011 00:00:00,771.43,"47846","Letting Agents","REDACTED DATA","XCHANGE PROPERTY SERVICES LTD","4331388","http://opencorporates.com/companies/gb/4331388",""
"London Borough of Redbridge","http://opendatacommunities.org/doc/london-borough-council/redbridge","6BSOCIALSERV","Social Services","6CASYLUMSEEK","Asylum Seekers","REV","Revenue","R2128","CLAFH - Leaving Care Asylum Seekers","06-TRANSFER","Transfer Payments","06B","Social Services Clients","7051","Asylum Seekers","3190043","201203",17/06/2011 00:00:00,557.14,"47846","Letting Agents","REDACTED DATA","XCHANGE PROPERTY SERVICES LTD","4331388","http://opencorporates.com/companies/gb/4331388",""
"London Borough of Redbridge","http://opendatacommunities.org/doc/london-borough-council/redbridge","6BSOCIALSERV","Social Services","6CCHILLOOKED","Children Looked After","REV","Revenue","R2127","CLAFH - Fostering and Adoption","05-THIRD","Third Party Payments","05H","Private contractors","6917","Fostering Costs - Agency","60150308","201203",14/06/2011 00:00:00,3077.86,"1880","Adoption and Fostering","REDACTED DATA","XCEL 2000 FOSTERCARE SERVICES LTD","4091437","http://opencorporates.com/companies/gb/4091437",""
"London Borough of Redbridge","http://opendatacommunities.org/doc/london-borough-council/redbridge","3BLEACENTFND","LEA Centrally Held School Funds","3CASSURACCES","Assuring Access to Schools","REV","Revenue","R3290","Mus Sch - Delegated","04-SUPPLIES","Supplies And Services","04A","Equipment, furniture and materials","5515","Equipment for Extended Schools","60149013","201203",17/03/2011 00:00:00,4695,"52510","Musical Instruments & Sheet Music","REDACTED DATA","WW&R LTD T/A WOOD WIND AND REED","7383207","http://opencorporates.com/companies/gb/7383207","386058230"
"London Borough of Redbridge","http://opendatacommunities.org/doc/london-borough-council/redbridge","3BOPTIONHLDG","Optional Holding Accounts","3CYOUTH","Youth Service","REV","Revenue","R3371","LBR Costs","05-THIRD","Third Party Payments","05H","Private contractors","6901","Secure Accommodation","60150112","201203",07/06/2011 00:00:00,952,"1266","Accommodation Agencies - Residential","REDACTED DATA","WRIXON CARE","3440357","http://opencorporates.com/companies/gb/3440357","732278435"
"London Borough of Redbridge","http://opendatacommunities.org/doc/london-borough-council/redbridge","3BOPTIONHLDG","Optional Holding Accounts","3CYOUTH","Youth Service","REV","Revenue","R3371","LBR Costs","05-THIRD","Third Party Payments","05H","Private contractors","6901","Secure Accommodation","60150114","201203",07/06/2011 00:00:00,952,"1266","Accommodation Agencies - Residential","REDACTED DATA","WRIXON CARE","3440357","http://opencorporates.com/companies/gb/3440357","732278435"
"London Borough of Redbridge","http://opendatacommunities.org/doc/london-borough-council/redbridge","3BOPTIONHLDG","Optional Holding Accounts","3CYOUTH","Youth Service","REV","Revenue","R3371","LBR Costs","05-THIRD","Third Party Payments","05H","Private contractors","6901","Secure Accommodation","60150779","201203",16/06/2011 00:00:00,688,"1266","Accommodation Agencies - Residential","REDACTED DATA","WRIXON CARE","3440357","http://opencorporates.com/companies/gb/3440357","732278435"
"London Borough of Redbridge","http://opendatacommunities.org/doc/london-borough-council/redbridge","3BOPTIONHLDG","Optional Holding Accounts","3CYOUTH","Youth Service","REV","Revenue","R3371","LBR Costs","05-THIRD","Third Party Payments","05H","Private contractors","6901","Secure Accommodation","60149747","201203",26/05/2011 00:00:00,688,"1266","Accommodation Agencies - Residential","REDACTED DATA","WRIXON CARE","3440357","http://opencorporates.com/companies/gb/3440357","732278435"
"London Borough of Redbridge","http://opendatacommunities.org/doc/london-borough-council/redbridge","3BOPTIONHLDG","Optional Holding Accounts","3CYOUTH","Youth Service","REV","Revenue","R3371","LBR Costs","05-THIRD","Third Party Payments","05H","Private contractors","6901","Secure Accommodation","60150113","201203",02/06/2011 00:00:00,648.5,"1266","Accommodation Agencies - Residential","REDACTED DATA","WRIXON CARE","3440357","http://opencorporates.com/companies/gb/3440357","732278435"
"London Borough of Redbridge","http://opendatacommunities.org/doc/london-borough-council/redbridge","3BOPTIONHLDG","Optional Holding Accounts","3CYOUTH","Youth Service","REV","Revenue","R3371","LBR Costs","05-THIRD","Third Party Payments","05H","Private contractors","6901","Secure Accommodation","60150136","201203",02/06/2011 00:00:00,619,"1266","Accommodation Agencies - Residential","REDACTED DATA","WRIXON CARE","3440357","http://opencorporates.com/companies/gb/3440357","732278435"
"London Borough of Redbridge","http://opendatacommunities.org/doc/london-borough-council/redbridge","3BLEACENTFND","LEA Centrally Held School Funds","3CSUPPORTSEN","Supporting Special Education Needs","REV","Revenue","R3021","SEN Commissioning","02-PREMISES","Premises","02C","Rents","4120","Rents","60150246","201203",24/06/2011 00:00:00,5753,"53716","Office Rental","REDACTED DATA","WORKSPACE MANAGEMENT LIMITED","2041612","http://opencorporates.com/companies/gb/2041612","653361443"
"London Borough of Redbridge","http://opendatacommunities.org/doc/london-borough-council/redbridge","2BCULTUR&REL","Cultural & Related Services","2CREC&SPORT","Recreation & Sport","REV","Revenue","R6999","Leisure Client","02-PREMISES","Premises","02C","Rents","4120","Rents","60150343","201203",24/06/2011 00:00:00,3097.25,"53716","Office Rental","REDACTED DATA","WORKSPACE MANAGEMENT LIMITED","2041612","http://opencorporates.com/companies/gb/2041612","653361443"
"London Borough of Redbridge","http://opendatacommunities.org/doc/london-borough-council/redbridge","6BADULTSOCIA","Adult Social Care","6COLDINCMENT","Older People (65 or over) incl. Older Mentally Ill","REV","Revenue","R4385","OP Nursing","05-THIRD","Third Party Payments","05H","Private contractors","6909","Nursing Homes","90233587","201203",25/05/2011 00:00:00,4306.51,"53350","Nursing Homes","REDACTED DATA","WOODLANDS NURSING HOME","",,""
"London Borough of Redbridge","http://opendatacommunities.org/doc/london-borough-council/redbridge","6BADULTSOCIA","Adult Social Care","6COLDINCMENT","Older People (65 or over) incl. Older Mentally Ill","REV","Revenue","R4378","OP - Care Purchasing","05-THIRD","Third Party Payments","05F","Voluntary associations","6802","Residential Homes","90233573","201203",25/05/2011 00:00:00,2141.2,"53350","Nursing Homes","REDACTED DATA","WOODLANDS NURSING HOME","",,""
"London Borough of Redbridge","http://opendatacommunities.org/doc/london-borough-council/redbridge","6BADULTSOCIA","Adult Social Care","6COLDINCMENT","Older People (65 or over) incl. Older Mentally Ill","REV","Revenue","R4385","OP Nursing","05-THIRD","Third Party Payments","05H","Private contractors","6909","Nursing Homes","90233576","201203",25/05/2011 00:00:00,2117.08,"53350","Nursing Homes","REDACTED DATA","WOODLANDS NURSING HOME","",,""
"London Borough of Redbridge","http://opendatacommunities.org/doc/london-borough-council/redbridge","6BADULTSOCIA","Adult Social Care","6COLDINCMENT","Older People (65 or over) incl. Older Mentally Ill","REV","Revenue","R4385","OP Nursing","05-THIRD","Third Party Payments","05H","Private contractors","6909","Nursing Homes","90233581","201203",25/05/2011 00:00:00,2051,"53350","Nursing Homes","REDACTED DATA","WOODLANDS NURSING HOME","",,""
"London Borough of Redbridge","http://opendatacommunities.org/doc/london-borough-council/redbridge","6BADULTSOCIA","Adult Social Care","6COLDINCMENT","Older People (65 or over) incl. Older Mentally Ill","REV","Revenue","R4385","OP Nursing","05-THIRD","Third Party Payments","05H","Private contractors","6909","Nursing Homes","90233580","201203",25/05/2011 00:00:00,2000.76,"53350","Nursing Homes","REDACTED DATA","WOODLANDS NURSING HOME","",,""
"London Borough of Redbridge","http://opendatacommunities.org/doc/london-borough-council/redbridge","6BADULTSOCIA","Adult Social Care","6COLDINCMENT","Older People (65 or over) incl. Older Mentally Ill","REV","Revenue","R4385","OP Nursing","05-THIRD","Third Party Payments","05H","Private contractors","6909","Nursing Homes","90233569","201203",25/05/2011 00:00:00,1999.36,"53350","Nursing Homes","REDACTED DATA","WOODLANDS NURSING HOME","",,""
"London Borough of Redbridge","http://opendatacommunities.org/doc/london-borough-council/redbridge","6BADULTSOCIA","Adult Social Care","6COLDINCMENT","Older People (65 or over) incl. Older Mentally Ill","REV","Revenue","R4385","OP Nursing","05-THIRD","Third Party Payments","05H","Private contractors","6909","Nursing Homes","90233584","201203",25/05/2011 00:00:00,1976.76,"53350","Nursing Homes","REDACTED DATA","WOODLANDS NURSING HOME","",,""
"London Borough of Redbridge","http://opendatacommunities.org/doc/london-borough-council/redbridge","6BADULTSOCIA","Adult Social Care","6COLDINCMENT","Older People (65 or over) incl. Older Mentally Ill","REV","Revenue","R4385","OP Nursing","05-THIRD","Third Party Payments","05H","Private contractors","6909","Nursing Homes","90233578","201203",25/05/2011 00:00:00,1976.76,"53350","Nursing Homes","REDACTED DATA","WOODLANDS NURSING HOME","",,""
"London Borough of Redbridge","http://opendatacommunities.org/doc/london-borough-council/redbridge","6BADULTSOCIA","Adult Social Care","6COLDINCMENT","Older People (65 or over) incl. Older Mentally Ill","REV","Revenue","R4385","OP Nursing","05-THIRD","Third Party Payments","05H","Private contractors","6909","Nursing Homes","90233568","201203",25/05/2011 00:00:00,1976.76,"53350","Nursing Homes","REDACTED DATA","WOODLANDS NURSING HOME","",,""
"London Borough of Redbridge","http://opendatacommunities.org/doc/london-borough-council/redbridge","6BADULTSOCIA","Adult Social Care","6COLDINCMENT","Older People (65 or over) incl. Older Mentally Ill","REV","Revenue","R4385","OP Nursing","05-THIRD","Third Party Payments","05H","Private contractors","6909","Nursing Homes","90233585","201203",25/05/2011 00:00:00,1976.76,"53350","Nursing Homes","REDACTED DATA","WOODLANDS NURSING HOME","",,""
"London Borough of Redbridge","http://opendatacommunities.org/doc/london-borough-council/redbridge","6BADULTSOCIA","Adult Social Care","6COLDINCMENT","Older People (65 or over) incl. Older Mentally Ill","REV","Revenue","R4385","OP Nursing","05-THIRD","Third Party Payments","05H","Private contractors","6909","Nursing Homes","90233586","201203",25/05/2011 00:00:00,1972.92,"53350","Nursing Homes","REDACTED DATA","WOODLANDS NURSING HOME","",,""
"London Borough of Redbridge","http://opendatacommunities.org/doc/london-borough-council/redbridge","6BADULTSOCIA","Adult Social Care","6COLDINCMENT","Older People (65 or over) incl. Older Mentally Ill","REV","Revenue","R4385","OP Nursing","05-THIRD","Third Party Payments","05H","Private contractors","6909","Nursing Homes","90233577","201203",25/05/2011 00:00:00,1955.36,"53350","Nursing Homes","REDACTED DATA","WOODLANDS NURSING HOME","",,""
"London Borough of Redbridge","http://opendatacommunities.org/doc/london-borough-council/redbridge","6BADULTSOCIA","Adult Social Care","6COLDINCMENT","Older People (65 or over) incl. Older Mentally Ill","REV","Revenue","R4385","OP Nursing","05-THIRD","Third Party Payments","05H","Private contractors","6909","Nursing Homes","90233570","201203",25/05/2011 00:00:00,1955.36,"53350","Nursing Homes","REDACTED DATA","WOODLANDS NURSING HOME","",,""
"London Borough of Redbridge","http://opendatacommunities.org/doc/london-borough-council/redbridge","6BADULTSOCIA","Adult Social Care","6COLDINCMENT","Older People (65 or over) incl. Older Mentally Ill","REV","Revenue","R4378","OP - Care Purchasing","05-THIRD","Third Party Payments","05F","Voluntary associations","6802","Residential Homes","90233572","201203",25/05/2011 00:00:00,1898.8,"53350","Nursing Homes","REDACTED DATA","WOODLANDS NURSING HOME","",,""
"London Borough of Redbridge","http://opendatacommunities.org/doc/london-borough-council/redbridge","6BADULTSOCIA","Adult Social Care","6COLDINCMENT","Older People (65 or over) incl. Older Mentally Ill","REV","Revenue","R4378","OP - Care Purchasing","05-THIRD","Third Party Payments","05F","Voluntary associations","6802","Residential Homes","90233579","201203",25/05/2011 00:00:00,1898.8,"53350","Nursing Homes","REDACTED DATA","WOODLANDS NURSING HOME","",,""
"London Borough of Redbridge","http://opendatacommunities.org/doc/london-borough-council/redbridge","6BADULTSOCIA","Adult Social Care","6COLDINCMENT","Older People (65 or over) incl. Older Mentally Ill","REV","Revenue","R4385","OP Nursing","05-THIRD","Third Party Payments","05H","Private contractors","6909","Nursing Homes","90233571","201203",25/05/2011 00:00:00,1841.2,"53350","Nursing Homes","REDACTED DATA","WOODLANDS NURSING HOME","",,""
"London Borough of Redbridge","http://opendatacommunities.org/doc/london-borough-council/redbridge","6BADULTSOCIA","Adult Social Care","6COLDINCMENT","Older People (65 or over) incl. Older Mentally Ill","REV","Revenue","R4385","OP Nursing","05-THIRD","Third Party Payments","05H","Private contractors","6909","Nursing Homes","90233587","201203",25/05/2011 00:00:00,947.24,"53350","Nursing Homes","REDACTED DATA","WOODLANDS NURSING HOME","",,""
"London Borough of Redbridge","http://opendatacommunities.org/doc/london-borough-council/redbridge","6BADULTSOCIA","Adult Social Care","6COLDINCMENT","Older People (65 or over) incl. Older Mentally Ill","REV","Revenue","R4385","OP Nursing","05-THIRD","Third Party Payments","05H","Private contractors","6909","Nursing Homes","90233571","201203",25/05/2011 00:00:00,598.4,"53350","Nursing Homes","REDACTED DATA","WOODLANDS NURSING HOME","",,""
"London Borough of Redbridge","http://opendatacommunities.org/doc/london-borough-council/redbridge","6BADULTSOCIA","Adult Social Care","6COLDINCMENT","Older People (65 or over) incl. Older Mentally Ill","REV","Revenue","R4385","OP Nursing","05-THIRD","Third Party Payments","05H","Private contractors","6909","Nursing Homes","90233577","201203",25/05/2011 00:00:00,434.8,"53350","Nursing Homes","REDACTED DATA","WOODLANDS NURSING HOME","",,""
"London Borough of Redbridge","http://opendatacommunities.org/doc/london-borough-council/redbridge","6BADULTSOCIA","Adult Social Care","6COLDINCMENT","Older People (65 or over) incl. Older Mentally Ill","REV","Revenue","R4385","OP Nursing","05-THIRD","Third Party Payments","05H","Private contractors","6909","Nursing Homes","90233584","201203",25/05/2011 00:00:00,434.8,"53350","Nursing Homes","REDACTED DATA","WOODLANDS NURSING HOME","",,""
"London Borough of Redbridge","http://opendatacommunities.org/doc/london-borough-council/redbridge","6BADULTSOCIA","Adult Social Care","6COLDINCMENT","Older People (65 or over) incl. Older Mentally Ill","REV","Revenue","R4385","OP Nursing","05-THIRD","Third Party Payments","05H","Private contractors","6909","Nursing Homes","90233586","201203",25/05/2011 00:00:00,434.8,"53350","Nursing Homes","REDACTED DATA","WOODLANDS NURSING HOME","",,""
"London Borough of Redbridge","http://opendatacommunities.org/doc/london-borough-council/redbridge","6BADULTSOCIA","Adult Social Care","6COLDINCMENT","Older People (65 or over) incl. Older Mentally Ill","REV","Revenue","R4385","OP Nursing","05-THIRD","Third Party Payments","05H","Private contractors","6909","Nursing Homes","90233578","201203",25/05/2011 00:00:00,434.8,"53350","Nursing Homes","REDACTED DATA","WOODLANDS NURSING HOME","",,""
"London Borough of Redbridge","http://opendatacommunities.org/doc/london-borough-council/redbridge","6BADULTSOCIA","Adult Social Care","6COLDINCMENT","Older People (65 or over) incl. Older Mentally Ill","REV","Revenue","R4385","OP Nursing","05-THIRD","Third Party Payments","05H","Private contractors","6909","Nursing Homes","90233580","201203",25/05/2011 00:00:00,434.8,"53350","Nursing Homes","REDACTED DATA","WOODLANDS NURSING HOME","",,""
"London Borough of Redbridge","http://opendatacommunities.org/doc/london-borough-council/redbridge","6BADULTSOCIA","Adult Social Care","6COLDINCMENT","Older People (65 or over) incl. Older Mentally Ill","REV","Revenue","R4385","OP Nursing","05-THIRD","Third Party Payments","05H","Private contractors","6909","Nursing Homes","90233570","201203",25/05/2011 00:00:00,434.8,"53350","Nursing Homes","REDACTED DATA","WOODLANDS NURSING HOME","",,""
"London Borough of Redbridge","http://opendatacommunities.org/doc/london-borough-council/redbridge","6BADULTSOCIA","Adult Social Care","6COLDINCMENT","Older People (65 or over) incl. Older Mentally Ill","REV","Revenue","R4385","OP Nursing","05-THIRD","Third Party Payments","05H","Private contractors","6909","Nursing Homes","90233568","201203",25/05/2011 00:00:00,434.8,"53350","Nursing Homes","REDACTED DATA","WOODLANDS NURSING HOME","",,""
"London Borough of Redbridge","http://opendatacommunities.org/doc/london-borough-council/redbridge","6BADULTSOCIA","Adult Social Care","6COLDINCMENT","Older People (65 or over) incl. Older Mentally Ill","REV","Revenue","R4385","OP Nursing","05-THIRD","Third Party Payments","05H","Private contractors","6909","Nursing Homes","90233585","201203",25/05/2011 00:00:00,434.8,"53350","Nursing Homes","REDACTED DATA","WOODLANDS NURSING HOME","",,""
"London Borough of Redbridge","http://opendatacommunities.org/doc/london-borough-council/redbridge","6BADULTSOCIA","Adult Social Care","6COLDINCMENT","Older People (65 or over) incl. Older Mentally Ill","REV","Revenue","R4385","OP Nursing","05-THIRD","Third Party Payments","05H","Private contractors","6909","Nursing Homes","90233569","201203",25/05/2011 00:00:00,434.8,"53350","Nursing Homes","REDACTED DATA","WOODLANDS NURSING HOME","",,""
"London Borough of Redbridge","http://opendatacommunities.org/doc/london-borough-council/redbridge","6BADULTSOCIA","Adult Social Care","6COLDINCMENT","Older People (65 or over) incl. Older Mentally Ill","REV","Revenue","R4385","OP Nursing","05-THIRD","Third Party Payments","05H","Private contractors","6909","Nursing Homes","90233581","201203",25/05/2011 00:00:00,434.8,"53350","Nursing Homes","REDACTED DATA","WOODLANDS NURSING HOME","",,""
"London Borough of Redbridge","http://opendatacommunities.org/doc/london-borough-council/redbridge","6BADULTSOCIA","Adult Social Care","6COLDINCMENT","Older People (65 or over) incl. Older Mentally Ill","REV","Revenue","R4385","OP Nursing","05-THIRD","Third Party Payments","05H","Private contractors","6909","Nursing Homes","90233576","201203",25/05/2011 00:00:00,434.8,"53350","Nursing Homes","REDACTED DATA","WOODLANDS NURSING HOME","",,""
"London Borough of Redbridge","http://opendatacommunities.org/doc/london-borough-council/redbridge","6BADULTSOCIA","Adult Social Care","6COLDINCMENT","Older People (65 or over) incl. Older Mentally Ill","REV","Revenue","R4385","OP Nursing","05-THIRD","Third Party Payments","05H","Private contractors","6909","Nursing Homes","90233586","201203",25/05/2011 00:00:00,6.58,"53350","Nursing Homes","REDACTED DATA","WOODLANDS NURSING HOME","",,""
"London Borough of Redbridge","http://opendatacommunities.org/doc/london-borough-council/redbridge","6BADULTSOCIA","Adult Social Care","6COLDINCMENT","Older People (65 or over) incl. Older Mentally Ill","REV","Revenue","R4385","OP Nursing","05-THIRD","Third Party Payments","05H","Private contractors","6909","Nursing Homes","90233577","201203",25/05/2011 00:00:00,-34.23,"53350","Nursing Homes","REDACTED DATA","WOODLANDS NURSING HOME","",,""
"London Borough of Redbridge","http://opendatacommunities.org/doc/london-borough-council/redbridge","6BADULTSOCIA","Adult Social Care","6COLDINCMENT","Older People (65 or over) incl. Older Mentally Ill","REV","Revenue","R4385","OP Nursing","05-THIRD","Third Party Payments","05H","Private contractors","6909","Nursing Homes","90233580","201203",25/05/2011 00:00:00,-46.34,"53350","Nursing Homes","REDACTED DATA","WOODLANDS NURSING HOME","",,""
"London Borough of Redbridge","http://opendatacommunities.org/doc/london-borough-council/redbridge","6BADULTSOCIA","Adult Social Care","6COLDINCMENT","Older People (65 or over) incl. Older Mentally Ill","REV","Revenue","R4385","OP Nursing","09-INCOME","Income","09C","Customer & Client Receipts","8557","Nursing Home Charges","90233577","201203",25/05/2011 00:00:00,-434.8,"53350","Nursing Homes","REDACTED DATA","WOODLANDS NURSING HOME","",,""
"London Borough of Redbridge","http://opendatacommunities.org/doc/london-borough-council/redbridge","6BADULTSOCIA","Adult Social Care","6COLDINCMENT","Older People (65 or over) incl. Older Mentally Ill","REV","Revenue","R4385","OP Nursing","09-INCOME","Income","09C","Customer & Client Receipts","8557","Nursing Home Charges","90233584","201203",25/05/2011 00:00:00,-434.8,"53350","Nursing Homes","REDACTED DATA","WOODLANDS NURSING HOME","",,""
"London Borough of Redbridge","http://opendatacommunities.org/doc/london-borough-council/redbridge","6BADULTSOCIA","Adult Social Care","6COLDINCMENT","Older People (65 or over) incl. Older Mentally Ill","REV","Revenue","R4385","OP Nursing","09-INCOME","Income","09C","Customer & Client Receipts","8557","Nursing Home Charges","90233586","201203",25/05/2011 00:00:00,-434.8,"53350","Nursing Homes","REDACTED DATA","WOODLANDS NURSING HOME","",,""
"London Borough of Redbridge","http://opendatacommunities.org/doc/london-borough-council/redbridge","6BADULTSOCIA","Adult Social Care","6COLDINCMENT","Older People (65 or over) incl. Older Mentally Ill","REV","Revenue","R4385","OP Nursing","09-INCOME","Income","09C","Customer & Client Receipts","8557","Nursing Home Charges","90233578","201203",25/05/2011 00:00:00,-434.8,"53350","Nursing Homes","REDACTED DATA","WOODLANDS NURSING HOME","",,""
"London Borough of Redbridge","http://opendatacommunities.org/doc/london-borough-council/redbridge","6BADULTSOCIA","Adult Social Care","6COLDINCMENT","Older People (65 or over) incl. Older Mentally Ill","REV","Revenue","R4385","OP Nursing","09-INCOME","Income","09C","Customer & Client Receipts","8557","Nursing Home Charges","90233580","201203",25/05/2011 00:00:00,-434.8,"53350","Nursing Homes","REDACTED DATA","WOODLANDS NURSING HOME","",,""
"London Borough of Redbridge","http://opendatacommunities.org/doc/london-borough-council/redbridge","6BADULTSOCIA","Adult Social Care","6COLDINCMENT","Older People (65 or over) incl. Older Mentally Ill","REV","Revenue","R4385","OP Nursing","09-INCOME","Income","09C","Customer & Client Receipts","8557","Nursing Home Charges","90233570","201203",25/05/2011 00:00:00,-434.8,"53350","Nursing Homes","REDACTED DATA","WOODLANDS NURSING HOME","",,""
"London Borough of Redbridge","http://opendatacommunities.org/doc/london-borough-council/redbridge","6BADULTSOCIA","Adult Social Care","6COLDINCMENT","Older People (65 or over) incl. Older Mentally Ill","REV","Revenue","R4385","OP Nursing","09-INCOME","Income","09C","Customer & Client Receipts","8557","Nursing Home Charges","90233568","201203",25/05/2011 00:00:00,-434.8,"53350","Nursing Homes","REDACTED DATA","WOODLANDS NURSING HOME","",,""
"London Borough of Redbridge","http://opendatacommunities.org/doc/london-borough-council/redbridge","6BADULTSOCIA","Adult Social Care","6COLDINCMENT","Older People (65 or over) incl. Older Mentally Ill","REV","Revenue","R4385","OP Nursing","09-INCOME","Income","09C","Customer & Client Receipts","8557","Nursing Home Charges","90233585","201203",25/05/2011 00:00:00,-434.8,"53350","Nursing Homes","REDACTED DATA","WOODLANDS NURSING HOME","",,""
"London Borough of Redbridge","http://opendatacommunities.org/doc/london-borough-council/redbridge","6BADULTSOCIA","Adult Social Care","6COLDINCMENT","Older People (65 or over) incl. Older Mentally Ill","REV","Revenue","R4385","OP Nursing","09-INCOME","Income","09C","Customer & Client Receipts","8557","Nursing Home Charges","90233569","201203",25/05/2011 00:00:00,-434.8,"53350","Nursing Homes","REDACTED DATA","WOODLANDS NURSING HOME","",,""
"London Borough of Redbridge","http://opendatacommunities.org/doc/london-borough-council/redbridge","6BADULTSOCIA","Adult Social Care","6COLDINCMENT","Older People (65 or over) incl. Older Mentally Ill","REV","Revenue","R4385","OP Nursing","09-INCOME","Income","09C","Customer & Client Receipts","8557","Nursing Home Charges","90233581","201203",25/05/2011 00:00:00,-434.8,"53350","Nursing Homes","REDACTED DATA","WOODLANDS NURSING HOME","",,""
"London Borough of Redbridge","http://opendatacommunities.org/doc/london-borough-council/redbridge","6BADULTSOCIA","Adult Social Care","6COLDINCMENT","Older People (65 or over) incl. Older Mentally Ill","REV","Revenue","R4385","OP Nursing","09-INCOME","Income","09C","Customer & Client Receipts","8557","Nursing Home Charges","90233576","201203",25/05/2011 00:00:00,-434.8,"53350","Nursing Homes","REDACTED DATA","WOODLANDS NURSING HOME","",,""
"London Borough of Redbridge","http://opendatacommunities.org/doc/london-borough-council/redbridge","6BADULTSOCIA","Adult Social Care","6COLDINCMENT","Older People (65 or over) incl. Older Mentally Ill","REV","Revenue","R4378","OP - Care Purchasing","09-INCOME","Income","09C","Customer & Client Receipts","8555","Accommodation Charges","90233579","201203",25/05/2011 00:00:00,-455,"53350","Nursing Homes","REDACTED DATA","WOODLANDS NURSING HOME","",,""
"London Borough of Redbridge","http://opendatacommunities.org/doc/london-borough-council/redbridge","6BADULTSOCIA","Adult Social Care","6COLDINCMENT","Older People (65 or over) incl. Older Mentally Ill","REV","Revenue","R4385","OP Nursing","09-INCOME","Income","09C","Customer & Client Receipts","8557","Nursing Home Charges","90233571","201203",25/05/2011 00:00:00,-459,"53350","Nursing Homes","REDACTED DATA","WOODLANDS NURSING HOME","",,""
"London Borough of Redbridge","http://opendatacommunities.org/doc/london-borough-council/redbridge","6BADULTSOCIA","Adult Social Care","6COLDINCMENT","Older People (65 or over) incl. Older Mentally Ill","REV","Revenue","R4385","OP Nursing","09-INCOME","Income","09C","Customer & Client Receipts","8557","Nursing Home Charges","90233570","201203",25/05/2011 00:00:00,-459,"53350","Nursing Homes","REDACTED DATA","WOODLANDS NURSING HOME","",,""
"London Borough of Redbridge","http://opendatacommunities.org/doc/london-borough-council/redbridge","6BADULTSOCIA","Adult Social Care","6COLDINCMENT","Older People (65 or over) incl. Older Mentally Ill","REV","Revenue","R4385","OP Nursing","09-INCOME","Income","09C","Customer & Client Receipts","8557","Nursing Home Charges","90233585","201203",25/05/2011 00:00:00,-459,"53350","Nursing Homes","REDACTED DATA","WOODLANDS NURSING HOME","",,""
"London Borough of Redbridge","http://opendatacommunities.org/doc/london-borough-council/redbridge","6BADULTSOCIA","Adult Social Care","6COLDINCMENT","Older People (65 or over) incl. Older Mentally Ill","REV","Revenue","R4385","OP Nursing","09-INCOME","Income","09C","Customer & Client Receipts","8557","Nursing Home Charges","90233568","201203",25/05/2011 00:00:00,-459,"53350","Nursing Homes","REDACTED DATA","WOODLANDS NURSING HOME","",,""
"London Borough of Redbridge","http://opendatacommunities.org/doc/london-borough-council/redbridge","6BADULTSOCIA","Adult Social Care","6COLDINCMENT","Older People (65 or over) incl. Older Mentally Ill","REV","Revenue","R4385","OP Nursing","09-INCOME","Income","09C","Customer & Client Receipts","8557","Nursing Home Charges","90233580","201203",25/05/2011 00:00:00,-462.88,"53350","Nursing Homes","REDACTED DATA","WOODLANDS NURSING HOME","",,""
"London Borough of Redbridge","http://opendatacommunities.org/doc/london-borough-council/redbridge","6BADULTSOCIA","Adult Social Care","6COLDINCMENT","Older People (65 or over) incl. Older Mentally Ill","REV","Revenue","R4385","OP Nursing","09-INCOME","Income","09C","Customer & Client Receipts","8557","Nursing Home Charges","90233578","201203",25/05/2011 00:00:00,-494.4,"53350","Nursing Homes","REDACTED DATA","WOODLANDS NURSING HOME","",,""
"London Borough of Redbridge","http://opendatacommunities.org/doc/london-borough-council/redbridge","6BADULTSOCIA","Adult Social Care","6COLDINCMENT","Older People (65 or over) incl. Older Mentally Ill","REV","Revenue","R4378","OP - Care Purchasing","09-INCOME","Income","09C","Customer & Client Receipts","8555","Accommodation Charges","90233572","201203",25/05/2011 00:00:00,-529.2,"53350","Nursing Homes","REDACTED DATA","WOODLANDS NURSING HOME","",,""
"London Borough of Redbridge","http://opendatacommunities.org/doc/london-borough-council/redbridge","6BADULTSOCIA","Adult Social Care","6COLDINCMENT","Older People (65 or over) incl. Older Mentally Ill","REV","Revenue","R4385","OP Nursing","09-INCOME","Income","09C","Customer & Client Receipts","8557","Nursing Home Charges","90233586","201203",25/05/2011 00:00:00,-581.32,"53350","Nursing Homes","REDACTED DATA","WOODLANDS NURSING HOME","",,""
"London Borough of Redbridge","http://opendatacommunities.org/doc/london-borough-council/redbridge","6BADULTSOCIA","Adult Social Care","6COLDINCMENT","Older People (65 or over) incl. Older Mentally Ill","REV","Revenue","R4385","OP Nursing","09-INCOME","Income","09C","Customer & Client Receipts","8557","Nursing Home Charges","90233571","201203",25/05/2011 00:00:00,-598.4,"53350","Nursing Homes","REDACTED DATA","WOODLANDS NURSING HOME","",,""
"London Borough of Redbridge","http://opendatacommunities.org/doc/london-borough-council/redbridge","6BADULTSOCIA","Adult Social Care","6COLDINCMENT","Older People (65 or over) incl. Older Mentally Ill","REV","Revenue","R4385","OP Nursing","09-INCOME","Income","09C","Customer & Client Receipts","8557","Nursing Home Charges","90233584","201203",25/05/2011 00:00:00,-602.6,"53350","Nursing Homes","REDACTED DATA","WOODLANDS NURSING HOME","",,""
"London Borough of Redbridge","http://opendatacommunities.org/doc/london-borough-council/redbridge","6BADULTSOCIA","Adult Social Care","6COLDINCMENT","Older People (65 or over) incl. Older Mentally Ill","REV","Revenue","R4385","OP Nursing","09-INCOME","Income","09C","Customer & Client Receipts","8557","Nursing Home Charges","90233577","201203",25/05/2011 00:00:00,-635.44,"53350","Nursing Homes","REDACTED DATA","WOODLANDS NURSING HOME","",,""
"London Borough of Redbridge","http://opendatacommunities.org/doc/london-borough-council/redbridge","6BADULTSOCIA","Adult Social Care","6COLDINCMENT","Older People (65 or over) incl. Older Mentally Ill","REV","Revenue","R4385","OP Nursing","09-INCOME","Income","09C","Customer & Client Receipts","8557","Nursing Home Charges","90233587","201203",25/05/2011 00:00:00,-947.24,"53350","Nursing Homes","REDACTED DATA","WOODLANDS NURSING HOME","",,""
"London Borough of Redbridge","http://opendatacommunities.org/doc/london-borough-council/redbridge","6BADULTSOCIA","Adult Social Care","6COLDINCMENT","Older People (65 or over) incl. Older Mentally Ill","REV","Revenue","R4385","OP Nursing","09-INCOME","Income","09C","Customer & Client Receipts","8557","Nursing Home Charges","90233587","201203",25/05/2011 00:00:00,-969.9,"53350","Nursing Homes","REDACTED DATA","WOODLANDS NURSING HOME","",,""
"London Borough of Redbridge","http://opendatacommunities.org/doc/london-borough-council/redbridge","6BADULTSOCIA","Adult Social Care","6COLDINCMENT","Older People (65 or over) incl. Older Mentally Ill","REV","Revenue","R4385","OP Nursing","05-THIRD","Third Party Payments","05H","Private contractors","6909","Nursing Homes","90233587","201203",25/05/2011 00:00:00,-1339.09,"53350","Nursing Homes","REDACTED DATA","WOODLANDS NURSING HOME","",,""
"London Borough of Redbridge","http://opendatacommunities.org/doc/london-borough-council/redbridge","3BNONSCHFUND","Non-School Funding","3CNONSCH","Non Schools","REV","Revenue","R3962","Early Years - 3 and 4 Year Olds","05-THIRD","Third Party Payments","05A","Independent units within the council","6517","Non-Maintained Schools","3188871","201203",21/05/2011 00:00:00,8898,"59760","Playgroups, Nurseries and Creches","REDACTED DATA","WOODFORD PRE-SCHOOL PLAYGROUP","",,""
"London Borough of Redbridge","http://opendatacommunities.org/doc/london-borough-council/redbridge","1BOTHEROPI&E","Other Operating Income & Expenditure","1CTRADSURDEF","Trading Account Surpluses & Deficits","REV","Revenue","R7207","Building Services","04-SUPPLIES","Supplies And Services","04H","Grants and subscriptions","5956","Subscriptions","60150108","201203",24/05/2011 00:00:00,1286.37,"45170","Information Services","REDACTED DATA","WOLTERS KLUWER (UK) LTD","450650","http://opencorporates.com/companies/gb/450650","710935745"
"London Borough of Redbridge","http://opendatacommunities.org/doc/london-borough-council/redbridge","1BOTHEROPI&E","Other Operating Income & Expenditure","1CTRADSURDEF","Trading Account Surpluses & Deficits","REV","Revenue","R9460","Human Resources misc","04-SUPPLIES","Supplies And Services","04H","Grants and subscriptions","5956","Subscriptions","60150108","201203",24/05/2011 00:00:00,350.83,"45170","Information Services","REDACTED DATA","WOLTERS KLUWER (UK) LTD","450650","http://opencorporates.com/companies/gb/450650","710935745"
"London Borough of Redbridge","http://opendatacommunities.org/doc/london-borough-council/redbridge","3BLEACENTFND","LEA Centrally Held School Funds","3CASSURACCES","Assuring Access to Schools","REV","Revenue","R3265","Drama Centre Del","01-EMPLOYEES","Employees","01A","Direct employee expenses","63","Child Theatre Works Add Hrs","60150881","201203",24/06/2011 00:00:00,540,"77630","Theatre Companies","REDACTED DATA","WIZARD STORIES","",,""
"London Borough of Redbridge","http://opendatacommunities.org/doc/london-borough-council/redbridge","3BLEACENTFND","LEA Centrally Held School Funds","3CASSURACCES","Assuring Access to Schools","REV","Revenue","R3265","Drama Centre Del","01-EMPLOYEES","Employees","01A","Direct employee expenses","63","Child Theatre Works Add Hrs","60150882","201203",24/06/2011 00:00:00,540,"77630","Theatre Companies","REDACTED DATA","WIZARD STORIES","",,""
"London Borough of Redbridge","http://opendatacommunities.org/doc/london-borough-council/redbridge","5BGFHOUSING","General Fund Housing","5CHOUMGTSUPP","Housing Management & Support Services","REV","Revenue","R5529","HAC Assessment","04-SUPPLIES","Supplies And Services","04K","Miscellaneous expenses","6282","Prevention & Procurement","70028592","201203",09/06/2011 00:00:00,850,"61896","Property & Estate Management","REDACTED DATA","WISE & COMPANY PROPERTY SERVICES","6464464","http://opencorporates.com/companies/gb/6464464",""
"London Borough of Redbridge","http://opendatacommunities.org/doc/london-borough-council/redbridge","5BGFHOUSING","General Fund Housing","5CHOUMGTSUPP","Housing Management & Support Services","REV","Revenue","R5529","HAC Assessment","04-SUPPLIES","Supplies And Services","04K","Miscellaneous expenses","6282","Prevention & Procurement","70028592","201203",09/06/2011 00:00:00,500,"61896","Property & Estate Management","REDACTED DATA","WISE & COMPANY PROPERTY SERVICES","6464464","http://opencorporates.com/companies/gb/6464464",""
"London Borough of Redbridge","http://opendatacommunities.org/doc/london-borough-council/redbridge","6BADULTSOCIA","Adult Social Care","6COLDINCMENT","Older People (65 or over) incl. Older Mentally Ill","REV","Revenue","R4378","OP - Care Purchasing","05-THIRD","Third Party Payments","05F","Voluntary associations","6802","Residential Homes","90233566","201203",25/05/2011 00:00:00,2194.56,"64710","Residential Care Homes","REDACTED DATA","WINTERTON HOUSE","",,""
"London Borough of Redbridge","http://opendatacommunities.org/doc/london-borough-council/redbridge","6BADULTSOCIA","Adult Social Care","6COLDINCMENT","Older People (65 or over) incl. Older Mentally Ill","REV","Revenue","R4378","OP - Care Purchasing","05-THIRD","Third Party Payments","05F","Voluntary associations","6802","Residential Homes","90233565","201203",25/05/2011 00:00:00,2141.2,"64710","Residential Care Homes","REDACTED DATA","WINTERTON HOUSE","",,""
"London Borough of Redbridge","http://opendatacommunities.org/doc/london-borough-council/redbridge","6BADULTSOCIA","Adult Social Care","6COLDINCMENT","Older People (65 or over) incl. Older Mentally Ill","REV","Revenue","R4378","OP - Care Purchasing","05-THIRD","Third Party Payments","05F","Voluntary associations","6802","Residential Homes","90233566","201203",25/05/2011 00:00:00,44,"64710","Residential Care Homes","REDACTED DATA","WINTERTON HOUSE","",,""
"London Borough of Redbridge","http://opendatacommunities.org/doc/london-borough-council/redbridge","6BADULTSOCIA","Adult Social Care","6COLDINCMENT","Older People (65 or over) incl. Older Mentally Ill","REV","Revenue","R4378","OP - Care Purchasing","09-INCOME","Income","09C","Customer & Client Receipts","8555","Accommodation Charges","90233566","201203",25/05/2011 00:00:00,-44,"64710","Residential Care Homes","REDACTED DATA","WINTERTON HOUSE","",,""
"London Borough of Redbridge","http://opendatacommunities.org/doc/london-borough-council/redbridge","6BADULTSOCIA","Adult Social Care","6COLDINCMENT","Older People (65 or over) incl. Older Mentally Ill","REV","Revenue","R4378","OP - Care Purchasing","09-INCOME","Income","09C","Customer & Client Receipts","8555","Accommodation Charges","90233565","201203",25/05/2011 00:00:00,-395.88,"64710","Residential Care Homes","REDACTED DATA","WINTERTON HOUSE","",,""
"London Borough of Redbridge","http://opendatacommunities.org/doc/london-borough-council/redbridge","6BADULTSOCIA","Adult Social Care","6COLDINCMENT","Older People (65 or over) incl. Older Mentally Ill","REV","Revenue","R4378","OP - Care Purchasing","09-INCOME","Income","09C","Customer & Client Receipts","8555","Accommodation Charges","90233566","201203",25/05/2011 00:00:00,-603.16,"64710","Residential Care Homes","REDACTED DATA","WINTERTON HOUSE","",,""
"London Borough of Redbridge","http://opendatacommunities.org/doc/london-borough-council/redbridge","3BNONSCHFUND","Non-School Funding","3CNONSCH","Non Schools","REV","Revenue","R3962","Early Years - 3 and 4 Year Olds","05-THIRD","Third Party Payments","05A","Independent units within the council","6517","Non-Maintained Schools","3188870","201203",21/05/2011 00:00:00,4684,"59760","Playgroups, Nurseries and Creches","REDACTED DATA","WINSTON HOUSE PREPARATORY SCHOOL","",,""
"London Borough of Redbridge","http://opendatacommunities.org/doc/london-borough-council/redbridge","6BADULTSOCIA","Adult Social Care","6CADLEARNDIS","Adults Under 65 with Learning Disabilities","REV","Revenue","R4185","LD - Supported Living","06-TRANSFER","Transfer Payments","06B","Social Services Clients","7066","Supportive Lodgings (Transfer Payments)","90233002","201203",25/05/2011 00:00:00,5355,"64710","Residential Care Homes","REDACTED DATA","WINRAYCARE","",,""
"London Borough of Redbridge","http://opendatacommunities.org/doc/london-borough-council/redbridge","6BADULTSOCIA","Adult Social Care","6CADLEARNDIS","Adults Under 65 with Learning Disabilities","REV","Revenue","R4185","LD - Supported Living","06-TRANSFER","Transfer Payments","06B","Social Services Clients","7066","Supportive Lodgings (Transfer Payments)","90233001","201203",25/05/2011 00:00:00,2753.04,"64710","Residential Care Homes","REDACTED DATA","WINRAYCARE","",,""
"London Borough of Redbridge","http://opendatacommunities.org/doc/london-borough-council/redbridge","6BADULTSOCIA","Adult Social Care","6CADLEARNDIS","Adults Under 65 with Learning Disabilities","REV","Revenue","R4185","LD - Supported Living","06-TRANSFER","Transfer Payments","06B","Social Services Clients","7066","Supportive Lodgings (Transfer Payments)","90233000","201203",25/05/2011 00:00:00,2417.56,"64710","Residential Care Homes","REDACTED DATA","WINRAYCARE","",,""
"London Borough of Redbridge","http://opendatacommunities.org/doc/london-borough-council/redbridge","1BOTHEROPI&E","Other Operating Income & Expenditure","1CTRADSURDEF","Trading Account Surpluses & Deficits","REV","Revenue","R9565","Property Management","04-SUPPLIES","Supplies And Services","04H","Grants and subscriptions","5954","Professional Fees","60150351","201203",10/06/2011 00:00:00,5510,"47846","Letting Agents","REDACTED DATA","WILKS HEAD AND EVE","",,"239360064"
"London Borough of Redbridge","http://opendatacommunities.org/doc/london-borough-council/redbridge","1BCENTRALPUB","Central Services to the Public","1CLOCALTAXCO","Local Tax Collection","REV","Revenue","R5760","Council Tax Collection","04-SUPPLIES","Supplies And Services","04K","Miscellaneous expenses","6204","Bankruptcy","60149864","201203",16/05/2011 00:00:00,575,"72460","Solicitors","REDACTED DATA","WILKIN CHAPMAN SOLICITORS","",,"127942455"
"London Borough of Redbridge","http://opendatacommunities.org/doc/london-borough-council/redbridge","1BCENTRALPUB","Central Services to the Public","1CLOCALTAXCO","Local Tax Collection","REV","Revenue","R5760","Council Tax Collection","04-SUPPLIES","Supplies And Services","04K","Miscellaneous expenses","6204","Bankruptcy","60149868","201203",16/05/2011 00:00:00,575,"72460","Solicitors","REDACTED DATA","WILKIN CHAPMAN SOLICITORS","",,"127942455"
"London Borough of Redbridge","http://opendatacommunities.org/doc/london-borough-council/redbridge","1BCENTRALPUB","Central Services to the Public","1CLOCALTAXCO","Local Tax Collection","REV","Revenue","R5760","Council Tax Collection","04-SUPPLIES","Supplies And Services","04K","Miscellaneous expenses","6204","Bankruptcy","60149867","201203",16/05/2011 00:00:00,545,"72460","Solicitors","REDACTED DATA","WILKIN CHAPMAN SOLICITORS","",,"127942455"
"London Borough of Redbridge","http://opendatacommunities.org/doc/london-borough-council/redbridge","1BCENTRALPUB","Central Services to the Public","1CLOCALTAXCO","Local Tax Collection","REV","Revenue","R5760","Council Tax Collection","04-SUPPLIES","Supplies And Services","04K","Miscellaneous expenses","6204","Bankruptcy","60149865","201203",23/05/2011 00:00:00,480,"72460","Solicitors","REDACTED DATA","WILKIN CHAPMAN SOLICITORS","",,"127942455"
"London Borough of Redbridge","http://opendatacommunities.org/doc/london-borough-council/redbridge","1BCENTRALPUB","Central Services to the Public","1CLOCALTAXCO","Local Tax Collection","REV","Revenue","R5760","Council Tax Collection","04-SUPPLIES","Supplies And Services","04K","Miscellaneous expenses","6204","Bankruptcy","60149866","201203",23/05/2011 00:00:00,480,"72460","Solicitors","REDACTED DATA","WILKIN CHAPMAN SOLICITORS","",,"127942455"
"London Borough of Redbridge","http://opendatacommunities.org/doc/london-borough-council/redbridge","6BADULTSOCIA","Adult Social Care","6CADLEARNDIS","Adults Under 65 with Learning Disabilities","REV","Revenue","R4293","Woodbine Club House","01-EMPLOYEES","Employees","01A","Direct employee expenses","45","Sessional Staff","60149179","201203",26/05/2011 00:00:00,630,"52415","Music Management & Promotion","REDACTED DATA","WILFKIRK PROMOTIONS","",,""
"London Borough of Redbridge","http://opendatacommunities.org/doc/london-borough-council/redbridge","6BADULTSOCIA","Adult Social Care","6COLDINCMENT","Older People (65 or over) incl. Older Mentally Ill","REV","Revenue","R4385","OP Nursing","05-THIRD","Third Party Payments","05H","Private contractors","6909","Nursing Homes","90237617","201203",14/06/2011 00:00:00,5622.65,"64710","Residential Care Homes","REDACTED DATA","WESTGATE HEALTHCARE(HEMEL HEMPSTEAD) LTD- ST PAUL'S CARE CENTRE","5618738","http://opencorporates.com/companies/gb/5618738",""
"London Borough of Redbridge","http://opendatacommunities.org/doc/london-borough-council/redbridge","6BADULTSOCIA","Adult Social Care","6COLDINCMENT","Older People (65 or over) incl. Older Mentally Ill","REV","Revenue","R4385","OP Nursing","05-THIRD","Third Party Payments","05H","Private contractors","6909","Nursing Homes","90237617","201203",14/06/2011 00:00:00,1752.51,"64710","Residential Care Homes","REDACTED DATA","WESTGATE HEALTHCARE(HEMEL HEMPSTEAD) LTD- ST PAUL'S CARE CENTRE","5618738","http://opencorporates.com/companies/gb/5618738",""
"London Borough of Redbridge","http://opendatacommunities.org/doc/london-borough-council/redbridge","6BADULTSOCIA","Adult Social Care","6COLDINCMENT","Older People (65 or over) incl. Older Mentally Ill","REV","Revenue","R4385","OP Nursing","05-THIRD","Third Party Payments","05H","Private contractors","6909","Nursing Homes","90237617","201203",14/06/2011 00:00:00,1195.7,"64710","Residential Care Homes","REDACTED DATA","WESTGATE HEALTHCARE(HEMEL HEMPSTEAD) LTD- ST PAUL'S CARE CENTRE","5618738","http://opencorporates.com/companies/gb/5618738",""
"London Borough of Redbridge","http://opendatacommunities.org/doc/london-borough-council/redbridge","6BADULTSOCIA","Adult Social Care","6COLDINCMENT","Older People (65 or over) incl. Older Mentally Ill","REV","Revenue","R4385","OP Nursing","05-THIRD","Third Party Payments","05H","Private contractors","6909","Nursing Homes","90237617","201203",14/06/2011 00:00:00,730.21,"64710","Residential Care Homes","REDACTED DATA","WESTGATE HEALTHCARE(HEMEL HEMPSTEAD) LTD- ST PAUL'S CARE CENTRE","5618738","http://opencorporates.com/companies/gb/5618738",""
"London Borough of Redbridge","http://opendatacommunities.org/doc/london-borough-council/redbridge","6BADULTSOCIA","Adult Social Care","6COLDINCMENT","Older People (65 or over) incl. Older Mentally Ill","REV","Revenue","R4385","OP Nursing","05-THIRD","Third Party Payments","05H","Private contractors","6909","Nursing Homes","90237617","201203",14/06/2011 00:00:00,606.65,"64710","Residential Care Homes","REDACTED DATA","WESTGATE HEALTHCARE(HEMEL HEMPSTEAD) LTD- ST PAUL'S CARE CENTRE","5618738","http://opencorporates.com/companies/gb/5618738",""
"London Borough of Redbridge","http://opendatacommunities.org/doc/london-borough-council/redbridge","6BADULTSOCIA","Adult Social Care","6COLDINCMENT","Older People (65 or over) incl. Older Mentally Ill","REV","Revenue","R4385","OP Nursing","05-THIRD","Third Party Payments","05H","Private contractors","6909","Nursing Homes","90237617","201203",14/06/2011 00:00:00,372.69,"64710","Residential Care Homes","REDACTED DATA","WESTGATE HEALTHCARE(HEMEL HEMPSTEAD) LTD- ST PAUL'S CARE CENTRE","5618738","http://opencorporates.com/companies/gb/5618738",""
"London Borough of Redbridge","http://opendatacommunities.org/doc/london-borough-council/redbridge","6BADULTSOCIA","Adult Social Care","6COLDINCMENT","Older People (65 or over) incl. Older Mentally Ill","REV","Revenue","R4385","OP Nursing","05-THIRD","Third Party Payments","05H","Private contractors","6909","Nursing Homes","90237617","201203",14/06/2011 00:00:00,189.09,"64710","Residential Care Homes","REDACTED DATA","WESTGATE HEALTHCARE(HEMEL HEMPSTEAD) LTD- ST PAUL'S CARE CENTRE","5618738","http://opencorporates.com/companies/gb/5618738",""
"London Borough of Redbridge","http://opendatacommunities.org/doc/london-borough-council/redbridge","6BADULTSOCIA","Adult Social Care","6COLDINCMENT","Older People (65 or over) incl. Older Mentally Ill","REV","Revenue","R4385","OP Nursing","05-THIRD","Third Party Payments","05H","Private contractors","6909","Nursing Homes","90237617","201203",14/06/2011 00:00:00,155.29,"64710","Residential Care Homes","REDACTED DATA","WESTGATE HEALTHCARE(HEMEL HEMPSTEAD) LTD- ST PAUL'S CARE CENTRE","5618738","http://opencorporates.com/companies/gb/5618738",""
"London Borough of Redbridge","http://opendatacommunities.org/doc/london-borough-council/redbridge","6BADULTSOCIA","Adult Social Care","6COLDINCMENT","Older People (65 or over) incl. Older Mentally Ill","REV","Revenue","R4385","OP Nursing","05-THIRD","Third Party Payments","05H","Private contractors","6909","Nursing Homes","90237617","201203",14/06/2011 00:00:00,78.79,"64710","Residential Care Homes","REDACTED DATA","WESTGATE HEALTHCARE(HEMEL HEMPSTEAD) LTD- ST PAUL'S CARE CENTRE","5618738","http://opencorporates.com/companies/gb/5618738",""
"London Borough of Redbridge","http://opendatacommunities.org/doc/london-borough-council/redbridge","6BADULTSOCIA","Adult Social Care","6COLDINCMENT","Older People (65 or over) incl. Older Mentally Ill","REV","Revenue","R4385","OP Nursing","09-INCOME","Income","09C","Customer & Client Receipts","8557","Nursing Home Charges","90237617","201203",14/06/2011 00:00:00,-78.79,"64710","Residential Care Homes","REDACTED DATA","WESTGATE HEALTHCARE(HEMEL HEMPSTEAD) LTD- ST PAUL'S CARE CENTRE","5618738","http://opencorporates.com/companies/gb/5618738",""
"London Borough of Redbridge","http://opendatacommunities.org/doc/london-borough-council/redbridge","6BADULTSOCIA","Adult Social Care","6COLDINCMENT","Older People (65 or over) incl. Older Mentally Ill","REV","Revenue","R4385","OP Nursing","09-INCOME","Income","09C","Customer & Client Receipts","8557","Nursing Home Charges","90237617","201203",14/06/2011 00:00:00,-155.29,"64710","Residential Care Homes","REDACTED DATA","WESTGATE HEALTHCARE(HEMEL HEMPSTEAD) LTD- ST PAUL'S CARE CENTRE","5618738","http://opencorporates.com/companies/gb/5618738",""
"London Borough of Redbridge","http://opendatacommunities.org/doc/london-borough-council/redbridge","6BADULTSOCIA","Adult Social Care","6COLDINCMENT","Older People (65 or over) incl. Older Mentally Ill","REV","Revenue","R4385","OP Nursing","09-INCOME","Income","09C","Customer & Client Receipts","8557","Nursing Home Charges","90237617","201203",14/06/2011 00:00:00,-189.09,"64710","Residential Care Homes","REDACTED DATA","WESTGATE HEALTHCARE(HEMEL HEMPSTEAD) LTD- ST PAUL'S CARE CENTRE","5618738","http://opencorporates.com/companies/gb/5618738",""
"London Borough of Redbridge","http://opendatacommunities.org/doc/london-borough-council/redbridge","6BADULTSOCIA","Adult Social Care","6COLDINCMENT","Older People (65 or over) incl. Older Mentally Ill","REV","Revenue","R4385","OP Nursing","09-INCOME","Income","09C","Customer & Client Receipts","8557","Nursing Home Charges","90237617","201203",14/06/2011 00:00:00,-190.72,"64710","Residential Care Homes","REDACTED DATA","WESTGATE HEALTHCARE(HEMEL HEMPSTEAD) LTD- ST PAUL'S CARE CENTRE","5618738","http://opencorporates.com/companies/gb/5618738",""
"London Borough of Redbridge","http://opendatacommunities.org/doc/london-borough-council/redbridge","6BADULTSOCIA","Adult Social Care","6COLDINCMENT","Older People (65 or over) incl. Older Mentally Ill","REV","Revenue","R4385","OP Nursing","09-INCOME","Income","09C","Customer & Client Receipts","8557","Nursing Home Charges","90237617","201203",14/06/2011 00:00:00,-372.69,"64710","Residential Care Homes","REDACTED DATA","WESTGATE HEALTHCARE(HEMEL HEMPSTEAD) LTD- ST PAUL'S CARE CENTRE","5618738","http://opencorporates.com/companies/gb/5618738",""
"London Borough of Redbridge","http://opendatacommunities.org/doc/london-borough-council/redbridge","6BADULTSOCIA","Adult Social Care","6COLDINCMENT","Older People (65 or over) incl. Older Mentally Ill","REV","Revenue","R4385","OP Nursing","09-INCOME","Income","09C","Customer & Client Receipts","8557","Nursing Home Charges","90237617","201203",14/06/2011 00:00:00,-457.74,"64710","Residential Care Homes","REDACTED DATA","WESTGATE HEALTHCARE(HEMEL HEMPSTEAD) LTD- ST PAUL'S CARE CENTRE","5618738","http://opencorporates.com/companies/gb/5618738",""
"London Borough of Redbridge","http://opendatacommunities.org/doc/london-borough-council/redbridge","6BADULTSOCIA","Adult Social Care","6COLDINCMENT","Older People (65 or over) incl. Older Mentally Ill","REV","Revenue","R4385","OP Nursing","09-INCOME","Income","09C","Customer & Client Receipts","8557","Nursing Home Charges","90237617","201203",14/06/2011 00:00:00,-606.65,"64710","Residential Care Homes","REDACTED DATA","WESTGATE HEALTHCARE(HEMEL HEMPSTEAD) LTD- ST PAUL'S CARE CENTRE","5618738","http://opencorporates.com/companies/gb/5618738",""
"London Borough of Redbridge","http://opendatacommunities.org/doc/london-borough-council/redbridge","6BADULTSOCIA","Adult Social Care","6COLDINCMENT","Older People (65 or over) incl. Older Mentally Ill","REV","Revenue","R4385","OP Nursing","09-INCOME","Income","09C","Customer & Client Receipts","8557","Nursing Home Charges","90237617","201203",14/06/2011 00:00:00,-1195.7,"64710","Residential Care Homes","REDACTED DATA","WESTGATE HEALTHCARE(HEMEL HEMPSTEAD) LTD- ST PAUL'S CARE CENTRE","5618738","http://opencorporates.com/companies/gb/5618738",""
"London Borough of Redbridge","http://opendatacommunities.org/doc/london-borough-council/redbridge","6BADULTSOCIA","Adult Social Care","6COLDINCMENT","Older People (65 or over) incl. Older Mentally Ill","REV","Revenue","R4385","OP Nursing","09-INCOME","Income","09C","Customer & Client Receipts","8557","Nursing Home Charges","90237617","201203",14/06/2011 00:00:00,-1468.61,"64710","Residential Care Homes","REDACTED DATA","WESTGATE HEALTHCARE(HEMEL HEMPSTEAD) LTD- ST PAUL'S CARE CENTRE","5618738","http://opencorporates.com/companies/gb/5618738",""
"London Borough of Redbridge","http://opendatacommunities.org/doc/london-borough-council/redbridge","5BGFHOUSING","General Fund Housing","5CHOUMGTSUPP","Housing Management & Support Services","REV","Revenue","R5529","HAC Assessment","04-SUPPLIES","Supplies And Services","04K","Miscellaneous expenses","6282","Prevention & Procurement","70028528","201203",10/06/2011 00:00:00,1300,"32695","Estate Agents and Property Buyers","REDACTED DATA","WENTWORTH ESTATES","44388822","http://opencorporates.com/companies/gb/44388822",""
"London Borough of Redbridge","http://opendatacommunities.org/doc/london-borough-council/redbridge","5BGFHOUSING","General Fund Housing","5CHOUMGTSUPP","Housing Management & Support Services","REV","Revenue","R5529","HAC Assessment","04-SUPPLIES","Supplies And Services","04K","Miscellaneous expenses","6282","Prevention & Procurement","70028528","201203",10/06/2011 00:00:00,500,"32695","Estate Agents and Property Buyers","REDACTED DATA","WENTWORTH ESTATES","44388822","http://opencorporates.com/companies/gb/44388822",""
"London Borough of Redbridge","http://opendatacommunities.org/doc/london-borough-council/redbridge","3BNONSCHFUND","Non-School Funding","3CNONSCH","Non Schools","REV","Revenue","R3962","Early Years - 3 and 4 Year Olds","05-THIRD","Third Party Payments","05A","Independent units within the council","6517","Non-Maintained Schools","3188869","201203",21/05/2011 00:00:00,11463,"59760","Playgroups, Nurseries and Creches","REDACTED DATA","WELLS ALL SAINTS PRESCHOOL","",,""
"London Borough of Redbridge","http://opendatacommunities.org/doc/london-borough-council/redbridge","5BGFHOUSING","General Fund Housing","5CWELFARE","Welfare Services","REV","Revenue","R4111","Supporting People - CPB","05-THIRD","Third Party Payments","05G","Other establishments","6851","Housing Association Payments","90232929","201203",30/05/2011 00:00:00,324,"17020","Charities and Voluntary Organisations","REDACTED DATA","WEAVERS ALMSHOUSE CHARITIES","",,""
"London Borough of Redbridge","http://opendatacommunities.org/doc/london-borough-council/redbridge","9BNONBVO","Outside the BVACOP Objective Structure","9CNONBVO","Outside the BVACOP Objective Structure","CAP","Capital","C4035","SEN Reorganisation and Other SEN School Related Exp","99-NONBV","Capital, Balance Sheet and Control","50E","Capital - Contract Payments","9150","Main Contract","60149545","201203",02/06/2011 00:00:00,669080.04,"11040","Builders","REDACTED DATA","WATES CONSTRUCTION LTD","1977948","http://opencorporates.com/companies/gb/1977948",""
"London Borough of Redbridge","http://opendatacommunities.org/doc/london-borough-council/redbridge","9BNONBVO","Outside the BVACOP Objective Structure","9CNONBVO","Outside the BVACOP Objective Structure","CAP","Capital","C4036","Hainault Forest High School","99-NONBV","Capital, Balance Sheet and Control","50E","Capital - Contract Payments","9150","Main Contract","60150615","201203",21/06/2011 00:00:00,520588.63,"11040","Builders","REDACTED DATA","WATES CONSTRUCTION LTD","1977948","http://opencorporates.com/companies/gb/1977948",""
"London Borough of Redbridge","http://opendatacommunities.org/doc/london-borough-council/redbridge","9BNONBVO","Outside the BVACOP Objective Structure","9CNONBVO","Outside the BVACOP Objective Structure","CAP","Capital","C4035","SEN Reorganisation and Other SEN School Related Exp","99-NONBV","Capital, Balance Sheet and Control","50E","Capital - Contract Payments","9150","Main Contract","60150746","201203",23/06/2011 00:00:00,367423.77,"11040","Builders","REDACTED DATA","WATES CONSTRUCTION LTD","1977948","http://opencorporates.com/companies/gb/1977948",""
"London Borough of Redbridge","http://opendatacommunities.org/doc/london-borough-council/redbridge","3BNONSCHFUND","Non-School Funding","3CNONSCH","Non Schools","REV","Revenue","R3962","Early Years - 3 and 4 Year Olds","05-THIRD","Third Party Payments","05A","Independent units within the council","6517","Non-Maintained Schools","3188868","201203",21/05/2011 00:00:00,2333,"59760","Playgroups, Nurseries and Creches","REDACTED DATA","WATERLILY NURSERY LTD","5825326","http://opencorporates.com/companies/gb/5825326",""
"London Borough of Redbridge","http://opendatacommunities.org/doc/london-borough-council/redbridge","2BPLAN&DEVEL","Planning & Development Services","2CENVTLINIT","Environmental Initiatives","REV","Revenue","R9860","Redbridge Environmental Action Plan","04-SUPPLIES","Supplies And Services","04K","Miscellaneous expenses","6263","Supportive Activities","60150747","201203",21/06/2011 00:00:00,11139.11,"85744","Energy Efficient Products & Services","REDACTED DATA","WARM ZONES LTD(GRANT WORK ONLY)","4124262","http://opencorporates.com/companies/gb/4124262","755456701"
"London Borough of Redbridge","http://opendatacommunities.org/doc/london-borough-council/redbridge","9BNONBVO","Outside the BVACOP Objective Structure","9CNONBVO","Outside the BVACOP Objective Structure","CAP","Capital","C2009","Decent Homes/Energy Efficiency","99-NONBV","Capital, Balance Sheet and Control","50E","Capital - Contract Payments","9150","Main Contract","70028226","201203",03/06/2011 00:00:00,3352,"85744","Energy Efficient Products & Services","REDACTED DATA","WARM ZONES LTD(GRANT WORK ONLY)","4124262","http://opencorporates.com/companies/gb/4124262","755456701"
"London Borough of Redbridge","http://opendatacommunities.org/doc/london-borough-council/redbridge","9BNONBVO","Outside the BVACOP Objective Structure","9CNONBVO","Outside the BVACOP Objective Structure","CAP","Capital","C2009","Decent Homes/Energy Efficiency","99-NONBV","Capital, Balance Sheet and Control","50E","Capital - Contract Payments","9150","Main Contract","70028226","201203",03/06/2011 00:00:00,318.44,"85744","Energy Efficient Products & Services","REDACTED DATA","WARM ZONES LTD(GRANT WORK ONLY)","4124262","http://opencorporates.com/companies/gb/4124262","755456701"
"London Borough of Redbridge","http://opendatacommunities.org/doc/london-borough-council/redbridge","3BNONSCHFUND","Non-School Funding","3CNONSCH","Non Schools","REV","Revenue","R3962","Early Years - 3 and 4 Year Olds","05-THIRD","Third Party Payments","05A","Independent units within the council","6517","Non-Maintained Schools","3188867","201203",21/05/2011 00:00:00,6592,"59760","Playgroups, Nurseries and Creches","REDACTED DATA","WANSTEAD PARK PLAYGROUP","",,""
"London Borough of Redbridge","http://opendatacommunities.org/doc/london-borough-council/redbridge","6BADULTSOCIA","Adult Social Care","6CADLEARNDIS","Adults Under 65 with Learning Disabilities","REV","Revenue","R4241","NHS � Continuing Care","05-THIRD","Third Party Payments","05F","Voluntary associations","6802","Residential Homes","90233086","201203",25/05/2011 00:00:00,6992.96,"64710","Residential Care Homes","REDACTED DATA","VOYAGE LIMITED","3157168","http://opencorporates.com/companies/gb/3157168",""
"London Borough of Redbridge","http://opendatacommunities.org/doc/london-borough-council/redbridge","6BADULTSOCIA","Adult Social Care","6CADLEARNDIS","Adults Under 65 with Learning Disabilities","REV","Revenue","R4188","LD - Residential Care","05-THIRD","Third Party Payments","05F","Voluntary associations","6802","Residential Homes","90233335","201203",25/05/2011 00:00:00,6340,"64710","Residential Care Homes","REDACTED DATA","VOYAGE LIMITED","3157168","http://opencorporates.com/companies/gb/3157168",""
"London Borough of Redbridge","http://opendatacommunities.org/doc/london-borough-council/redbridge","6BADULTSOCIA","Adult Social Care","6CADLEARNDIS","Adults Under 65 with Learning Disabilities","REV","Revenue","R4241","NHS � Continuing Care","05-THIRD","Third Party Payments","05F","Voluntary associations","6802","Residential Homes","90233086","201203",25/05/2011 00:00:00,-9.45,"64710","Residential Care Homes","REDACTED DATA","VOYAGE LIMITED","3157168","http://opencorporates.com/companies/gb/3157168",""
"London Borough of Redbridge","http://opendatacommunities.org/doc/london-borough-council/redbridge","6BADULTSOCIA","Adult Social Care","6CADLEARNDIS","Adults Under 65 with Learning Disabilities","REV","Revenue","R4188","LD - Residential Care","05-THIRD","Third Party Payments","05F","Voluntary associations","6802","Residential Homes","90233335","201203",25/05/2011 00:00:00,-21.7,"64710","Residential Care Homes","REDACTED DATA","VOYAGE LIMITED","3157168","http://opencorporates.com/companies/gb/3157168",""
"London Borough of Redbridge","http://opendatacommunities.org/doc/london-borough-council/redbridge","6BADULTSOCIA","Adult Social Care","6CADLEARNDIS","Adults Under 65 with Learning Disabilities","REV","Revenue","R4241","NHS � Continuing Care","09-INCOME","Income","09C","Customer & Client Receipts","8555","Accommodation Charges","90233086","201203",25/05/2011 00:00:00,-341.8,"64710","Residential Care Homes","REDACTED DATA","VOYAGE LIMITED","3157168","http://opencorporates.com/companies/gb/3157168",""
"London Borough of Redbridge","http://opendatacommunities.org/doc/london-borough-council/redbridge","6BADULTSOCIA","Adult Social Care","6CADLEARNDIS","Adults Under 65 with Learning Disabilities","REV","Revenue","R4188","LD - Residential Care","09-INCOME","Income","09C","Customer & Client Receipts","8555","Accommodation Charges","90233335","201203",25/05/2011 00:00:00,-365.2,"64710","Residential Care Homes","REDACTED DATA","VOYAGE LIMITED","3157168","http://opencorporates.com/companies/gb/3157168",""
"London Borough of Redbridge","http://opendatacommunities.org/doc/london-borough-council/redbridge","9BNONBVO","Outside the BVACOP Objective Structure","9CNONBVO","Outside the BVACOP Objective Structure","REV","Revenue","R7702","Vehicle Workshop","04-SUPPLIES","Supplies And Services","04A","Equipment, furniture and materials","5510","Materials","627287","201203",02/06/2011 00:00:00,450,"20390","Commercial Vehicle Servicing, Repairs, Parts and Accessories","REDACTED DATA","VOLVO TRUCK & BUS  LTD","",,""
"London Borough of Redbridge","http://opendatacommunities.org/doc/london-borough-council/redbridge","9BNONBVO","Outside the BVACOP Objective Structure","9CNONBVO","Outside the BVACOP Objective Structure","REV","Revenue","R7702","Vehicle Workshop","04-SUPPLIES","Supplies And Services","04A","Equipment, furniture and materials","5510","Materials","627287","201203",02/06/2011 00:00:00,42,"20390","Commercial Vehicle Servicing, Repairs, Parts and Accessories","REDACTED DATA","VOLVO TRUCK & BUS  LTD","",,""
"London Borough of Redbridge","http://opendatacommunities.org/doc/london-borough-council/redbridge","9BNONBVO","Outside the BVACOP Objective Structure","9CNONBVO","Outside the BVACOP Objective Structure","REV","Revenue","R7702","Vehicle Workshop","04-SUPPLIES","Supplies And Services","04A","Equipment, furniture and materials","5510","Materials","627287","201203",02/06/2011 00:00:00,0.11,"20390","Commercial Vehicle Servicing, Repairs, Parts and Accessories","REDACTED DATA","VOLVO TRUCK & BUS  LTD","",,""
"London Borough of Redbridge","http://opendatacommunities.org/doc/london-borough-council/redbridge","3BOPTIONHLDG","Optional Holding Accounts","3CADULT","Adult Education","REV","Revenue","R3490","RIAE   Home Cost Centre","04-SUPPLIES","Supplies And Services","04A","Equipment, furniture and materials","5502","Equipment Purchase","3188951","201203",16/06/2011 00:00:00,1082.5,"67845","Printer Repairs","REDACTED DATA","VITESSE PLC T/A LASER LIFE","3873327","http://opencorporates.com/companies/gb/3873327","752654911"
"London Borough of Redbridge","http://opendatacommunities.org/doc/london-borough-council/redbridge","3BNONSCHFUND","Non-School Funding","3CNONSCH","Non Schools","REV","Revenue","R3962","Early Years - 3 and 4 Year Olds","05-THIRD","Third Party Payments","05A","Independent units within the council","6517","Non-Maintained Schools","3189878","201203",28/05/2011 00:00:00,4100.8,"17020","Charities and Voluntary Organisations","REDACTED DATA","VISION REDBRIDGE CULTURE AND LEISURE","6032714","http://opencorporates.com/companies/gb/6032714","906429031"
"London Borough of Redbridge","http://opendatacommunities.org/doc/london-borough-council/redbridge","9BNONBVO","Outside the BVACOP Objective Structure","9CNONBVO","Outside the BVACOP Objective Structure","CAP","Capital","C1666","Academy Project","99-NONBV","Capital, Balance Sheet and Control","50E","Capital - Contract Payments","9150","Main Contract","60151145","201203",13/06/2011 00:00:00,977.53,"17020","Charities and Voluntary Organisations","REDACTED DATA","VISION REDBRIDGE CULTURE AND LEISURE","6032714","http://opencorporates.com/companies/gb/6032714","906429031"
"London Borough of Redbridge","http://opendatacommunities.org/doc/london-borough-council/redbridge","2BPLAN&DEVEL","Planning & Development Services","2CECONDEVT","Economic Development","REV","Revenue","R9865","Promotions and Marketing Regen","04-SUPPLIES","Supplies And Services","04D","Printing, stationery and general office expenses","5708","Advertising Publicity and Promotions","60149993","201203",10/06/2011 00:00:00,825,"17020","Charities and Voluntary Organisations","REDACTED DATA","VISION REDBRIDGE CULTURE AND LEISURE","6032714","http://opencorporates.com/companies/gb/6032714","906429031"
"London Borough of Redbridge","http://opendatacommunities.org/doc/london-borough-council/redbridge","2BENVIRONMEN","Environmental Services","2CENVTLHEALT","Environmental Health","REV","Revenue","R6810","DV Projects","04-SUPPLIES","Supplies And Services","04K","Miscellaneous expenses","6263","Supportive Activities","60150569","201203",14/06/2011 00:00:00,18500,"17020","Charities and Voluntary Organisations","REDACTED DATA","VICTIM SUPPORT REDBRIDGE","",,""
"London Borough of Redbridge","http://opendatacommunities.org/doc/london-borough-council/redbridge","2BPLAN&DEVEL","Planning & Development Services","2CCOMMDEVT","Community Development","REV","Revenue","R9854","Voluntary Sector Support","04-SUPPLIES","Supplies And Services","04H","Grants and subscriptions","5950","Grants","60151180","201203",01/07/2011 00:00:00,7718.75,"17020","Charities and Voluntary Organisations","REDACTED DATA","VICTIM SUPPORT REDBRIDGE","",,""
"London Borough of Redbridge","http://opendatacommunities.org/doc/london-borough-council/redbridge","6BSOCIALSERV","Social Services","6COTHC&FSERV","Other Children's & Families' Services","REV","Revenue","R2168","Albert Road - No recourse to Public Funds","06-TRANSFER","Transfer Payments","06B","Social Services Clients","7055","Habitual Residents","60150317","201203",09/06/2011 00:00:00,520,"32695","Estate Agents and Property Buyers","REDACTED DATA","VERITAS ESTATES MANAGEMENT LTD","7454794","http://opencorporates.com/companies/gb/7454794","103615358"
"London Borough of Redbridge","http://opendatacommunities.org/doc/london-borough-council/redbridge","6BADULTSOCIA","Adult Social Care","6CADLEARNDIS","Adults Under 65 with Learning Disabilities","REV","Revenue","R4188","LD - Residential Care","05-THIRD","Third Party Payments","05F","Voluntary associations","6802","Residential Homes","90233564","201203",25/05/2011 00:00:00,6258.28,"53350","Nursing Homes","REDACTED DATA","VENUS HEALTHCARE GROUP  LTD(WINDWOOD LODGE)","6805370","http://opencorporates.com/companies/gb/6805370",""
"London Borough of Redbridge","http://opendatacommunities.org/doc/london-borough-council/redbridge","3BLEACENTFND","LEA Centrally Held School Funds","3CSUPPORTSEN","Supporting Special Education Needs","REV","Revenue","R3434","Pupil Referral Unit (KS3)","02-PREMISES","Premises","02H","Cleaning and domestic supplies","4620","Cleaning Contract Payments","60148832","201203",01/04/2011 00:00:00,1093.75,"15269","Cleaning Services - Commercial","REDACTED DATA","VENTURE FINANCE PLC  RE MATT HYGIENE LTD","6656371","http://opencorporates.com/companies/gb/6656371","769902186"
"London Borough of Redbridge","http://opendatacommunities.org/doc/london-borough-council/redbridge","3BLEACENTFND","LEA Centrally Held School Funds","3CSUPPORTSEN","Supporting Special Education Needs","REV","Revenue","R3434","Pupil Referral Unit (KS3)","02-PREMISES","Premises","02H","Cleaning and domestic supplies","4620","Cleaning Contract Payments","60149638","201203",27/05/2011 00:00:00,912.5,"15269","Cleaning Services - Commercial","REDACTED DATA","VENTURE FINANCE PLC  RE MATT HYGIENE LTD","6656371","http://opencorporates.com/companies/gb/6656371","769902186"
"London Borough of Redbridge","http://opendatacommunities.org/doc/london-borough-council/redbridge","3BLEACENTFND","LEA Centrally Held School Funds","3CSUPPORTSEN","Supporting Special Education Needs","REV","Revenue","R3341","Tuition Service","02-PREMISES","Premises","02H","Cleaning and domestic supplies","4620","Cleaning Contract Payments","60149617","201203",27/05/2011 00:00:00,683.65,"15269","Cleaning Services - Commercial","REDACTED DATA","VENTURE FINANCE PLC  RE MATT HYGIENE LTD","6656371","http://opencorporates.com/companies/gb/6656371","769902186"
"London Borough of Redbridge","http://opendatacommunities.org/doc/london-borough-council/redbridge","3BLEACENTFND","LEA Centrally Held School Funds","3CSUPPORTSEN","Supporting Special Education Needs","REV","Revenue","R3434","Pupil Referral Unit (KS3)","02-PREMISES","Premises","02H","Cleaning and domestic supplies","4620","Cleaning Contract Payments","60148831","201203",01/04/2011 00:00:00,463.32,"15269","Cleaning Services - Commercial","REDACTED DATA","VENTURE FINANCE PLC  RE MATT HYGIENE LTD","6656371","http://opencorporates.com/companies/gb/6656371","769902186"
"London Borough of Redbridge","http://opendatacommunities.org/doc/london-borough-council/redbridge","3BLEACENTFND","LEA Centrally Held School Funds","3CSCHSTRATMG","Schools Strategic Management","REV","Revenue","R3025","Case Management System","01-EMPLOYEES","Employees","01A","Direct employee expenses","4","Agency Staff - Pay","60150162","201203",15/06/2011 00:00:00,852.38,"31230","Employment & Recruitment Agencies","REDACTED DATA","VENN GROUP","",,"766711704"
"London Borough of Redbridge","http://opendatacommunities.org/doc/london-borough-council/redbridge","3BLEACENTFND","LEA Centrally Held School Funds","3CSCHSTRATMG","Schools Strategic Management","REV","Revenue","R3025","Case Management System","01-EMPLOYEES","Employees","01A","Direct employee expenses","4","Agency Staff - Pay","60150660","201203",22/06/2011 00:00:00,852.38,"31230","Employment & Recruitment Agencies","REDACTED DATA","VENN GROUP","",,"766711704"
"London Borough of Redbridge","http://opendatacommunities.org/doc/london-borough-council/redbridge","3BLEACENTFND","LEA Centrally Held School Funds","3CSCHSTRATMG","Schools Strategic Management","REV","Revenue","R3025","Case Management System","01-EMPLOYEES","Employees","01A","Direct employee expenses","4","Agency Staff - Pay","60149284","201203",01/06/2011 00:00:00,852.38,"31230","Employment & Recruitment Agencies","REDACTED DATA","VENN GROUP","",,"766711704"
"London Borough of Redbridge","http://opendatacommunities.org/doc/london-borough-council/redbridge","3BLEACENTFND","LEA Centrally Held School Funds","3CSCHSTRATMG","Schools Strategic Management","REV","Revenue","R3025","Case Management System","01-EMPLOYEES","Employees","01A","Direct employee expenses","4","Agency Staff - Pay","60149713","201203",08/06/2011 00:00:00,681.9,"31230","Employment & Recruitment Agencies","REDACTED DATA","VENN GROUP","",,"766711704"
"London Borough of Redbridge","http://opendatacommunities.org/doc/london-borough-council/redbridge","3BNONSCHFUND","Non-School Funding","3CNONSCH","Non Schools","REV","Revenue","R3962","Early Years - 3 and 4 Year Olds","05-THIRD","Third Party Payments","05A","Independent units within the council","6517","Non-Maintained Schools","3188890","201203",21/05/2011 00:00:00,5105,"59760","Playgroups, Nurseries and Creches","REDACTED DATA","VALENTINE'S NEIGHBOURHOOD NURSERY","",,""
"London Borough of Redbridge","http://opendatacommunities.org/doc/london-borough-council/redbridge","3BINDSCHFUND","Individual School Funds","3CDELSECOND","Delegated Individual Secondary School Budgets","REV","Revenue","R3631","Ilford Ursuline High School","99-NONBV","Capital, Balance Sheet and Control","99B","Accounting & Control","7451","LMS Bank Accounts Pilot","70028229","201203",13/06/2011 00:00:00,320741,"67981","Schools - Local Authority","REDACTED DATA","URSULINE HIGH SCHOOL","",,""
"London Borough of Redbridge","http://opendatacommunities.org/doc/london-borough-council/redbridge","3BINDSCHFUND","Individual School Funds","3CDELSECOND","Delegated Individual Secondary School Budgets","REV","Revenue","R3631","Ilford Ursuline High School","99-NONBV","Capital, Balance Sheet and Control","99B","Accounting & Control","7451","LMS Bank Accounts Pilot","70028919","201203",30/06/2011 00:00:00,3075.85,"67981","Schools - Local Authority","REDACTED DATA","URSULINE HIGH SCHOOL","",,""
"London Borough of Redbridge","http://opendatacommunities.org/doc/london-borough-council/redbridge","3BOPTIONHLDG","Optional Holding Accounts","3CADULT","Adult Education","REV","Revenue","R3483","RIAE   Exams","04-SUPPLIES","Supplies And Services","04H","Grants and subscriptions","5955","Fees","3188956","201203",10/06/2011 00:00:00,1085.25,"81491","Universities & Medical Schools","REDACTED DATA","UNIVERSITY OF CAMBRIDGE","",,"214400324"
"London Borough of Redbridge","http://opendatacommunities.org/doc/london-borough-council/redbridge","6BADULTSOCIA","Adult Social Care","6CADLEARNDIS","Adults Under 65 with Learning Disabilities","REV","Revenue","R4297","Out There Project","01-EMPLOYEES","Employees","01A","Direct employee expenses","4","Agency Staff - Pay","60150822","201203",07/06/2011 00:00:00,5360.74,"17020","Charities and Voluntary Organisations","REDACTED DATA","UNITING FRIENDS LTD","6495763","http://opencorporates.com/companies/gb/6495763",""
"London Borough of Redbridge","http://opendatacommunities.org/doc/london-borough-council/redbridge","6BADULTSOCIA","Adult Social Care","6CADLEARNDIS","Adults Under 65 with Learning Disabilities","REV","Revenue","R4218","Individualised Budgets","06-TRANSFER","Transfer Payments","06B","Social Services Clients","7053","Direct Payments","90233630","201203",02/06/2011 00:00:00,2832,"17020","Charities and Voluntary Organisations","REDACTED DATA","UNITING FRIENDS LTD","6495763","http://opencorporates.com/companies/gb/6495763",""
"London Borough of Redbridge","http://opendatacommunities.org/doc/london-borough-council/redbridge","6BADULTSOCIA","Adult Social Care","6CADLEARNDIS","Adults Under 65 with Learning Disabilities","REV","Revenue","R4218","Individualised Budgets","06-TRANSFER","Transfer Payments","06B","Social Services Clients","7053","Direct Payments","90233631","201203",02/06/2011 00:00:00,1856,"17020","Charities and Voluntary Organisations","REDACTED DATA","UNITING FRIENDS LTD","6495763","http://opencorporates.com/companies/gb/6495763",""
"London Borough of Redbridge","http://opendatacommunities.org/doc/london-borough-council/redbridge","6BADULTSOCIA","Adult Social Care","6CADLEARNDIS","Adults Under 65 with Learning Disabilities","REV","Revenue","R4383","LD - External Day Care","05-THIRD","Third Party Payments","05H","Private contractors","6904","Day Centres","90233628","201203",02/06/2011 00:00:00,1392,"17020","Charities and Voluntary Organisations","REDACTED DATA","UNITING FRIENDS LTD","6495763","http://opencorporates.com/companies/gb/6495763",""
"London Borough of Redbridge","http://opendatacommunities.org/doc/london-borough-council/redbridge","6BADULTSOCIA","Adult Social Care","6CADLEARNDIS","Adults Under 65 with Learning Disabilities","REV","Revenue","R4218","Individualised Budgets","06-TRANSFER","Transfer Payments","06B","Social Services Clients","7053","Direct Payments","90233638","201203",02/06/2011 00:00:00,1392,"17020","Charities and Voluntary Organisations","REDACTED DATA","UNITING FRIENDS LTD","6495763","http://opencorporates.com/companies/gb/6495763",""
"London Borough of Redbridge","http://opendatacommunities.org/doc/london-borough-council/redbridge","6BADULTSOCIA","Adult Social Care","6CADLEARNDIS","Adults Under 65 with Learning Disabilities","REV","Revenue","R4218","Individualised Budgets","06-TRANSFER","Transfer Payments","06B","Social Services Clients","7053","Direct Payments","90233636","201203",02/06/2011 00:00:00,1369.67,"17020","Charities and Voluntary Organisations","REDACTED DATA","UNITING FRIENDS LTD","6495763","http://opencorporates.com/companies/gb/6495763",""
"London Borough of Redbridge","http://opendatacommunities.org/doc/london-borough-council/redbridge","6BADULTSOCIA","Adult Social Care","6CADLEARNDIS","Adults Under 65 with Learning Disabilities","REV","Revenue","R4218","Individualised Budgets","06-TRANSFER","Transfer Payments","06B","Social Services Clients","7053","Direct Payments","90233633","201203",02/06/2011 00:00:00,1034.43,"17020","Charities and Voluntary Organisations","REDACTED DATA","UNITING FRIENDS LTD","6495763","http://opencorporates.com/companies/gb/6495763",""
"London Borough of Redbridge","http://opendatacommunities.org/doc/london-borough-council/redbridge","6BADULTSOCIA","Adult Social Care","6CADLEARNDIS","Adults Under 65 with Learning Disabilities","REV","Revenue","R4218","Individualised Budgets","06-TRANSFER","Transfer Payments","06B","Social Services Clients","7053","Direct Payments","90233632","201203",02/06/2011 00:00:00,928,"17020","Charities and Voluntary Organisations","REDACTED DATA","UNITING FRIENDS LTD","6495763","http://opencorporates.com/companies/gb/6495763",""
"London Borough of Redbridge","http://opendatacommunities.org/doc/london-borough-council/redbridge","6BADULTSOCIA","Adult Social Care","6CADLEARNDIS","Adults Under 65 with Learning Disabilities","REV","Revenue","R4218","Individualised Budgets","06-TRANSFER","Transfer Payments","06B","Social Services Clients","7053","Direct Payments","90233637","201203",02/06/2011 00:00:00,696,"17020","Charities and Voluntary Organisations","REDACTED DATA","UNITING FRIENDS LTD","6495763","http://opencorporates.com/companies/gb/6495763",""
"London Borough of Redbridge","http://opendatacommunities.org/doc/london-borough-council/redbridge","6BADULTSOCIA","Adult Social Care","6CADLEARNDIS","Adults Under 65 with Learning Disabilities","REV","Revenue","R4218","Individualised Budgets","06-TRANSFER","Transfer Payments","06B","Social Services Clients","7053","Direct Payments","90233636","201203",02/06/2011 00:00:00,-5.67,"17020","Charities and Voluntary Organisations","REDACTED DATA","UNITING FRIENDS LTD","6495763","http://opencorporates.com/companies/gb/6495763",""
"London Borough of Redbridge","http://opendatacommunities.org/doc/london-borough-council/redbridge","6BADULTSOCIA","Adult Social Care","6CADLEARNDIS","Adults Under 65 with Learning Disabilities","REV","Revenue","R4218","Individualised Budgets","06-TRANSFER","Transfer Payments","06B","Social Services Clients","7053","Direct Payments","90233637","201203",02/06/2011 00:00:00,-24,"17020","Charities and Voluntary Organisations","REDACTED DATA","UNITING FRIENDS LTD","6495763","http://opencorporates.com/companies/gb/6495763",""
"London Borough of Redbridge","http://opendatacommunities.org/doc/london-borough-council/redbridge","6BADULTSOCIA","Adult Social Care","6CADLEARNDIS","Adults Under 65 with Learning Disabilities","REV","Revenue","R4218","Individualised Budgets","06-TRANSFER","Transfer Payments","06B","Social Services Clients","7053","Direct Payments","90233632","201203",02/06/2011 00:00:00,-32,"17020","Charities and Voluntary Organisations","REDACTED DATA","UNITING FRIENDS LTD","6495763","http://opencorporates.com/companies/gb/6495763",""
"London Borough of Redbridge","http://opendatacommunities.org/doc/london-borough-council/redbridge","6BADULTSOCIA","Adult Social Care","6CADLEARNDIS","Adults Under 65 with Learning Disabilities","REV","Revenue","R4218","Individualised Budgets","06-TRANSFER","Transfer Payments","06B","Social Services Clients","7053","Direct Payments","90233638","201203",02/06/2011 00:00:00,-132,"17020","Charities and Voluntary Organisations","REDACTED DATA","UNITING FRIENDS LTD","6495763","http://opencorporates.com/companies/gb/6495763",""
"London Borough of Redbridge","http://opendatacommunities.org/doc/london-borough-council/redbridge","6BADULTSOCIA","Adult Social Care","6CADLEARNDIS","Adults Under 65 with Learning Disabilities","REV","Revenue","R4383","LD - External Day Care","05-THIRD","Third Party Payments","05H","Private contractors","6904","Day Centres","90233628","201203",02/06/2011 00:00:00,-160,"17020","Charities and Voluntary Organisations","REDACTED DATA","UNITING FRIENDS LTD","6495763","http://opencorporates.com/companies/gb/6495763",""
"London Borough of Redbridge","http://opendatacommunities.org/doc/london-borough-council/redbridge","6BADULTSOCIA","Adult Social Care","6CADLEARNDIS","Adults Under 65 with Learning Disabilities","REV","Revenue","R4218","Individualised Budgets","06-TRANSFER","Transfer Payments","06B","Social Services Clients","7053","Direct Payments","90233631","201203",02/06/2011 00:00:00,-176,"17020","Charities and Voluntary Organisations","REDACTED DATA","UNITING FRIENDS LTD","6495763","http://opencorporates.com/companies/gb/6495763",""
"London Borough of Redbridge","http://opendatacommunities.org/doc/london-borough-council/redbridge","6BADULTSOCIA","Adult Social Care","6CADLEARNDIS","Adults Under 65 with Learning Disabilities","REV","Revenue","R4218","Individualised Budgets","06-TRANSFER","Transfer Payments","06B","Social Services Clients","7053","Direct Payments","90233633","201203",02/06/2011 00:00:00,-201.36,"17020","Charities and Voluntary Organisations","REDACTED DATA","UNITING FRIENDS LTD","6495763","http://opencorporates.com/companies/gb/6495763",""
"London Borough of Redbridge","http://opendatacommunities.org/doc/london-borough-council/redbridge","6BADULTSOCIA","Adult Social Care","6CADLEARNDIS","Adults Under 65 with Learning Disabilities","REV","Revenue","R4218","Individualised Budgets","06-TRANSFER","Transfer Payments","06B","Social Services Clients","7053","Direct Payments","90233630","201203",02/06/2011 00:00:00,-1264,"17020","Charities and Voluntary Organisations","REDACTED DATA","UNITING FRIENDS LTD","6495763","http://opencorporates.com/companies/gb/6495763",""
"London Borough of Redbridge","http://opendatacommunities.org/doc/london-borough-council/redbridge","4BMANGT&SUPP","Management & Support Services","4CTRANSPP&S","Transport Planning, Policy & Strategy","REV","Revenue","R7001","London Permit Scheme","04-SUPPLIES","Supplies And Services","04K","Miscellaneous expenses","6280","Miscellaneous Expenditure","60149408","201203",01/06/2011 00:00:00,445,"53400","Office Equipment Servicing & Maintenance","REDACTED DATA","UNITED TECHNOLOGIES UK LTD(UTL)","3805286","http://opencorporates.com/companies/gb/3805286","740173460"
"London Borough of Redbridge","http://opendatacommunities.org/doc/london-borough-council/redbridge","1BOTHEROPI&E","Other Operating Income & Expenditure","1CTRADSURDEF","Trading Account Surpluses & Deficits","REV","Revenue","R9152","Financial Services","04-SUPPLIES","Supplies And Services","04D","Printing, stationery and general office expenses","5710","Stationery","60150674","201203",20/06/2011 00:00:00,550,"20703","Computer Systems and Software","REDACTED DATA","UNIT4 BUSINESS SOFTWARE LTD","1737985","http://opencorporates.com/companies/gb/1737985","567554796"
"London Borough of Redbridge","http://opendatacommunities.org/doc/london-borough-council/redbridge","9BNONBVO","Outside the BVACOP Objective Structure","9CNONBVO","Outside the BVACOP Objective Structure","CAP","Capital","C9025","Partnerships","99-NONBV","Capital, Balance Sheet and Control","50G","Capital - Other Capital Outlay","9205","R&R Equipment - Normal","60150597","201203",15/06/2011 00:00:00,2195,"53450","Office Furniture & Equipment","REDACTED DATA","UNIQUE OFFICE SOLUTIONS LTD","3079207","http://opencorporates.com/companies/gb/3079207","662659701"
"London Borough of Redbridge","http://opendatacommunities.org/doc/london-borough-council/redbridge","4BTRANSPORT","Transport Planning, Policy & Strategy","4CMANGT&SUPP","Management & Support Services","REV","Revenue","R7000","Highways Executive","04-SUPPLIES","Supplies And Services","04A","Equipment, furniture and materials","5502","Equipment Purchase","60150310","201203",10/06/2011 00:00:00,1911,"53450","Office Furniture & Equipment","REDACTED DATA","UNIQUE OFFICE SOLUTIONS LTD","3079207","http://opencorporates.com/companies/gb/3079207","662659701"
"London Borough of Redbridge","http://opendatacommunities.org/doc/london-borough-council/redbridge","4BTRANSPORT","Transport Planning, Policy & Strategy","4CMANGT&SUPP","Management & Support Services","REV","Revenue","R7000","Highways Executive","04-SUPPLIES","Supplies And Services","04A","Equipment, furniture and materials","5502","Equipment Purchase","60150675","201203",20/06/2011 00:00:00,560,"53450","Office Furniture & Equipment","REDACTED DATA","UNIQUE OFFICE SOLUTIONS LTD","3079207","http://opencorporates.com/companies/gb/3079207","662659701"
"London Borough of Redbridge","http://opendatacommunities.org/doc/london-borough-council/redbridge","9BNONBVO","Outside the BVACOP Objective Structure","9CNONBVO","Outside the BVACOP Objective Structure","REV","Revenue","R7702","Vehicle Workshop","04-SUPPLIES","Supplies And Services","04A","Equipment, furniture and materials","5510","Materials","627296","201203",06/06/2011 00:00:00,485,"20390","Commercial Vehicle Servicing, Repairs, Parts and Accessories","REDACTED DATA","UNIPART GROUP LTD T/A INTERTRUCK","576777","http://opencorporates.com/companies/gb/576777","448576309"
"London Borough of Redbridge","http://opendatacommunities.org/doc/london-borough-council/redbridge","9BNONBVO","Outside the BVACOP Objective Structure","9CNONBVO","Outside the BVACOP Objective Structure","REV","Revenue","R7702","Vehicle Workshop","04-SUPPLIES","Supplies And Services","04A","Equipment, furniture and materials","5510","Materials","627296","201203",06/06/2011 00:00:00,12,"20390","Commercial Vehicle Servicing, Repairs, Parts and Accessories","REDACTED DATA","UNIPART GROUP LTD T/A INTERTRUCK","576777","http://opencorporates.com/companies/gb/576777","448576309"
"London Borough of Redbridge","http://opendatacommunities.org/doc/london-borough-council/redbridge","6BSOCIALSERV","Social Services","6CCHILLOOKED","Children Looked After","REV","Revenue","R2120","CLAFH - Care Purchasing","05-THIRD","Third Party Payments","05H","Private contractors","6907","Private Homes","60149637","201203",07/06/2011 00:00:00,9640,"64710","Residential Care Homes","REDACTED DATA","TULIP CARE ONE LIMITED","5903027","http://opencorporates.com/companies/gb/5903027",""
"London Borough of Redbridge","http://opendatacommunities.org/doc/london-borough-council/redbridge","3BLEACENTFND","LEA Centrally Held School Funds","3CNONSCH","Non Schools","REV","Revenue","R2004","SEN and CD Res Placements DSG","05-THIRD","Third Party Payments","05H","Private contractors","6906","Independent Schools","60149637","201203",07/06/2011 00:00:00,3560,"64710","Residential Care Homes","REDACTED DATA","TULIP CARE ONE LIMITED","5903027","http://opencorporates.com/companies/gb/5903027",""
"London Borough of Redbridge","http://opendatacommunities.org/doc/london-borough-council/redbridge","9BNONBVO","Outside the BVACOP Objective Structure","9CNONBVO","Outside the BVACOP Objective Structure","CAP","Capital","C4133","Surestart Childrens Centres Maintenance","99-NONBV","Capital, Balance Sheet and Control","50E","Capital - Contract Payments","9150","Main Contract","60149074","201203",18/03/2011 00:00:00,572.27,"29340","Educational Equipment & Supplies","REDACTED DATA","TTS GROUP LIMITED(TECHNOLOGY TEACHING SYSTEMS)","4373761","http://opencorporates.com/companies/gb/4373761","789963047"
"London Borough of Redbridge","http://opendatacommunities.org/doc/london-borough-council/redbridge","3BNONSCHFUND","Non-School Funding","3CNONSCH","Non Schools","REV","Revenue","R3962","Early Years - 3 and 4 Year Olds","05-THIRD","Third Party Payments","05A","Independent units within the council","6517","Non-Maintained Schools","3188866","201203",21/05/2011 00:00:00,19172,"59760","Playgroups, Nurseries and Creches","REDACTED DATA","TRINITY HALL KINDERGARTEN (NURSERY ONE LTD)","",,""
"London Borough of Redbridge","http://opendatacommunities.org/doc/london-borough-council/redbridge","3BNONSCHFUND","Non-School Funding","3CNONSCH","Non Schools","REV","Revenue","R2040","Central Childrens Centre","01-EMPLOYEES","Employees","01B","Indirect employee expenses","2403","External Training","60149567","201203",27/05/2011 00:00:00,1094.5,"20630","Computer Leasing & Rental","REDACTED DATA","TRIBAL EDUCATION LTD (SHEFFIELD)","4163300","http://opencorporates.com/companies/gb/4163300","771437128"
"London Borough of Redbridge","http://opendatacommunities.org/doc/london-borough-council/redbridge","1BOTHEROPI&E","Other Operating Income & Expenditure","1CTRADSURDEF","Trading Account Surpluses & Deficits","REV","Revenue","R9601","Lynton House","02-PREMISES","Premises","02A","Repairs, alteration and maintenance of buildings","3037","Service Contracts","784747","201203",20/06/2011 00:00:00,3206.71,"11400","Building Services","REDACTED DATA","TREND CONTROL SYSTEMS LTD","1664519","http://opencorporates.com/companies/gb/1664519",""
"London Borough of Redbridge","http://opendatacommunities.org/doc/london-borough-council/redbridge","2BCULTUR&REL","Cultural & Related Services","2CCULTUR&HER","Culture & Heritage","REV","Revenue","R6281","KMT - Tenant","02-PREMISES","Premises","02A","Repairs, alteration and maintenance of buildings","3040","Tenant Maintenance","784746","201203",20/06/2011 00:00:00,720.86,"11400","Building Services","REDACTED DATA","TREND CONTROL SYSTEMS LTD","1664519","http://opencorporates.com/companies/gb/1664519",""
"London Borough of Redbridge","http://opendatacommunities.org/doc/london-borough-council/redbridge","3BOPTIONHLDG","Optional Holding Accounts","3CYOUTH","Youth Service","REV","Revenue","R3403","Downshall Ctr - Non","02-PREMISES","Premises","02A","Repairs, alteration and maintenance of buildings","3034","Portable Application Electrical Testing (H&S)","784749","201203",20/06/2011 00:00:00,484.74,"11400","Building Services","REDACTED DATA","TREND CONTROL SYSTEMS LTD","1664519","http://opencorporates.com/companies/gb/1664519",""
"London Borough of Redbridge","http://opendatacommunities.org/doc/london-borough-council/redbridge","1BOTHEROPI&E","Other Operating Income & Expenditure","1CTRADSURDEF","Trading Account Surpluses & Deficits","REV","Revenue","R9604","22-26 Clements Rd","02-PREMISES","Premises","02A","Repairs, alteration and maintenance of buildings","3037","Service Contracts","784748","201203",20/06/2011 00:00:00,484.73,"11400","Building Services","REDACTED DATA","TREND CONTROL SYSTEMS LTD","1664519","http://opencorporates.com/companies/gb/1664519",""
"London Borough of Redbridge","http://opendatacommunities.org/doc/london-borough-council/redbridge","3BNONSCHFUND","Non-School Funding","3CNONSCH","Non Schools","REV","Revenue","R3962","Early Years - 3 and 4 Year Olds","05-THIRD","Third Party Payments","05A","Independent units within the council","6517","Non-Maintained Schools","3188865","201203",21/05/2011 00:00:00,11833,"59760","Playgroups, Nurseries and Creches","REDACTED DATA","TREE HOUSE NURSERY SCHOOL","",,""
"London Borough of Redbridge","http://opendatacommunities.org/doc/london-borough-council/redbridge","4BTRAFMGT&RS","Traffic Management & Road Safety","4CPUBLICTRAN","Public Transport","REV","Revenue","R5810","Concessionary Travel","06-TRANSFER","Transfer Payments","06C","Housing Benefits","7100","Concessionary Fares","60149239","201203",09/05/2011 00:00:00,1858330,"48583","Local Government","REDACTED DATA","TRANSPORT TRADING LIMITED","3914810","http://opencorporates.com/companies/gb/3914810",""
"London Borough of Redbridge","http://opendatacommunities.org/doc/london-borough-council/redbridge","1BOTHEROPI&E","Other Operating Income & Expenditure","1CTRADSURDEF","Trading Account Surpluses & Deficits","REV","Revenue","R9154","Audit","03-TRANSPORT","Transport","03C","Contract hire and operating leases","5204","Taxis - General","60149358","201203",23/05/2011 00:00:00,500,"76350","Taxis & Private Hire","REDACTED DATA","TRANSLOGISTIC LIMITED T/A ASSOCIATED TAXIS","3936360","http://opencorporates.com/companies/gb/3936360","750760338"
"London Borough of Redbridge","http://opendatacommunities.org/doc/london-borough-council/redbridge","1BOTHEROPI&E","Other Operating Income & Expenditure","1CTRADSURDEF","Trading Account Surpluses & Deficits","REV","Revenue","R9154","Audit","03-TRANSPORT","Transport","03C","Contract hire and operating leases","5204","Taxis - General","60151097","201203",21/06/2011 00:00:00,500,"76350","Taxis & Private Hire","REDACTED DATA","TRANSLOGISTIC LIMITED T/A ASSOCIATED TAXIS","3936360","http://opencorporates.com/companies/gb/3936360","750760338"
"London Borough of Redbridge","http://opendatacommunities.org/doc/london-borough-council/redbridge","1BOTHEROPI&E","Other Operating Income & Expenditure","1CTRADSURDEF","Trading Account Surpluses & Deficits","REV","Revenue","R9154","Audit","03-TRANSPORT","Transport","03C","Contract hire and operating leases","5204","Taxis - General","60150391","201203",14/06/2011 00:00:00,500,"76350","Taxis & Private Hire","REDACTED DATA","TRANSLOGISTIC LIMITED T/A ASSOCIATED TAXIS","3936360","http://opencorporates.com/companies/gb/3936360","750760338"
"London Borough of Redbridge","http://opendatacommunities.org/doc/london-borough-council/redbridge","1BOTHEROPI&E","Other Operating Income & Expenditure","1CTRADSURDEF","Trading Account Surpluses & Deficits","REV","Revenue","R9460","Human Resources misc","04-SUPPLIES","Supplies And Services","04H","Grants and subscriptions","5954","Professional Fees","60150281","201203",14/06/2011 00:00:00,725,"79960","Training Consultants","REDACTED DATA","TRAINING TO ACHIEVE (UK) LTD","6024929","http://opencorporates.com/companies/gb/6024929","570527247"
"London Borough of Redbridge","http://opendatacommunities.org/doc/london-borough-council/redbridge","3BOPTIONHLDG","Optional Holding Accounts","3CYOUTH","Youth Service","REV","Revenue","R3398","Duke Of Edinburgh Awd","04-SUPPLIES","Supplies And Services","04E","Services","5757","Group Work Activities","60149571","201203",24/05/2011 00:00:00,715,"16580","Central Government","REDACTED DATA","TQS LTD (ADVENTURE ACTIVITIES LICENSING SERVICE)","2459607","http://opencorporates.com/companies/gb/2459607",""
"London Borough of Redbridge","http://opendatacommunities.org/doc/london-borough-council/redbridge","9BNONBVO","Outside the BVACOP Objective Structure","9CNONBVO","Outside the BVACOP Objective Structure","CAP","Capital","C1535","Churchfields Junior School","99-NONBV","Capital, Balance Sheet and Control","50B","Capital - Contracted Works","9055","External - Consultants Fees","784438","201203",07/06/2011 00:00:00,6953.6,"4422","Architectural Services","REDACTED DATA","TPS CONSULT LTD","2574820","http://opencorporates.com/companies/gb/2574820","100636617"
"London Borough of Redbridge","http://opendatacommunities.org/doc/london-borough-council/redbridge","9BNONBVO","Outside the BVACOP Objective Structure","9CNONBVO","Outside the BVACOP Objective Structure","CAP","Capital","C1535","Churchfields Junior School","99-NONBV","Capital, Balance Sheet and Control","50B","Capital - Contracted Works","9055","External - Consultants Fees","784437","201203",07/06/2011 00:00:00,4682.4,"4422","Architectural Services","REDACTED DATA","TPS CONSULT LTD","2574820","http://opencorporates.com/companies/gb/2574820","100636617"
"London Borough of Redbridge","http://opendatacommunities.org/doc/london-borough-council/redbridge","9BNONBVO","Outside the BVACOP Objective Structure","9CNONBVO","Outside the BVACOP Objective Structure","CAP","Capital","C4086","Fullwood - Add Primary Sch Places","99-NONBV","Capital, Balance Sheet and Control","50B","Capital - Contracted Works","9055","External - Consultants Fees","60150836","201203",07/06/2011 00:00:00,2515,"4422","Architectural Services","REDACTED DATA","TPS CONSULT LTD","2574820","http://opencorporates.com/companies/gb/2574820","100636617"
"London Borough of Redbridge","http://opendatacommunities.org/doc/london-borough-council/redbridge","9BNONBVO","Outside the BVACOP Objective Structure","9CNONBVO","Outside the BVACOP Objective Structure","CAP","Capital","C4086","Fullwood - Add Primary Sch Places","99-NONBV","Capital, Balance Sheet and Control","50B","Capital - Contracted Works","9055","External - Consultants Fees","60150805","201203",12/05/2011 00:00:00,2515,"4422","Architectural Services","REDACTED DATA","TPS CONSULT LTD","2574820","http://opencorporates.com/companies/gb/2574820","100636617"
"London Borough of Redbridge","http://opendatacommunities.org/doc/london-borough-council/redbridge","9BNONBVO","Outside the BVACOP Objective Structure","9CNONBVO","Outside the BVACOP Objective Structure","CAP","Capital","C4137","Mossford Green Primary Feasibility Studies","99-NONBV","Capital, Balance Sheet and Control","50E","Capital - Contract Payments","9150","Main Contract","60149516","201203",25/05/2011 00:00:00,1500,"4422","Architectural Services","REDACTED DATA","TPS CONSULT LTD","2574820","http://opencorporates.com/companies/gb/2574820","100636617"
"London Borough of Redbridge","http://opendatacommunities.org/doc/london-borough-council/redbridge","9BNONBVO","Outside the BVACOP Objective Structure","9CNONBVO","Outside the BVACOP Objective Structure","CAP","Capital","C1535","Churchfields Junior School","99-NONBV","Capital, Balance Sheet and Control","50B","Capital - Contracted Works","9055","External - Consultants Fees","784436","201203",07/06/2011 00:00:00,1308,"4422","Architectural Services","REDACTED DATA","TPS CONSULT LTD","2574820","http://opencorporates.com/companies/gb/2574820","100636617"
"London Borough of Redbridge","http://opendatacommunities.org/doc/london-borough-council/redbridge","9BNONBVO","Outside the BVACOP Objective Structure","9CNONBVO","Outside the BVACOP Objective Structure","CAP","Capital","C2002","HGC and  R Act96 Dfg`S","99-NONBV","Capital, Balance Sheet and Control","50H","Capital - Deferred Charges","9251","Housing Grants - Mandatory","70028642","201203",07/02/2011 00:00:00,3765,"11040","Builders","REDACTED DATA","TOTAL HYGIENE LTD(GRANT WORK)","2489536","http://opencorporates.com/companies/gb/2489536","792449783"
"London Borough of Redbridge","http://opendatacommunities.org/doc/london-borough-council/redbridge","6BADULTSOCIA","Adult Social Care","6CADPHYSDIS","Adults Under 65 with Phys Disab or Sensory Impair","REV","Revenue","R4393","PD Home Care","05-THIRD","Third Party Payments","05A","Independent units within the council","6502","Agency Homecare (Payments To Independent Units)","90236551","201203",31/05/2011 00:00:00,1830.22,"43419","Home Care Services","REDACTED DATA","TOTAL COMMUNITY CARE LTD","5985316","http://opencorporates.com/companies/gb/5985316",""
"London Borough of Redbridge","http://opendatacommunities.org/doc/london-borough-council/redbridge","6BADULTSOCIA","Adult Social Care","6CADPHYSDIS","Adults Under 65 with Phys Disab or Sensory Impair","REV","Revenue","R4393","PD Home Care","05-THIRD","Third Party Payments","05A","Independent units within the council","6502","Agency Homecare (Payments To Independent Units)","90236552","201203",01/06/2011 00:00:00,1830.22,"43419","Home Care Services","REDACTED DATA","TOTAL COMMUNITY CARE LTD","5985316","http://opencorporates.com/companies/gb/5985316",""
"London Borough of Redbridge","http://opendatacommunities.org/doc/london-borough-council/redbridge","6BADULTSOCIA","Adult Social Care","6CADPHYSDIS","Adults Under 65 with Phys Disab or Sensory Impair","REV","Revenue","R4393","PD Home Care","05-THIRD","Third Party Payments","05A","Independent units within the council","6502","Agency Homecare (Payments To Independent Units)","90239777","201203",09/06/2011 00:00:00,1830.22,"43419","Home Care Services","REDACTED DATA","TOTAL COMMUNITY CARE LTD","5985316","http://opencorporates.com/companies/gb/5985316",""
"London Borough of Redbridge","http://opendatacommunities.org/doc/london-borough-council/redbridge","3BLEACENTFND","LEA Centrally Held School Funds","3CSUPPORTSEN","Supporting Special Education Needs","REV","Revenue","R3431","Pupil Referral Unit (KS4)","04-SUPPLIES","Supplies And Services","04D","Printing, stationery and general office expenses","5710","Stationery","60149578","201203",31/05/2011 00:00:00,600,"31230","Employment & Recruitment Agencies","REDACTED DATA","TOTAL ASSIST EDUCATION LTD","5368892","http://opencorporates.com/companies/gb/5368892","946069692"
"London Borough of Redbridge","http://opendatacommunities.org/doc/london-borough-council/redbridge","3BLEACENTFND","LEA Centrally Held School Funds","3CNONSCH","Non Schools","REV","Revenue","R2211","SEN Commissioning DSG","04-SUPPLIES","Supplies And Services","04K","Miscellaneous expenses","6220","Education Otherwise","60151277","201203",28/06/2011 00:00:00,570,"31230","Employment & Recruitment Agencies","REDACTED DATA","TOTAL ASSIST EDUCATION LTD","5368892","http://opencorporates.com/companies/gb/5368892","946069692"
"London Borough of Redbridge","http://opendatacommunities.org/doc/london-borough-council/redbridge","3BLEACENTFND","LEA Centrally Held School Funds","3CNONSCH","Non Schools","REV","Revenue","R2211","SEN Commissioning DSG","04-SUPPLIES","Supplies And Services","04K","Miscellaneous expenses","6220","Education Otherwise","60149581","201203",31/05/2011 00:00:00,570,"31230","Employment & Recruitment Agencies","REDACTED DATA","TOTAL ASSIST EDUCATION LTD","5368892","http://opencorporates.com/companies/gb/5368892","946069692"
"London Borough of Redbridge","http://opendatacommunities.org/doc/london-borough-council/redbridge","3BLEACENTFND","LEA Centrally Held School Funds","3CNONSCH","Non Schools","REV","Revenue","R2211","SEN Commissioning DSG","04-SUPPLIES","Supplies And Services","04K","Miscellaneous expenses","6220","Education Otherwise","60149837","201203",07/06/2011 00:00:00,570,"31230","Employment & Recruitment Agencies","REDACTED DATA","TOTAL ASSIST EDUCATION LTD","5368892","http://opencorporates.com/companies/gb/5368892","946069692"
"London Borough of Redbridge","http://opendatacommunities.org/doc/london-borough-council/redbridge","6BADULTSOCIA","Adult Social Care","6CADLEARNDIS","Adults Under 65 with Learning Disabilities","REV","Revenue","R4188","LD - Residential Care","05-THIRD","Third Party Payments","05F","Voluntary associations","6802","Residential Homes","90233562","201203",25/05/2011 00:00:00,4405.4,"64710","Residential Care Homes","REDACTED DATA","TOMSWOOD LODGE LTD","4368604","http://opencorporates.com/companies/gb/4368604",""
"London Borough of Redbridge","http://opendatacommunities.org/doc/london-borough-council/redbridge","6BADULTSOCIA","Adult Social Care","6CADLEARNDIS","Adults Under 65 with Learning Disabilities","REV","Revenue","R4188","LD - Residential Care","05-THIRD","Third Party Payments","05F","Voluntary associations","6802","Residential Homes","90233561","201203",25/05/2011 00:00:00,3626.36,"64710","Residential Care Homes","REDACTED DATA","TOMSWOOD LODGE LTD","4368604","http://opencorporates.com/companies/gb/4368604",""
"London Borough of Redbridge","http://opendatacommunities.org/doc/london-borough-council/redbridge","6BADULTSOCIA","Adult Social Care","6CADLEARNDIS","Adults Under 65 with Learning Disabilities","REV","Revenue","R4188","LD - Residential Care","05-THIRD","Third Party Payments","05F","Voluntary associations","6802","Residential Homes","90233560","201203",25/05/2011 00:00:00,3593.32,"64710","Residential Care Homes","REDACTED DATA","TOMSWOOD LODGE LTD","4368604","http://opencorporates.com/companies/gb/4368604",""
"London Borough of Redbridge","http://opendatacommunities.org/doc/london-borough-council/redbridge","6BADULTSOCIA","Adult Social Care","6CADLEARNDIS","Adults Under 65 with Learning Disabilities","REV","Revenue","R4188","LD - Residential Care","09-INCOME","Income","09C","Customer & Client Receipts","8555","Accommodation Charges","90233561","201203",25/05/2011 00:00:00,-295,"64710","Residential Care Homes","REDACTED DATA","TOMSWOOD LODGE LTD","4368604","http://opencorporates.com/companies/gb/4368604",""
"London Borough of Redbridge","http://opendatacommunities.org/doc/london-borough-council/redbridge","6BADULTSOCIA","Adult Social Care","6CADLEARNDIS","Adults Under 65 with Learning Disabilities","REV","Revenue","R4188","LD - Residential Care","09-INCOME","Income","09C","Customer & Client Receipts","8555","Accommodation Charges","90233560","201203",25/05/2011 00:00:00,-459,"64710","Residential Care Homes","REDACTED DATA","TOMSWOOD LODGE LTD","4368604","http://opencorporates.com/companies/gb/4368604",""
"London Borough of Redbridge","http://opendatacommunities.org/doc/london-borough-council/redbridge","6BADULTSOCIA","Adult Social Care","6CADLEARNDIS","Adults Under 65 with Learning Disabilities","REV","Revenue","R4188","LD - Residential Care","09-INCOME","Income","09C","Customer & Client Receipts","8555","Accommodation Charges","90233562","201203",25/05/2011 00:00:00,-459,"64710","Residential Care Homes","REDACTED DATA","TOMSWOOD LODGE LTD","4368604","http://opencorporates.com/companies/gb/4368604",""
"London Borough of Redbridge","http://opendatacommunities.org/doc/london-borough-council/redbridge","9BNONBVO","Outside the BVACOP Objective Structure","9CNONBVO","Outside the BVACOP Objective Structure","CAP","Capital","C2203","Accident Remediation Local Safety TFL","99-NONBV","Capital, Balance Sheet and Control","50E","Capital - Contract Payments","9150","Main Contract","60150928","201203",19/05/2011 00:00:00,6510.83,"1961","Advertising - Agencies","REDACTED DATA","TMP (UK) LTD","5648039","http://opencorporates.com/companies/gb/5648039","872904502"
"London Borough of Redbridge","http://opendatacommunities.org/doc/london-borough-council/redbridge","9BNONBVO","Outside the BVACOP Objective Structure","9CNONBVO","Outside the BVACOP Objective Structure","CAP","Capital","C2203","Accident Remediation Local Safety TFL","99-NONBV","Capital, Balance Sheet and Control","50E","Capital - Contract Payments","9150","Main Contract","60150482","201203",16/06/2011 00:00:00,1806.86,"1961","Advertising - Agencies","REDACTED DATA","TMP (UK) LTD","5648039","http://opencorporates.com/companies/gb/5648039","872904502"
"London Borough of Redbridge","http://opendatacommunities.org/doc/london-borough-council/redbridge","9BNONBVO","Outside the BVACOP Objective Structure","9CNONBVO","Outside the BVACOP Objective Structure","CAP","Capital","C2208","20 MPH Zones TFL","99-NONBV","Capital, Balance Sheet and Control","50E","Capital - Contract Payments","9150","Main Contract","60150927","201203",19/05/2011 00:00:00,1208.11,"1961","Advertising - Agencies","REDACTED DATA","TMP (UK) LTD","5648039","http://opencorporates.com/companies/gb/5648039","872904502"
"London Borough of Redbridge","http://opendatacommunities.org/doc/london-borough-council/redbridge","4BTRANSPORT","Transport Planning, Policy & Strategy","4CMANGT&SUPP","Management & Support Services","REV","Revenue","R7000","Highways Executive","04-SUPPLIES","Supplies And Services","04D","Printing, stationery and general office expenses","5708","Advertising Publicity and Promotions","60150000","201203",09/06/2011 00:00:00,764.75,"1961","Advertising - Agencies","REDACTED DATA","TMP (UK) LTD","5648039","http://opencorporates.com/companies/gb/5648039","872904502"
"London Borough of Redbridge","http://opendatacommunities.org/doc/london-borough-council/redbridge","9BNONBVO","Outside the BVACOP Objective Structure","9CNONBVO","Outside the BVACOP Objective Structure","CAP","Capital","C2203","Accident Remediation Local Safety TFL","99-NONBV","Capital, Balance Sheet and Control","50E","Capital - Contract Payments","9150","Main Contract","60150744","201203",23/06/2011 00:00:00,714.77,"1961","Advertising - Agencies","REDACTED DATA","TMP (UK) LTD","5648039","http://opencorporates.com/companies/gb/5648039","872904502"
"London Borough of Redbridge","http://opendatacommunities.org/doc/london-borough-council/redbridge","4BMANGT&SUPP","Management & Support Services","4CTRANSPP&S","Transport Planning, Policy & Strategy","REV","Revenue","R7095","Traffic Regulation Orders","04-SUPPLIES","Supplies And Services","04K","Miscellaneous expenses","6280","Miscellaneous Expenditure","60150002","201203",09/06/2011 00:00:00,564.82,"1961","Advertising - Agencies","REDACTED DATA","TMP (UK) LTD","5648039","http://opencorporates.com/companies/gb/5648039","872904502"
"London Borough of Redbridge","http://opendatacommunities.org/doc/london-borough-council/redbridge","4BMANGT&SUPP","Management & Support Services","4CTRANSPP&S","Transport Planning, Policy & Strategy","REV","Revenue","R7095","Traffic Regulation Orders","04-SUPPLIES","Supplies And Services","04K","Miscellaneous expenses","6280","Miscellaneous Expenditure","60149161","201203",26/05/2011 00:00:00,514.84,"1961","Advertising - Agencies","REDACTED DATA","TMP (UK) LTD","5648039","http://opencorporates.com/companies/gb/5648039","872904502"
"London Borough of Redbridge","http://opendatacommunities.org/doc/london-borough-council/redbridge","3BLEACENTFND","LEA Centrally Held School Funds","3CSCHSTRATMG","Schools Strategic Management","REV","Revenue","R3279","IT Unit - Trading Acc","04-SUPPLIES","Supplies And Services","04A","Equipment, furniture and materials","5502","Equipment Purchase","60149618","201203",25/05/2011 00:00:00,586,"0","Not Classified","REDACTED DATA","TIPTREE COMPUTERS","2717072600","http://opencorporates.com/companies/gb/2717072600","858695847"
"London Borough of Redbridge","http://opendatacommunities.org/doc/london-borough-council/redbridge","6BSOCIALSERV","Social Services","6CCHILLOOKED","Children Looked After","REV","Revenue","R2127","CLAFH - Fostering and Adoption","05-THIRD","Third Party Payments","05H","Private contractors","6917","Fostering Costs - Agency","60149773","201203",01/06/2011 00:00:00,3000,"1880","Adoption and Fostering","REDACTED DATA","TIME FOR CHILDREN LTD","3866559","http://opencorporates.com/companies/gb/3866559",""
"London Borough of Redbridge","http://opendatacommunities.org/doc/london-borough-council/redbridge","6BSOCIALSERV","Social Services","6CCHILLOOKED","Children Looked After","REV","Revenue","R2127","CLAFH - Fostering and Adoption","05-THIRD","Third Party Payments","05H","Private contractors","6917","Fostering Costs - Agency","60149771","201203",01/06/2011 00:00:00,3000,"1880","Adoption and Fostering","REDACTED DATA","TIME FOR CHILDREN LTD","3866559","http://opencorporates.com/companies/gb/3866559",""
"London Borough of Redbridge","http://opendatacommunities.org/doc/london-borough-council/redbridge","6BSOCIALSERV","Social Services","6CCHILLOOKED","Children Looked After","REV","Revenue","R2127","CLAFH - Fostering and Adoption","05-THIRD","Third Party Payments","05H","Private contractors","6917","Fostering Costs - Agency","60149772","201203",01/06/2011 00:00:00,3000,"1880","Adoption and Fostering","REDACTED DATA","TIME FOR CHILDREN LTD","3866559","http://opencorporates.com/companies/gb/3866559",""
"London Borough of Redbridge","http://opendatacommunities.org/doc/london-borough-council/redbridge","9BNONBVO","Outside the BVACOP Objective Structure","9CNONBVO","Outside the BVACOP Objective Structure","CAP","Capital","C1863","Seven Kings - BIG LOTTERY","99-NONBV","Capital, Balance Sheet and Control","50E","Capital - Contract Payments","9150","Main Contract","60147782","201203",28/04/2011 00:00:00,11754,"59720","Playground Equipment","REDACTED DATA","TIMBER PLAY LTD","4124351","http://opencorporates.com/companies/gb/4124351","755496880"
"London Borough of Redbridge","http://opendatacommunities.org/doc/london-borough-council/redbridge","1BOTHEROPI&E","Other Operating Income & Expenditure","1CTRADSURDEF","Trading Account Surpluses & Deficits","REV","Revenue","R9830","Print Team","01-EMPLOYEES","Employees","01A","Direct employee expenses","4","Agency Staff - Pay","60148688","201203",24/05/2011 00:00:00,2675,"25070","Designers - Graphic","REDACTED DATA","TIMAGES LTD","7488312","http://opencorporates.com/companies/gb/7488312",""
"London Borough of Redbridge","http://opendatacommunities.org/doc/london-borough-council/redbridge","7BCDC","Corporate & Democratic Core","7CCORPMGT","Corporate Management","REV","Revenue","R9828","Redbridge Life","05-THIRD","Third Party Payments","05A","Independent units within the council","6513","Agency & Contracted Services","60149679","201203",08/06/2011 00:00:00,825,"25070","Designers - Graphic","REDACTED DATA","TIMAGES LTD","7488312","http://opencorporates.com/companies/gb/7488312",""
"London Borough of Redbridge","http://opendatacommunities.org/doc/london-borough-council/redbridge","1BOTHEROPI&E","Other Operating Income & Expenditure","1CTRADSURDEF","Trading Account Surpluses & Deficits","REV","Revenue","R9831","Design Team","01-EMPLOYEES","Employees","01A","Direct employee expenses","4","Agency Staff - Pay","60148841","201203",25/05/2011 00:00:00,525,"25070","Designers - Graphic","REDACTED DATA","TIMAGES LTD","7488312","http://opencorporates.com/companies/gb/7488312",""
"London Borough of Redbridge","http://opendatacommunities.org/doc/london-borough-council/redbridge","2BCULTUR&REL","Cultural & Related Services","2COPENSPACES","Open Spaces","REV","Revenue","R6262","Environment and Other Strategy","04-SUPPLIES","Supplies And Services","04K","Miscellaneous expenses","6216","Contract","60147860","201202",16/05/2011 00:00:00,500,"80228","Tree Work & Forestry Services","REDACTED DATA","TILHILL FORESTRY LTD","3242286","http://opencorporates.com/companies/gb/3242286","370669530"
"London Borough of Redbridge","http://opendatacommunities.org/doc/london-borough-council/redbridge","2BCULTUR&REL","Cultural & Related Services","2COPENSPACES","Open Spaces","REV","Revenue","R6264","HLF Capital Woodland","05-THIRD","Third Party Payments","05H","Private contractors","6915","Contractor Payments","60147932","201202",16/05/2011 00:00:00,-500,"80228","Tree Work & Forestry Services","REDACTED DATA","TILHILL FORESTRY LTD","3242286","http://opencorporates.com/companies/gb/3242286","370669530"
"London Borough of Redbridge","http://opendatacommunities.org/doc/london-borough-council/redbridge","5BGFHOUSING","General Fund Housing","5CWELFARE","Welfare Services","REV","Revenue","R4111","Supporting People - CPB","05-THIRD","Third Party Payments","05G","Other establishments","6851","Housing Association Payments","90232929","201203",30/05/2011 00:00:00,11453.2,"17020","Charities and Voluntary Organisations","REDACTED DATA","THREE C'S SUPPORT","2768427","http://opencorporates.com/companies/gb/2768427",""
"London Borough of Redbridge","http://opendatacommunities.org/doc/london-borough-council/redbridge","5BGFHOUSING","General Fund Housing","5CWELFARE","Welfare Services","REV","Revenue","R4111","Supporting People - CPB","05-THIRD","Third Party Payments","05G","Other establishments","6851","Housing Association Payments","90232929","201203",30/05/2011 00:00:00,9320.8,"17020","Charities and Voluntary Organisations","REDACTED DATA","THREE C'S SUPPORT","2768427","http://opencorporates.com/companies/gb/2768427",""
"London Borough of Redbridge","http://opendatacommunities.org/doc/london-borough-council/redbridge","6BADULTSOCIA","Adult Social Care","6CADLEARNDIS","Adults Under 65 with Learning Disabilities","REV","Revenue","R4293","Woodbine Club House","04-SUPPLIES","Supplies And Services","04B","Catering","5601","Catering Provisions (Food & Drink)","60150850","201203",03/06/2011 00:00:00,518.2,"16250","Catering Food and Drink Suppliers","REDACTED DATA","THOMAS RIDLEY & SONS","",,""
"London Borough of Redbridge","http://opendatacommunities.org/doc/london-borough-council/redbridge","6BADULTSOCIA","Adult Social Care","6CADLEARNDIS","Adults Under 65 with Learning Disabilities","REV","Revenue","R4293","Woodbine Club House","04-SUPPLIES","Supplies And Services","04B","Catering","5601","Catering Provisions (Food & Drink)","60149224","201203",20/05/2011 00:00:00,464.9,"16250","Catering Food and Drink Suppliers","REDACTED DATA","THOMAS RIDLEY & SONS","",,""
"London Borough of Redbridge","http://opendatacommunities.org/doc/london-borough-council/redbridge","6BADULTSOCIA","Adult Social Care","6CADLEARNDIS","Adults Under 65 with Learning Disabilities","REV","Revenue","R4293","Woodbine Club House","04-SUPPLIES","Supplies And Services","04B","Catering","5601","Catering Provisions (Food & Drink)","60150849","201203",17/06/2011 00:00:00,318.2,"16250","Catering Food and Drink Suppliers","REDACTED DATA","THOMAS RIDLEY & SONS","",,""
"London Borough of Redbridge","http://opendatacommunities.org/doc/london-borough-council/redbridge","6BADULTSOCIA","Adult Social Care","6CADLEARNDIS","Adults Under 65 with Learning Disabilities","REV","Revenue","R4293","Woodbine Club House","04-SUPPLIES","Supplies And Services","04B","Catering","5601","Catering Provisions (Food & Drink)","60150849","201203",17/06/2011 00:00:00,183.59,"16250","Catering Food and Drink Suppliers","REDACTED DATA","THOMAS RIDLEY & SONS","",,""
"London Borough of Redbridge","http://opendatacommunities.org/doc/london-borough-council/redbridge","6BADULTSOCIA","Adult Social Care","6CADLEARNDIS","Adults Under 65 with Learning Disabilities","REV","Revenue","R4293","Woodbine Club House","04-SUPPLIES","Supplies And Services","04B","Catering","5601","Catering Provisions (Food & Drink)","60149224","201203",20/05/2011 00:00:00,168.3,"16250","Catering Food and Drink Suppliers","REDACTED DATA","THOMAS RIDLEY & SONS","",,""
"London Borough of Redbridge","http://opendatacommunities.org/doc/london-borough-council/redbridge","6BADULTSOCIA","Adult Social Care","6CADLEARNDIS","Adults Under 65 with Learning Disabilities","REV","Revenue","R4293","Woodbine Club House","04-SUPPLIES","Supplies And Services","04B","Catering","5601","Catering Provisions (Food & Drink)","60150850","201203",03/06/2011 00:00:00,153.89,"16250","Catering Food and Drink Suppliers","REDACTED DATA","THOMAS RIDLEY & SONS","",,""
"London Borough of Redbridge","http://opendatacommunities.org/doc/london-borough-council/redbridge","5BGFHOUSING","General Fund Housing","5CHOUSADVICE","Housing Advice","REV","Revenue","R5530","HAC Temporary Accomodation","05-THIRD","Third Party Payments","05H","Private contractors","6916","Leasing Payments To Landlords","70028516","201203",01/06/2011 00:00:00,285801.76,"47846","Letting Agents","REDACTED DATA","THEORI INVESTMENTS LIMITED","4048450","http://opencorporates.com/companies/gb/4048450","773898950"
"London Borough of Redbridge","http://opendatacommunities.org/doc/london-borough-council/redbridge","5BGFHOUSING","General Fund Housing","5CHOUSADVICE","Housing Advice","REV","Revenue","R5530","HAC Temporary Accomodation","05-THIRD","Third Party Payments","05H","Private contractors","6912","Bed & Breakfast Charges","70028048","201203",01/05/2011 00:00:00,41986,"47846","Letting Agents","REDACTED DATA","THEORI INVESTMENTS LIMITED","4048450","http://opencorporates.com/companies/gb/4048450","773898950"
"London Borough of Redbridge","http://opendatacommunities.org/doc/london-borough-council/redbridge","5BGFHOUSING","General Fund Housing","5CHOUSADVICE","Housing Advice","REV","Revenue","R5530","HAC Temporary Accomodation","05-THIRD","Third Party Payments","05H","Private contractors","6916","Leasing Payments To Landlords","70028516","201203",01/06/2011 00:00:00,38088.16,"47846","Letting Agents","REDACTED DATA","THEORI INVESTMENTS LIMITED","4048450","http://opencorporates.com/companies/gb/4048450","773898950"
"London Borough of Redbridge","http://opendatacommunities.org/doc/london-borough-council/redbridge","5BGFHOUSING","General Fund Housing","5CHOUMGTSUPP","Housing Management & Support Services","REV","Revenue","R5529","HAC Assessment","04-SUPPLIES","Supplies And Services","04K","Miscellaneous expenses","6267","2010 Coversion Costs","70028729","201203",01/06/2011 00:00:00,1755,"47846","Letting Agents","REDACTED DATA","THEORI INVESTMENTS LIMITED","4048450","http://opencorporates.com/companies/gb/4048450","773898950"
"London Borough of Redbridge","http://opendatacommunities.org/doc/london-borough-council/redbridge","5BGFHOUSING","General Fund Housing","5CHOUMGTSUPP","Housing Management & Support Services","REV","Revenue","R5529","HAC Assessment","04-SUPPLIES","Supplies And Services","04K","Miscellaneous expenses","6282","Prevention & Procurement","70028729","201203",01/06/2011 00:00:00,1625,"47846","Letting Agents","REDACTED DATA","THEORI INVESTMENTS LIMITED","4048450","http://opencorporates.com/companies/gb/4048450","773898950"
"London Borough of Redbridge","http://opendatacommunities.org/doc/london-borough-council/redbridge","5BGFHOUSING","General Fund Housing","5CHOUSADVICE","Housing Advice","REV","Revenue","R5530","HAC Temporary Accomodation","05-THIRD","Third Party Payments","05H","Private contractors","6912","Bed & Breakfast Charges","70028044","201203",31/03/2011 00:00:00,1271,"47846","Letting Agents","REDACTED DATA","THEORI INVESTMENTS LIMITED","4048450","http://opencorporates.com/companies/gb/4048450","773898950"
"London Borough of Redbridge","http://opendatacommunities.org/doc/london-borough-council/redbridge","5BGFHOUSING","General Fund Housing","5CHOUSADVICE","Housing Advice","REV","Revenue","R5530","HAC Temporary Accomodation","05-THIRD","Third Party Payments","05H","Private contractors","6912","Bed & Breakfast Charges","70028045","201203",31/12/2010 00:00:00,1025,"47846","Letting Agents","REDACTED DATA","THEORI INVESTMENTS LIMITED","4048450","http://opencorporates.com/companies/gb/4048450","773898950"
"London Borough of Redbridge","http://opendatacommunities.org/doc/london-borough-council/redbridge","5BGFHOUSING","General Fund Housing","5CHOUSADVICE","Housing Advice","REV","Revenue","R5530","HAC Temporary Accomodation","05-THIRD","Third Party Payments","05H","Private contractors","6912","Bed & Breakfast Charges","70028203","201203",31/03/2011 00:00:00,899,"47846","Letting Agents","REDACTED DATA","THEORI INVESTMENTS LIMITED","4048450","http://opencorporates.com/companies/gb/4048450","773898950"
"London Borough of Redbridge","http://opendatacommunities.org/doc/london-borough-council/redbridge","5BGFHOUSING","General Fund Housing","5CHOUSADVICE","Housing Advice","REV","Revenue","R5530","HAC Temporary Accomodation","05-THIRD","Third Party Payments","05H","Private contractors","6916","Leasing Payments To Landlords","70028765","201203",01/06/2011 00:00:00,856.84,"47846","Letting Agents","REDACTED DATA","THEORI INVESTMENTS LIMITED","4048450","http://opencorporates.com/companies/gb/4048450","773898950"
"London Borough of Redbridge","http://opendatacommunities.org/doc/london-borough-council/redbridge","9BNONBVO","Outside the BVACOP Objective Structure","9CNONBVO","Outside the BVACOP Objective Structure","REV","Revenue","R7702","Vehicle Workshop","04-SUPPLIES","Supplies And Services","04C","Clothes, uniform and laundry","5651","Protective Clothing","627353","201203",30/04/2011 00:00:00,1190.55,"77606","Textile Merchants & Agents","REDACTED DATA","THE SUNLIGHT SERVICE GROUP LTD","228604","http://opencorporates.com/companies/gb/228604","226516179"
"London Borough of Redbridge","http://opendatacommunities.org/doc/london-borough-council/redbridge","9BNONBVO","Outside the BVACOP Objective Structure","9CNONBVO","Outside the BVACOP Objective Structure","REV","Revenue","R7702","Vehicle Workshop","04-SUPPLIES","Supplies And Services","04C","Clothes, uniform and laundry","5651","Protective Clothing","627356","201203",02/04/2011 00:00:00,952.44,"77606","Textile Merchants & Agents","REDACTED DATA","THE SUNLIGHT SERVICE GROUP LTD","228604","http://opencorporates.com/companies/gb/228604","226516179"
"London Borough of Redbridge","http://opendatacommunities.org/doc/london-borough-council/redbridge","3BNONSCHFUND","Non-School Funding","3CNONSCH","Non Schools","REV","Revenue","R3962","Early Years - 3 and 4 Year Olds","05-THIRD","Third Party Payments","05A","Independent units within the council","6517","Non-Maintained Schools","3188889","201203",21/05/2011 00:00:00,20633,"59760","Playgroups, Nurseries and Creches","REDACTED DATA","THE SUNFLOWER NURSERY","",,""
"London Borough of Redbridge","http://opendatacommunities.org/doc/london-borough-council/redbridge","3BNONSCHFUND","Non-School Funding","3CNONSCH","Non Schools","REV","Revenue","R3962","Early Years - 3 and 4 Year Olds","05-THIRD","Third Party Payments","05A","Independent units within the council","6517","Non-Maintained Schools","3189883","201203",28/05/2011 00:00:00,612.15,"59760","Playgroups, Nurseries and Creches","REDACTED DATA","THE SUNFLOWER NURSERY","",,""
"London Borough of Redbridge","http://opendatacommunities.org/doc/london-borough-council/redbridge","6BADULTSOCIA","Adult Social Care","6COLDINCMENT","Older People (65 or over) incl. Older Mentally Ill","REV","Revenue","R4378","OP - Care Purchasing","05-THIRD","Third Party Payments","05F","Voluntary associations","6802","Residential Homes","90233557","201203",25/05/2011 00:00:00,2682.12,"64710","Residential Care Homes","REDACTED DATA","THE SPINNEY","",,""
"London Borough of Redbridge","http://opendatacommunities.org/doc/london-borough-council/redbridge","6BADULTSOCIA","Adult Social Care","6COLDINCMENT","Older People (65 or over) incl. Older Mentally Ill","REV","Revenue","R4378","OP - Care Purchasing","09-INCOME","Income","09C","Customer & Client Receipts","8555","Accommodation Charges","90233557","201203",25/05/2011 00:00:00,-459,"64710","Residential Care Homes","REDACTED DATA","THE SPINNEY","",,""
"London Borough of Redbridge","http://opendatacommunities.org/doc/london-borough-council/redbridge","6BADULTSOCIA","Adult Social Care","6CADLEARNDIS","Adults Under 65 with Learning Disabilities","REV","Revenue","R4188","LD - Residential Care","05-THIRD","Third Party Payments","05F","Voluntary associations","6802","Residential Homes","90232966","201203",25/05/2011 00:00:00,8497.17,"64710","Residential Care Homes","REDACTED DATA","THE REGARD PARTNERSHIP LTD.","",,""
"London Borough of Redbridge","http://opendatacommunities.org/doc/london-borough-council/redbridge","6BADULTSOCIA","Adult Social Care","6CADLEARNDIS","Adults Under 65 with Learning Disabilities","REV","Revenue","R4188","LD - Residential Care","05-THIRD","Third Party Payments","05F","Voluntary associations","6802","Residential Homes","90232966","201203",25/05/2011 00:00:00,1103.53,"64710","Residential Care Homes","REDACTED DATA","THE REGARD PARTNERSHIP LTD.","",,""
"London Borough of Redbridge","http://opendatacommunities.org/doc/london-borough-council/redbridge","6BADULTSOCIA","Adult Social Care","6CADLEARNDIS","Adults Under 65 with Learning Disabilities","REV","Revenue","R4188","LD - Residential Care","09-INCOME","Income","09C","Customer & Client Receipts","8555","Accommodation Charges","90232966","201203",25/05/2011 00:00:00,-101.64,"64710","Residential Care Homes","REDACTED DATA","THE REGARD PARTNERSHIP LTD.","",,""
"London Borough of Redbridge","http://opendatacommunities.org/doc/london-borough-council/redbridge","6BADULTSOCIA","Adult Social Care","6CADLEARNDIS","Adults Under 65 with Learning Disabilities","REV","Revenue","R4188","LD - Residential Care","09-INCOME","Income","09C","Customer & Client Receipts","8555","Accommodation Charges","90232966","201203",25/05/2011 00:00:00,-811.25,"64710","Residential Care Homes","REDACTED DATA","THE REGARD PARTNERSHIP LTD.","",,""
"London Borough of Redbridge","http://opendatacommunities.org/doc/london-borough-council/redbridge","6BADULTSOCIA","Adult Social Care","6CADLEARNDIS","Adults Under 65 with Learning Disabilities","REV","Revenue","R4188","LD - Residential Care","05-THIRD","Third Party Payments","05F","Voluntary associations","6802","Residential Homes","90232966","201203",25/05/2011 00:00:00,-3105.85,"64710","Residential Care Homes","REDACTED DATA","THE REGARD PARTNERSHIP LTD.","",,""
"London Borough of Redbridge","http://opendatacommunities.org/doc/london-borough-council/redbridge","6BADULTSOCIA","Adult Social Care","6CADPHYSDIS","Adults Under 65 with Phys Disab or Sensory Impair","REV","Revenue","R4387","PD Nursing","05-THIRD","Third Party Payments","05H","Private contractors","6909","Nursing Homes","90233556","201203",25/05/2011 00:00:00,5821.21,"64710","Residential Care Homes","REDACTED DATA","THE PRIORY GRANGE POTTERS BAR","5346419","http://opencorporates.com/companies/gb/5346419",""
"London Borough of Redbridge","http://opendatacommunities.org/doc/london-borough-council/redbridge","6BADULTSOCIA","Adult Social Care","6CADPHYSDIS","Adults Under 65 with Phys Disab or Sensory Impair","REV","Revenue","R4387","PD Nursing","05-THIRD","Third Party Payments","05H","Private contractors","6909","Nursing Homes","90233556","201203",25/05/2011 00:00:00,5620.48,"64710","Residential Care Homes","REDACTED DATA","THE PRIORY GRANGE POTTERS BAR","5346419","http://opencorporates.com/companies/gb/5346419",""
"London Borough of Redbridge","http://opendatacommunities.org/doc/london-borough-council/redbridge","6BADULTSOCIA","Adult Social Care","6CADPHYSDIS","Adults Under 65 with Phys Disab or Sensory Impair","REV","Revenue","R4387","PD Nursing","05-THIRD","Third Party Payments","05H","Private contractors","6909","Nursing Homes","90233556","201203",25/05/2011 00:00:00,450.33,"64710","Residential Care Homes","REDACTED DATA","THE PRIORY GRANGE POTTERS BAR","5346419","http://opencorporates.com/companies/gb/5346419",""
"London Borough of Redbridge","http://opendatacommunities.org/doc/london-borough-council/redbridge","6BADULTSOCIA","Adult Social Care","6CADPHYSDIS","Adults Under 65 with Phys Disab or Sensory Impair","REV","Revenue","R4387","PD Nursing","05-THIRD","Third Party Payments","05H","Private contractors","6909","Nursing Homes","90233556","201203",25/05/2011 00:00:00,434.8,"64710","Residential Care Homes","REDACTED DATA","THE PRIORY GRANGE POTTERS BAR","5346419","http://opencorporates.com/companies/gb/5346419",""
"London Borough of Redbridge","http://opendatacommunities.org/doc/london-borough-council/redbridge","6BADULTSOCIA","Adult Social Care","6CADPHYSDIS","Adults Under 65 with Phys Disab or Sensory Impair","REV","Revenue","R4387","PD Nursing","09-INCOME","Income","09C","Customer & Client Receipts","8557","Nursing Home Charges","90233556","201203",25/05/2011 00:00:00,-434.8,"64710","Residential Care Homes","REDACTED DATA","THE PRIORY GRANGE POTTERS BAR","5346419","http://opencorporates.com/companies/gb/5346419",""
"London Borough of Redbridge","http://opendatacommunities.org/doc/london-borough-council/redbridge","6BADULTSOCIA","Adult Social Care","6CADPHYSDIS","Adults Under 65 with Phys Disab or Sensory Impair","REV","Revenue","R4387","PD Nursing","09-INCOME","Income","09C","Customer & Client Receipts","8557","Nursing Home Charges","90233556","201203",25/05/2011 00:00:00,-450.33,"64710","Residential Care Homes","REDACTED DATA","THE PRIORY GRANGE POTTERS BAR","5346419","http://opencorporates.com/companies/gb/5346419",""
"London Borough of Redbridge","http://opendatacommunities.org/doc/london-borough-council/redbridge","6BADULTSOCIA","Adult Social Care","6CADPHYSDIS","Adults Under 65 with Phys Disab or Sensory Impair","REV","Revenue","R4387","PD Nursing","05-THIRD","Third Party Payments","05H","Private contractors","6909","Nursing Homes","90233556","201203",25/05/2011 00:00:00,-5821.21,"64710","Residential Care Homes","REDACTED DATA","THE PRIORY GRANGE POTTERS BAR","5346419","http://opencorporates.com/companies/gb/5346419",""
"London Borough of Redbridge","http://opendatacommunities.org/doc/london-borough-council/redbridge","6BADULTSOCIA","Adult Social Care","6CADLEARNDIS","Adults Under 65 with Learning Disabilities","REV","Revenue","R4188","LD - Residential Care","05-THIRD","Third Party Payments","05F","Voluntary associations","6802","Residential Homes","90233229","201203",25/05/2011 00:00:00,5987.64,"64710","Residential Care Homes","REDACTED DATA","THE OUTLOOK FOUNDATION (JEAN MARSHALL HOUSE)","2438015","http://opencorporates.com/companies/gb/2438015",""
"London Borough of Redbridge","http://opendatacommunities.org/doc/london-borough-council/redbridge","6BADULTSOCIA","Adult Social Care","6CADLEARNDIS","Adults Under 65 with Learning Disabilities","REV","Revenue","R4188","LD - Residential Care","09-INCOME","Income","09C","Customer & Client Receipts","8555","Accommodation Charges","90233229","201203",25/05/2011 00:00:00,-352.8,"64710","Residential Care Homes","REDACTED DATA","THE OUTLOOK FOUNDATION (JEAN MARSHALL HOUSE)","2438015","http://opencorporates.com/companies/gb/2438015",""
"London Borough of Redbridge","http://opendatacommunities.org/doc/london-borough-council/redbridge","6BADULTSOCIA","Adult Social Care","6COLDINCMENT","Older People (65 or over) incl. Older Mentally Ill","REV","Revenue","R4378","OP - Care Purchasing","05-THIRD","Third Party Payments","05F","Voluntary associations","6802","Residential Homes","90237404","201203",25/05/2011 00:00:00,2835.42,"64710","Residential Care Homes","REDACTED DATA","THE MELLOWS LIMITED","4893298","http://opencorporates.com/companies/gb/4893298",""
"London Borough of Redbridge","http://opendatacommunities.org/doc/london-borough-council/redbridge","6BADULTSOCIA","Adult Social Care","6COLDINCMENT","Older People (65 or over) incl. Older Mentally Ill","REV","Revenue","R4378","OP - Care Purchasing","05-THIRD","Third Party Payments","05F","Voluntary associations","6802","Residential Homes","90237404","201203",25/05/2011 00:00:00,2092.81,"64710","Residential Care Homes","REDACTED DATA","THE MELLOWS LIMITED","4893298","http://opencorporates.com/companies/gb/4893298",""
"London Borough of Redbridge","http://opendatacommunities.org/doc/london-borough-council/redbridge","6BADULTSOCIA","Adult Social Care","6COLDINCMENT","Older People (65 or over) incl. Older Mentally Ill","REV","Revenue","R4378","OP - Care Purchasing","05-THIRD","Third Party Payments","05F","Voluntary associations","6802","Residential Homes","90237404","201203",25/05/2011 00:00:00,270.04,"64710","Residential Care Homes","REDACTED DATA","THE MELLOWS LIMITED","4893298","http://opencorporates.com/companies/gb/4893298",""
"London Borough of Redbridge","http://opendatacommunities.org/doc/london-borough-council/redbridge","6BADULTSOCIA","Adult Social Care","6COLDINCMENT","Older People (65 or over) incl. Older Mentally Ill","REV","Revenue","R4378","OP - Care Purchasing","09-INCOME","Income","09C","Customer & Client Receipts","8555","Accommodation Charges","90237404","201203",25/05/2011 00:00:00,-857.64,"64710","Residential Care Homes","REDACTED DATA","THE MELLOWS LIMITED","4893298","http://opencorporates.com/companies/gb/4893298",""
"London Borough of Redbridge","http://opendatacommunities.org/doc/london-borough-council/redbridge","6BADULTSOCIA","Adult Social Care","6COLDINCMENT","Older People (65 or over) incl. Older Mentally Ill","REV","Revenue","R4378","OP - Care Purchasing","09-INCOME","Income","09C","Customer & Client Receipts","8555","Accommodation Charges","90237404","201203",25/05/2011 00:00:00,-980.82,"64710","Residential Care Homes","REDACTED DATA","THE MELLOWS LIMITED","4893298","http://opencorporates.com/companies/gb/4893298",""
"London Borough of Redbridge","http://opendatacommunities.org/doc/london-borough-council/redbridge","6BADULTSOCIA","Adult Social Care","6CADPHYSDIS","Adults Under 65 with Phys Disab or Sensory Impair","REV","Revenue","R4407","PD DAY CARE","05-THIRD","Third Party Payments","05H","Private contractors","6904","Day Centres","90237557","201203",31/05/2011 00:00:00,1352.52,"24200","Day Centres","REDACTED DATA","THE LONDON BOROUGH OF BRENT(OPS ACC SECTION)","",,"226669929"
"London Borough of Redbridge","http://opendatacommunities.org/doc/london-borough-council/redbridge","6BADULTSOCIA","Adult Social Care","6CADPHYSDIS","Adults Under 65 with Phys Disab or Sensory Impair","REV","Revenue","R4407","PD DAY CARE","05-THIRD","Third Party Payments","05H","Private contractors","6904","Day Centres","90237557","201203",31/05/2011 00:00:00,265.2,"24200","Day Centres","REDACTED DATA","THE LONDON BOROUGH OF BRENT(OPS ACC SECTION)","",,"226669929"
"London Borough of Redbridge","http://opendatacommunities.org/doc/london-borough-council/redbridge","6BADULTSOCIA","Adult Social Care","6CADPHYSDIS","Adults Under 65 with Phys Disab or Sensory Impair","REV","Revenue","R4407","PD DAY CARE","05-THIRD","Third Party Payments","05H","Private contractors","6904","Day Centres","90237557","201203",31/05/2011 00:00:00,-225.42,"24200","Day Centres","REDACTED DATA","THE LONDON BOROUGH OF BRENT(OPS ACC SECTION)","",,"226669929"
"London Borough of Redbridge","http://opendatacommunities.org/doc/london-borough-council/redbridge","6BADULTSOCIA","Adult Social Care","6COLDINCMENT","Older People (65 or over) incl. Older Mentally Ill","REV","Revenue","R4378","OP - Care Purchasing","05-THIRD","Third Party Payments","05F","Voluntary associations","6802","Residential Homes","90232969","201203",25/05/2011 00:00:00,6875,"53350","Nursing Homes","REDACTED DATA","THE LODGE","",,""
"London Borough of Redbridge","http://opendatacommunities.org/doc/london-borough-council/redbridge","6BADULTSOCIA","Adult Social Care","6COLDINCMENT","Older People (65 or over) incl. Older Mentally Ill","REV","Revenue","R4378","OP - Care Purchasing","05-THIRD","Third Party Payments","05F","Voluntary associations","6802","Residential Homes","90232967","201203",25/05/2011 00:00:00,5847.71,"53350","Nursing Homes","REDACTED DATA","THE LODGE","",,""
"London Borough of Redbridge","http://opendatacommunities.org/doc/london-borough-council/redbridge","6BADULTSOCIA","Adult Social Care","6COLDINCMENT","Older People (65 or over) incl. Older Mentally Ill","REV","Revenue","R4378","OP - Care Purchasing","05-THIRD","Third Party Payments","05F","Voluntary associations","6802","Residential Homes","90232969","201203",25/05/2011 00:00:00,892.86,"53350","Nursing Homes","REDACTED DATA","THE LODGE","",,""
"London Borough of Redbridge","http://opendatacommunities.org/doc/london-borough-council/redbridge","6BADULTSOCIA","Adult Social Care","6COLDINCMENT","Older People (65 or over) incl. Older Mentally Ill","REV","Revenue","R4378","OP - Care Purchasing","05-THIRD","Third Party Payments","05F","Voluntary associations","6802","Residential Homes","90232967","201203",25/05/2011 00:00:00,751.14,"53350","Nursing Homes","REDACTED DATA","THE LODGE","",,""
"London Borough of Redbridge","http://opendatacommunities.org/doc/london-borough-council/redbridge","6BADULTSOCIA","Adult Social Care","6COLDINCMENT","Older People (65 or over) incl. Older Mentally Ill","REV","Revenue","R4378","OP - Care Purchasing","05-THIRD","Third Party Payments","05F","Voluntary associations","6802","Residential Homes","90232967","201203",25/05/2011 00:00:00,605,"53350","Nursing Homes","REDACTED DATA","THE LODGE","",,""
"London Borough of Redbridge","http://opendatacommunities.org/doc/london-borough-council/redbridge","6BADULTSOCIA","Adult Social Care","6COLDINCMENT","Older People (65 or over) incl. Older Mentally Ill","REV","Revenue","R4378","OP - Care Purchasing","05-THIRD","Third Party Payments","05F","Voluntary associations","6802","Residential Homes","90232967","201203",25/05/2011 00:00:00,78.57,"53350","Nursing Homes","REDACTED DATA","THE LODGE","",,""
"London Borough of Redbridge","http://opendatacommunities.org/doc/london-borough-council/redbridge","6BADULTSOCIA","Adult Social Care","6COLDINCMENT","Older People (65 or over) incl. Older Mentally Ill","REV","Revenue","R4378","OP - Care Purchasing","09-INCOME","Income","09C","Customer & Client Receipts","8555","Accommodation Charges","90232967","201203",25/05/2011 00:00:00,-78.57,"53350","Nursing Homes","REDACTED DATA","THE LODGE","",,""
"London Borough of Redbridge","http://opendatacommunities.org/doc/london-borough-council/redbridge","6BADULTSOCIA","Adult Social Care","6COLDINCMENT","Older People (65 or over) incl. Older Mentally Ill","REV","Revenue","R4378","OP - Care Purchasing","09-INCOME","Income","09C","Customer & Client Receipts","8555","Accommodation Charges","90232967","201203",25/05/2011 00:00:00,-157.57,"53350","Nursing Homes","REDACTED DATA","THE LODGE","",,""
"London Borough of Redbridge","http://opendatacommunities.org/doc/london-borough-council/redbridge","6BADULTSOCIA","Adult Social Care","6COLDINCMENT","Older People (65 or over) incl. Older Mentally Ill","REV","Revenue","R4378","OP - Care Purchasing","09-INCOME","Income","09C","Customer & Client Receipts","8555","Accommodation Charges","90232969","201203",25/05/2011 00:00:00,-165.4,"53350","Nursing Homes","REDACTED DATA","THE LODGE","",,""
"London Borough of Redbridge","http://opendatacommunities.org/doc/london-borough-council/redbridge","6BADULTSOCIA","Adult Social Care","6COLDINCMENT","Older People (65 or over) incl. Older Mentally Ill","REV","Revenue","R4378","OP - Care Purchasing","09-INCOME","Income","09C","Customer & Client Receipts","8555","Accommodation Charges","90232967","201203",25/05/2011 00:00:00,-605,"53350","Nursing Homes","REDACTED DATA","THE LODGE","",,""
"London Borough of Redbridge","http://opendatacommunities.org/doc/london-borough-council/redbridge","6BADULTSOCIA","Adult Social Care","6COLDINCMENT","Older People (65 or over) incl. Older Mentally Ill","REV","Revenue","R4378","OP - Care Purchasing","09-INCOME","Income","09C","Customer & Client Receipts","8555","Accommodation Charges","90232967","201203",25/05/2011 00:00:00,-1262.25,"53350","Nursing Homes","REDACTED DATA","THE LODGE","",,""
"London Borough of Redbridge","http://opendatacommunities.org/doc/london-borough-council/redbridge","6BADULTSOCIA","Adult Social Care","6COLDINCMENT","Older People (65 or over) incl. Older Mentally Ill","REV","Revenue","R4378","OP - Care Purchasing","09-INCOME","Income","09C","Customer & Client Receipts","8555","Accommodation Charges","90232969","201203",25/05/2011 00:00:00,-1323.74,"53350","Nursing Homes","REDACTED DATA","THE LODGE","",,""
"London Borough of Redbridge","http://opendatacommunities.org/doc/london-borough-council/redbridge","6BADULTSOCIA","Adult Social Care","6COLDINCMENT","Older People (65 or over) incl. Older Mentally Ill","REV","Revenue","R4378","OP - Care Purchasing","05-THIRD","Third Party Payments","05F","Voluntary associations","6802","Residential Homes","90232967","201203",25/05/2011 00:00:00,-1840.07,"53350","Nursing Homes","REDACTED DATA","THE LODGE","",,""
"London Borough of Redbridge","http://opendatacommunities.org/doc/london-borough-council/redbridge","6BADULTSOCIA","Adult Social Care","6COLDINCMENT","Older People (65 or over) incl. Older Mentally Ill","REV","Revenue","R4378","OP - Care Purchasing","05-THIRD","Third Party Payments","05F","Voluntary associations","6802","Residential Homes","90232969","201203",25/05/2011 00:00:00,-2255.12,"53350","Nursing Homes","REDACTED DATA","THE LODGE","",,""
"London Borough of Redbridge","http://opendatacommunities.org/doc/london-borough-council/redbridge","6BADULTSOCIA","Adult Social Care","6CADLEARNDIS","Adults Under 65 with Learning Disabilities","REV","Revenue","R4383","LD - External Day Care","05-THIRD","Third Party Payments","05H","Private contractors","6904","Day Centres","90233627","201203",31/05/2011 00:00:00,1463.64,"24200","Day Centres","REDACTED DATA","THE LEARNING CENTRE(TLC ROMFORD) LTD","7024796","http://opencorporates.com/companies/gb/7024796",""
"London Borough of Redbridge","http://opendatacommunities.org/doc/london-borough-council/redbridge","6BADULTSOCIA","Adult Social Care","6CADLEARNDIS","Adults Under 65 with Learning Disabilities","REV","Revenue","R4383","LD - External Day Care","05-THIRD","Third Party Payments","05H","Private contractors","6904","Day Centres","90233627","201203",31/05/2011 00:00:00,-69.94,"24200","Day Centres","REDACTED DATA","THE LEARNING CENTRE(TLC ROMFORD) LTD","7024796","http://opencorporates.com/companies/gb/7024796",""
"London Borough of Redbridge","http://opendatacommunities.org/doc/london-borough-council/redbridge","6BADULTSOCIA","Adult Social Care","6CADPHYSDIS","Adults Under 65 with Phys Disab or Sensory Impair","REV","Revenue","R4387","PD Nursing","05-THIRD","Third Party Payments","05H","Private contractors","6909","Nursing Homes","90233554","201203",25/05/2011 00:00:00,3928.96,"53350","Nursing Homes","REDACTED DATA","THE JACOB CENTRE","",,""
"London Borough of Redbridge","http://opendatacommunities.org/doc/london-borough-council/redbridge","6BADULTSOCIA","Adult Social Care","6CADPHYSDIS","Adults Under 65 with Phys Disab or Sensory Impair","REV","Revenue","R4387","PD Nursing","05-THIRD","Third Party Payments","05H","Private contractors","6909","Nursing Homes","90233554","201203",25/05/2011 00:00:00,1616,"53350","Nursing Homes","REDACTED DATA","THE JACOB CENTRE","",,""
"London Borough of Redbridge","http://opendatacommunities.org/doc/london-borough-council/redbridge","6BADULTSOCIA","Adult Social Care","6CADPHYSDIS","Adults Under 65 with Phys Disab or Sensory Impair","REV","Revenue","R4387","PD Nursing","09-INCOME","Income","09C","Customer & Client Receipts","8557","Nursing Home Charges","90233554","201203",25/05/2011 00:00:00,-295,"53350","Nursing Homes","REDACTED DATA","THE JACOB CENTRE","",,""
"London Borough of Redbridge","http://opendatacommunities.org/doc/london-borough-council/redbridge","6BADULTSOCIA","Adult Social Care","6COLDINCMENT","Older People (65 or over) incl. Older Mentally Ill","REV","Revenue","R4378","OP - Care Purchasing","05-THIRD","Third Party Payments","05F","Voluntary associations","6802","Residential Homes","90233553","201203",25/05/2011 00:00:00,1598.24,"64710","Residential Care Homes","REDACTED DATA","THE HOLLIES RESIDENTIAL REST HOME FOR THE ELDERLY","",,""
"London Borough of Redbridge","http://opendatacommunities.org/doc/london-borough-council/redbridge","6BADULTSOCIA","Adult Social Care","6COLDINCMENT","Older People (65 or over) incl. Older Mentally Ill","REV","Revenue","R4378","OP - Care Purchasing","09-INCOME","Income","09C","Customer & Client Receipts","8555","Accommodation Charges","90233553","201203",25/05/2011 00:00:00,-459.52,"64710","Residential Care Homes","REDACTED DATA","THE HOLLIES RESIDENTIAL REST HOME FOR THE ELDERLY","",,""
"London Borough of Redbridge","http://opendatacommunities.org/doc/london-borough-council/redbridge","6BADULTSOCIA","Adult Social Care","6COLDINCMENT","Older People (65 or over) incl. Older Mentally Ill","REV","Revenue","R4378","OP - Care Purchasing","05-THIRD","Third Party Payments","05F","Voluntary associations","6802","Residential Homes","90233156","201203",25/05/2011 00:00:00,2741.16,"64710","Residential Care Homes","REDACTED DATA","THE HILDA SOFAER CENTRE","",,""
"London Borough of Redbridge","http://opendatacommunities.org/doc/london-borough-council/redbridge","6BADULTSOCIA","Adult Social Care","6COLDINCMENT","Older People (65 or over) incl. Older Mentally Ill","REV","Revenue","R4378","OP - Care Purchasing","05-THIRD","Third Party Payments","05F","Voluntary associations","6802","Residential Homes","90233156","201203",25/05/2011 00:00:00,61.11,"64710","Residential Care Homes","REDACTED DATA","THE HILDA SOFAER CENTRE","",,""
"London Borough of Redbridge","http://opendatacommunities.org/doc/london-borough-council/redbridge","6BADULTSOCIA","Adult Social Care","6COLDINCMENT","Older People (65 or over) incl. Older Mentally Ill","REV","Revenue","R4378","OP - Care Purchasing","09-INCOME","Income","09C","Customer & Client Receipts","8555","Accommodation Charges","90233156","201203",25/05/2011 00:00:00,-894.52,"64710","Residential Care Homes","REDACTED DATA","THE HILDA SOFAER CENTRE","",,""
"London Borough of Redbridge","http://opendatacommunities.org/doc/london-borough-council/redbridge","3BLEACENTFND","LEA Centrally Held School Funds","3CSCHSTRATMG","Schools Strategic Management","REV","Revenue","R3279","IT Unit - Trading Acc","04-SUPPLIES","Supplies And Services","04A","Equipment, furniture and materials","5502","Equipment Purchase","60150743","201203",24/06/2011 00:00:00,1100,"79980","Training Services","REDACTED DATA","THE FITS FOUNDATION LTD","7015986","http://opencorporates.com/companies/gb/7015986","992341601"
"London Borough of Redbridge","http://opendatacommunities.org/doc/london-borough-council/redbridge","9BNONBVO","Outside the BVACOP Objective Structure","9CNONBVO","Outside the BVACOP Objective Structure","REV","Revenue","R0027","General Fund Corporate Items","05-THIRD","Third Party Payments","05I","Other agencies","6950","Environmental Agency","60149652","201203",01/04/2011 00:00:00,44706.25,"16580","Central Government","REDACTED DATA","THE ENVIRONMENT AGENCY","",,""
"London Borough of Redbridge","http://opendatacommunities.org/doc/london-borough-council/redbridge","2BENVIRONMEN","Environmental Services","2CENVTLHEALT","Environmental Health","REV","Revenue","R6750","Pollution","04-SUPPLIES","Supplies And Services","04H","Grants and subscriptions","5954","Professional Fees","60149329","201203",29/04/2011 00:00:00,10320,"16580","Central Government","REDACTED DATA","THE ENVIRONMENT AGENCY","",,""
"London Borough of Redbridge","http://opendatacommunities.org/doc/london-borough-council/redbridge","3BOPTIONHLDG","Optional Holding Accounts","3CADULT","Adult Education","REV","Revenue","R3497","RIAE   Additional Learning Support","04-SUPPLIES","Supplies And Services","04A","Equipment, furniture and materials","5502","Equipment Purchase","3189752","201203",21/06/2011 00:00:00,600.2,"25820","Disability & Special Needs - Services","REDACTED DATA","THE DEAF AGENCY LTD","6953306","http://opencorporates.com/companies/gb/6953306","975307301"
"London Borough of Redbridge","http://opendatacommunities.org/doc/london-borough-council/redbridge","6BADULTSOCIA","Adult Social Care","6CADLEARNDIS","Adults Under 65 with Learning Disabilities","REV","Revenue","R4193","Learn - Redbridge Block Contracts","05-THIRD","Third Party Payments","05F","Voluntary associations","6800","Voluntary Organisations","90237610","201203",09/06/2011 00:00:00,7961.42,"17020","Charities and Voluntary Organisations","REDACTED DATA","THE DAFFODIL ADVOCACY PROJECT","1082105","http://opencorporates.com/companies/gb/1082105",""
"London Borough of Redbridge","http://opendatacommunities.org/doc/london-borough-council/redbridge","6BADULTSOCIA","Adult Social Care","6CADLEARNDIS","Adults Under 65 with Learning Disabilities","REV","Revenue","R4193","Learn - Redbridge Block Contracts","05-THIRD","Third Party Payments","05F","Voluntary associations","6800","Voluntary Organisations","90237612","201203",09/06/2011 00:00:00,5217.58,"17020","Charities and Voluntary Organisations","REDACTED DATA","THE DAFFODIL ADVOCACY PROJECT","1082105","http://opencorporates.com/companies/gb/1082105",""
"London Borough of Redbridge","http://opendatacommunities.org/doc/london-borough-council/redbridge","6BADULTSOCIA","Adult Social Care","6CADLEARNDIS","Adults Under 65 with Learning Disabilities","REV","Revenue","R4193","Learn - Redbridge Block Contracts","05-THIRD","Third Party Payments","05F","Voluntary associations","6800","Voluntary Organisations","90237611","201203",09/06/2011 00:00:00,4537.05,"17020","Charities and Voluntary Organisations","REDACTED DATA","THE DAFFODIL ADVOCACY PROJECT","1082105","http://opencorporates.com/companies/gb/1082105",""
"London Borough of Redbridge","http://opendatacommunities.org/doc/london-borough-council/redbridge","6BADULTSOCIA","Adult Social Care","6CADLEARNDIS","Adults Under 65 with Learning Disabilities","REV","Revenue","R4193","Learn - Redbridge Block Contracts","05-THIRD","Third Party Payments","05F","Voluntary associations","6800","Voluntary Organisations","90229465","201202",10/05/2011 00:00:00,2480.57,"17020","Charities and Voluntary Organisations","REDACTED DATA","THE DAFFODIL ADVOCACY PROJECT","1082105","http://opencorporates.com/companies/gb/1082105",""
"London Borough of Redbridge","http://opendatacommunities.org/doc/london-borough-council/redbridge","6BADULTSOCIA","Adult Social Care","6CADLEARNDIS","Adults Under 65 with Learning Disabilities","REV","Revenue","R4193","Learn - Redbridge Block Contracts","05-THIRD","Third Party Payments","05F","Voluntary associations","6800","Voluntary Organisations","90237614","201203",09/06/2011 00:00:00,2393.45,"17020","Charities and Voluntary Organisations","REDACTED DATA","THE DAFFODIL ADVOCACY PROJECT","1082105","http://opencorporates.com/companies/gb/1082105",""
"London Borough of Redbridge","http://opendatacommunities.org/doc/london-borough-council/redbridge","6BADULTSOCIA","Adult Social Care","6CADLEARNDIS","Adults Under 65 with Learning Disabilities","REV","Revenue","R4193","Learn - Redbridge Block Contracts","05-THIRD","Third Party Payments","05F","Voluntary associations","6800","Voluntary Organisations","90237615","201203",09/06/2011 00:00:00,1619.73,"17020","Charities and Voluntary Organisations","REDACTED DATA","THE DAFFODIL ADVOCACY PROJECT","1082105","http://opencorporates.com/companies/gb/1082105",""
"London Borough of Redbridge","http://opendatacommunities.org/doc/london-borough-council/redbridge","6BADULTSOCIA","Adult Social Care","6CADLEARNDIS","Adults Under 65 with Learning Disabilities","REV","Revenue","R4193","Learn - Redbridge Block Contracts","05-THIRD","Third Party Payments","05F","Voluntary associations","6800","Voluntary Organisations","90237613","201203",09/06/2011 00:00:00,1587.92,"17020","Charities and Voluntary Organisations","REDACTED DATA","THE DAFFODIL ADVOCACY PROJECT","1082105","http://opencorporates.com/companies/gb/1082105",""
"London Borough of Redbridge","http://opendatacommunities.org/doc/london-borough-council/redbridge","6BADULTSOCIA","Adult Social Care","6CADLEARNDIS","Adults Under 65 with Learning Disabilities","REV","Revenue","R4193","Learn - Redbridge Block Contracts","05-THIRD","Third Party Payments","05F","Voluntary associations","6800","Voluntary Organisations","90229466","201202",10/05/2011 00:00:00,1052.86,"17020","Charities and Voluntary Organisations","REDACTED DATA","THE DAFFODIL ADVOCACY PROJECT","1082105","http://opencorporates.com/companies/gb/1082105",""
"London Borough of Redbridge","http://opendatacommunities.org/doc/london-borough-council/redbridge","6BADULTSOCIA","Adult Social Care","6CADLEARNDIS","Adults Under 65 with Learning Disabilities","REV","Revenue","R4193","Learn - Redbridge Block Contracts","05-THIRD","Third Party Payments","05F","Voluntary associations","6800","Voluntary Organisations","90229465","201202",10/05/2011 00:00:00,306.24,"17020","Charities and Voluntary Organisations","REDACTED DATA","THE DAFFODIL ADVOCACY PROJECT","1082105","http://opencorporates.com/companies/gb/1082105",""
"London Borough of Redbridge","http://opendatacommunities.org/doc/london-borough-council/redbridge","6BADULTSOCIA","Adult Social Care","6CADLEARNDIS","Adults Under 65 with Learning Disabilities","REV","Revenue","R4193","Learn - Redbridge Block Contracts","05-THIRD","Third Party Payments","05F","Voluntary associations","6800","Voluntary Organisations","90229465","201202",10/05/2011 00:00:00,14.13,"17020","Charities and Voluntary Organisations","REDACTED DATA","THE DAFFODIL ADVOCACY PROJECT","1082105","http://opencorporates.com/companies/gb/1082105",""
"London Borough of Redbridge","http://opendatacommunities.org/doc/london-borough-council/redbridge","6BADULTSOCIA","Adult Social Care","6CADLEARNDIS","Adults Under 65 with Learning Disabilities","REV","Revenue","R4193","Learn - Redbridge Block Contracts","05-THIRD","Third Party Payments","05F","Voluntary associations","6800","Voluntary Organisations","90229466","201202",10/05/2011 00:00:00,12.45,"17020","Charities and Voluntary Organisations","REDACTED DATA","THE DAFFODIL ADVOCACY PROJECT","1082105","http://opencorporates.com/companies/gb/1082105",""
"London Borough of Redbridge","http://opendatacommunities.org/doc/london-borough-council/redbridge","6BADULTSOCIA","Adult Social Care","6CADLEARNDIS","Adults Under 65 with Learning Disabilities","REV","Revenue","R4193","Learn - Redbridge Block Contracts","05-THIRD","Third Party Payments","05F","Voluntary associations","6800","Voluntary Organisations","90229467","201202",10/05/2011 00:00:00,6.57,"17020","Charities and Voluntary Organisations","REDACTED DATA","THE DAFFODIL ADVOCACY PROJECT","1082105","http://opencorporates.com/companies/gb/1082105",""
"London Borough of Redbridge","http://opendatacommunities.org/doc/london-borough-council/redbridge","6BADULTSOCIA","Adult Social Care","6CADLEARNDIS","Adults Under 65 with Learning Disabilities","REV","Revenue","R4193","Learn - Redbridge Block Contracts","05-THIRD","Third Party Payments","05F","Voluntary associations","6800","Voluntary Organisations","90229466","201202",10/05/2011 00:00:00,-19.19,"17020","Charities and Voluntary Organisations","REDACTED DATA","THE DAFFODIL ADVOCACY PROJECT","1082105","http://opencorporates.com/companies/gb/1082105",""
"London Borough of Redbridge","http://opendatacommunities.org/doc/london-borough-council/redbridge","6BADULTSOCIA","Adult Social Care","6CADLEARNDIS","Adults Under 65 with Learning Disabilities","REV","Revenue","R4193","Learn - Redbridge Block Contracts","05-THIRD","Third Party Payments","05F","Voluntary associations","6800","Voluntary Organisations","90229466","201202",10/05/2011 00:00:00,-38.37,"17020","Charities and Voluntary Organisations","REDACTED DATA","THE DAFFODIL ADVOCACY PROJECT","1082105","http://opencorporates.com/companies/gb/1082105",""
"London Borough of Redbridge","http://opendatacommunities.org/doc/london-borough-council/redbridge","6BADULTSOCIA","Adult Social Care","6CADLEARNDIS","Adults Under 65 with Learning Disabilities","REV","Revenue","R4193","Learn - Redbridge Block Contracts","05-THIRD","Third Party Payments","05F","Voluntary associations","6800","Voluntary Organisations","90229467","201202",10/05/2011 00:00:00,-308.53,"17020","Charities and Voluntary Organisations","REDACTED DATA","THE DAFFODIL ADVOCACY PROJECT","1082105","http://opencorporates.com/companies/gb/1082105",""
"London Borough of Redbridge","http://opendatacommunities.org/doc/london-borough-council/redbridge","6BADULTSOCIA","Adult Social Care","6CADLEARNDIS","Adults Under 65 with Learning Disabilities","REV","Revenue","R4193","Learn - Redbridge Block Contracts","05-THIRD","Third Party Payments","05F","Voluntary associations","6800","Voluntary Organisations","90229466","201202",10/05/2011 00:00:00,-2222.75,"17020","Charities and Voluntary Organisations","REDACTED DATA","THE DAFFODIL ADVOCACY PROJECT","1082105","http://opencorporates.com/companies/gb/1082105",""
"London Borough of Redbridge","http://opendatacommunities.org/doc/london-borough-council/redbridge","6BADULTSOCIA","Adult Social Care","6CADLEARNDIS","Adults Under 65 with Learning Disabilities","REV","Revenue","R4193","Learn - Redbridge Block Contracts","05-THIRD","Third Party Payments","05F","Voluntary associations","6800","Voluntary Organisations","90229467","201202",10/05/2011 00:00:00,-2499.08,"17020","Charities and Voluntary Organisations","REDACTED DATA","THE DAFFODIL ADVOCACY PROJECT","1082105","http://opencorporates.com/companies/gb/1082105",""
"London Borough of Redbridge","http://opendatacommunities.org/doc/london-borough-council/redbridge","6BADULTSOCIA","Adult Social Care","6CADLEARNDIS","Adults Under 65 with Learning Disabilities","REV","Revenue","R4241","NHS � Continuing Care","05-THIRD","Third Party Payments","05F","Voluntary associations","6802","Residential Homes","90237619","201203",16/06/2011 00:00:00,1712.84,"64710","Residential Care Homes","REDACTED DATA","THE CROFT RESIDENTIAL CARE HOMES LTD","",,""
"London Borough of Redbridge","http://opendatacommunities.org/doc/london-borough-council/redbridge","6BADULTSOCIA","Adult Social Care","6CADLEARNDIS","Adults Under 65 with Learning Disabilities","REV","Revenue","R4241","NHS � Continuing Care","05-THIRD","Third Party Payments","05F","Voluntary associations","6802","Residential Homes","90237620","201203",16/06/2011 00:00:00,1712.84,"64710","Residential Care Homes","REDACTED DATA","THE CROFT RESIDENTIAL CARE HOMES LTD","",,""
"London Borough of Redbridge","http://opendatacommunities.org/doc/london-borough-council/redbridge","6BADULTSOCIA","Adult Social Care","6CADLEARNDIS","Adults Under 65 with Learning Disabilities","REV","Revenue","R4241","NHS � Continuing Care","05-THIRD","Third Party Payments","05F","Voluntary associations","6802","Residential Homes","90237621","201203",16/06/2011 00:00:00,1712.84,"64710","Residential Care Homes","REDACTED DATA","THE CROFT RESIDENTIAL CARE HOMES LTD","",,""
"London Borough of Redbridge","http://opendatacommunities.org/doc/london-borough-council/redbridge","6BADULTSOCIA","Adult Social Care","6CADLEARNDIS","Adults Under 65 with Learning Disabilities","REV","Revenue","R4241","NHS � Continuing Care","05-THIRD","Third Party Payments","05F","Voluntary associations","6802","Residential Homes","90237621","201203",16/06/2011 00:00:00,1169.05,"64710","Residential Care Homes","REDACTED DATA","THE CROFT RESIDENTIAL CARE HOMES LTD","",,""
"London Borough of Redbridge","http://opendatacommunities.org/doc/london-borough-council/redbridge","6BADULTSOCIA","Adult Social Care","6CADLEARNDIS","Adults Under 65 with Learning Disabilities","REV","Revenue","R4241","NHS � Continuing Care","05-THIRD","Third Party Payments","05F","Voluntary associations","6802","Residential Homes","90237619","201203",16/06/2011 00:00:00,1169.05,"64710","Residential Care Homes","REDACTED DATA","THE CROFT RESIDENTIAL CARE HOMES LTD","",,""
"London Borough of Redbridge","http://opendatacommunities.org/doc/london-borough-council/redbridge","6BADULTSOCIA","Adult Social Care","6CADLEARNDIS","Adults Under 65 with Learning Disabilities","REV","Revenue","R4241","NHS � Continuing Care","05-THIRD","Third Party Payments","05F","Voluntary associations","6802","Residential Homes","90237620","201203",16/06/2011 00:00:00,1169.05,"64710","Residential Care Homes","REDACTED DATA","THE CROFT RESIDENTIAL CARE HOMES LTD","",,""
"London Borough of Redbridge","http://opendatacommunities.org/doc/london-borough-council/redbridge","5BGFHOUSING","General Fund Housing","5CHOUSADVICE","Housing Advice","REV","Revenue","R5530","HAC Temporary Accomodation","05-THIRD","Third Party Payments","05H","Private contractors","6912","Bed & Breakfast Charges","70027938","201203",08/05/2011 00:00:00,2341,"44100","Hotels","REDACTED DATA","THE COURTNEY HOTEL LONDON LTD","6874974","http://opencorporates.com/companies/gb/6874974","719040943"
"London Borough of Redbridge","http://opendatacommunities.org/doc/london-borough-council/redbridge","5BGFHOUSING","General Fund Housing","5CHOUSADVICE","Housing Advice","REV","Revenue","R5530","HAC Temporary Accomodation","05-THIRD","Third Party Payments","05H","Private contractors","6912","Bed & Breakfast Charges","70028003","201203",15/05/2011 00:00:00,2269,"44100","Hotels","REDACTED DATA","THE COURTNEY HOTEL LONDON LTD","6874974","http://opencorporates.com/companies/gb/6874974","719040943"
"London Borough of Redbridge","http://opendatacommunities.org/doc/london-borough-council/redbridge","5BGFHOUSING","General Fund Housing","5CHOUSADVICE","Housing Advice","REV","Revenue","R5530","HAC Temporary Accomodation","05-THIRD","Third Party Payments","05H","Private contractors","6912","Bed & Breakfast Charges","70028725","201203",29/05/2011 00:00:00,2187,"44100","Hotels","REDACTED DATA","THE COURTNEY HOTEL LONDON LTD","6874974","http://opencorporates.com/companies/gb/6874974","719040943"
"London Borough of Redbridge","http://opendatacommunities.org/doc/london-borough-council/redbridge","5BGFHOUSING","General Fund Housing","5CHOUSADVICE","Housing Advice","REV","Revenue","R5530","HAC Temporary Accomodation","05-THIRD","Third Party Payments","05H","Private contractors","6912","Bed & Breakfast Charges","70028205","201203",22/05/2011 00:00:00,2121,"44100","Hotels","REDACTED DATA","THE COURTNEY HOTEL LONDON LTD","6874974","http://opencorporates.com/companies/gb/6874974","719040943"
"London Borough of Redbridge","http://opendatacommunities.org/doc/london-borough-council/redbridge","5BGFHOUSING","General Fund Housing","5CHOUSADVICE","Housing Advice","REV","Revenue","R5530","HAC Temporary Accomodation","05-THIRD","Third Party Payments","05H","Private contractors","6912","Bed & Breakfast Charges","70028198","201203",15/05/2011 00:00:00,1985,"44100","Hotels","REDACTED DATA","THE COURTNEY HOTEL LONDON LTD","6874974","http://opencorporates.com/companies/gb/6874974","719040943"
"London Borough of Redbridge","http://opendatacommunities.org/doc/london-borough-council/redbridge","5BGFHOUSING","General Fund Housing","5CHOUSADVICE","Housing Advice","REV","Revenue","R5530","HAC Temporary Accomodation","05-THIRD","Third Party Payments","05H","Private contractors","6912","Bed & Breakfast Charges","70028726","201203",05/06/2011 00:00:00,1967,"44100","Hotels","REDACTED DATA","THE COURTNEY HOTEL LONDON LTD","6874974","http://opencorporates.com/companies/gb/6874974","719040943"
"London Borough of Redbridge","http://opendatacommunities.org/doc/london-borough-council/redbridge","5BGFHOUSING","General Fund Housing","5CHOUSADVICE","Housing Advice","REV","Revenue","R5530","HAC Temporary Accomodation","05-THIRD","Third Party Payments","05H","Private contractors","6912","Bed & Breakfast Charges","70028519","201203",08/05/2011 00:00:00,1913,"44100","Hotels","REDACTED DATA","THE COURTNEY HOTEL LONDON LTD","6874974","http://opencorporates.com/companies/gb/6874974","719040943"
"London Borough of Redbridge","http://opendatacommunities.org/doc/london-borough-council/redbridge","5BGFHOUSING","General Fund Housing","5CHOUSADVICE","Housing Advice","REV","Revenue","R5530","HAC Temporary Accomodation","05-THIRD","Third Party Payments","05H","Private contractors","6912","Bed & Breakfast Charges","70028739","201203",05/06/2011 00:00:00,1897,"44100","Hotels","REDACTED DATA","THE COURTNEY HOTEL LONDON LTD","6874974","http://opencorporates.com/companies/gb/6874974","719040943"
"London Borough of Redbridge","http://opendatacommunities.org/doc/london-borough-council/redbridge","5BGFHOUSING","General Fund Housing","5CHOUSADVICE","Housing Advice","REV","Revenue","R5530","HAC Temporary Accomodation","05-THIRD","Third Party Payments","05H","Private contractors","6912","Bed & Breakfast Charges","70028206","201203",22/05/2011 00:00:00,1893,"44100","Hotels","REDACTED DATA","THE COURTNEY HOTEL LONDON LTD","6874974","http://opencorporates.com/companies/gb/6874974","719040943"
"London Borough of Redbridge","http://opendatacommunities.org/doc/london-borough-council/redbridge","5BGFHOUSING","General Fund Housing","5CHOUSADVICE","Housing Advice","REV","Revenue","R5530","HAC Temporary Accomodation","05-THIRD","Third Party Payments","05H","Private contractors","6912","Bed & Breakfast Charges","70028058","201203",10/04/2011 00:00:00,1885,"44100","Hotels","REDACTED DATA","THE COURTNEY HOTEL LONDON LTD","6874974","http://opencorporates.com/companies/gb/6874974","719040943"
"London Borough of Redbridge","http://opendatacommunities.org/doc/london-borough-council/redbridge","6BADULTSOCIA","Adult Social Care","6CADMENHLTH","Adults Under 65 with Mental Health Needs","REV","Revenue","R4283","MH-Sect21 Asylum Costs","06-TRANSFER","Transfer Payments","06B","Social Services Clients","7051","Asylum Seekers","90233642","201203",01/06/2011 00:00:00,925,"44100","Hotels","REDACTED DATA","THE COURTNEY HOTEL LONDON LTD","6874974","http://opencorporates.com/companies/gb/6874974","719040943"
"London Borough of Redbridge","http://opendatacommunities.org/doc/london-borough-council/redbridge","1BOTHEROPI&E","Other Operating Income & Expenditure","1CTRADSURDEF","Trading Account Surpluses & Deficits","REV","Revenue","R9831","Design Team","04-SUPPLIES","Supplies And Services","04H","Grants and subscriptions","5955","Fees","60150642","201203",15/06/2011 00:00:00,6809,"61540","Printers","REDACTED DATA","THE COLOURHOUSE","2803142","http://opencorporates.com/companies/gb/2803142","626404456"
"London Borough of Redbridge","http://opendatacommunities.org/doc/london-borough-council/redbridge","9BNONBVO","Outside the BVACOP Objective Structure","9CNONBVO","Outside the BVACOP Objective Structure","CAP","Capital","C1874","Community Grants - DCSF","99-NONBV","Capital, Balance Sheet and Control","50E","Capital - Contract Payments","9150","Main Contract","60149620","201203",24/03/2011 00:00:00,20000,"59720","Playground Equipment","REDACTED DATA","THE CHILDREN'S PLAYGROUND CO LTD","4349835","http://opencorporates.com/companies/gb/4349835","784143518"
"London Borough of Redbridge","http://opendatacommunities.org/doc/london-borough-council/redbridge","2BCULTUR&REL","Cultural & Related Services","2COPENSPACES","Open Spaces","REV","Revenue","R6339","Claybury Park","02-PREMISES","Premises","02I","Grounds maintenance costs","4750","Grounds Maintenance","60149620","201203",24/03/2011 00:00:00,1874.68,"59720","Playground Equipment","REDACTED DATA","THE CHILDREN'S PLAYGROUND CO LTD","4349835","http://opencorporates.com/companies/gb/4349835","784143518"
"London Borough of Redbridge","http://opendatacommunities.org/doc/london-borough-council/redbridge","6BADULTSOCIA","Adult Social Care","6COLDINCMENT","Older People (65 or over) incl. Older Mentally Ill","REV","Revenue","R4385","OP Nursing","05-THIRD","Third Party Payments","05H","Private contractors","6909","Nursing Homes","90233536","201203",25/05/2011 00:00:00,3333.26,"53350","Nursing Homes","REDACTED DATA","THE CHESTNUTS","",,""
"London Borough of Redbridge","http://opendatacommunities.org/doc/london-borough-council/redbridge","6BADULTSOCIA","Adult Social Care","6COLDINCMENT","Older People (65 or over) incl. Older Mentally Ill","REV","Revenue","R4385","OP Nursing","05-THIRD","Third Party Payments","05H","Private contractors","6909","Nursing Homes","90233550","201203",25/05/2011 00:00:00,2682.75,"53350","Nursing Homes","REDACTED DATA","THE CHESTNUTS","",,""
"London Borough of Redbridge","http://opendatacommunities.org/doc/london-borough-council/redbridge","6BADULTSOCIA","Adult Social Care","6COLDINCMENT","Older People (65 or over) incl. Older Mentally Ill","REV","Revenue","R4378","OP - Care Purchasing","05-THIRD","Third Party Payments","05F","Voluntary associations","6802","Residential Homes","90233542","201203",25/05/2011 00:00:00,2191.64,"53350","Nursing Homes","REDACTED DATA","THE CHESTNUTS","",,""
"London Borough of Redbridge","http://opendatacommunities.org/doc/london-borough-council/redbridge","6BADULTSOCIA","Adult Social Care","6COLDINCMENT","Older People (65 or over) incl. Older Mentally Ill","REV","Revenue","R4378","OP - Care Purchasing","05-THIRD","Third Party Payments","05F","Voluntary associations","6802","Residential Homes","90233534","201203",25/05/2011 00:00:00,2161.52,"53350","Nursing Homes","REDACTED DATA","THE CHESTNUTS","",,""
"London Borough of Redbridge","http://opendatacommunities.org/doc/london-borough-council/redbridge","6BADULTSOCIA","Adult Social Care","6COLDINCMENT","Older People (65 or over) incl. Older Mentally Ill","REV","Revenue","R4378","OP - Care Purchasing","05-THIRD","Third Party Payments","05F","Voluntary associations","6802","Residential Homes","90233545","201203",25/05/2011 00:00:00,2161.52,"53350","Nursing Homes","REDACTED DATA","THE CHESTNUTS","",,""
